Body Name,Date Paid,Transaction Number,Amount,Supplier Name,Supplier Type,Expense Area,Cost Centre Description,Expense Type
Cambridgeshire County Council,04-Nov-15,19422265-12229541,-29663.1,Kisimul School,Care Establishment,S&C,Placements - Education,Independent School Placements
Cambridgeshire County Council,09-Nov-15,19495453-12243787,-27564.48,The Edmund Trust,Care Establishment,2 - Operations - Learning Disability,LDP City Team,Residential Independent Sector
Cambridgeshire County Council,17-Nov-15,19493279-12377058,-21741,Huntingdonshire District Council,Other Public Bodies,Assets & Commissioning,St.Neots HWRC,Business rates
Cambridgeshire County Council,26-Nov-15,19569770-12423622,-20370.33,Park House School,Education,S&C,Placements - Education,Independent School Placements
Cambridgeshire County Council,02-Nov-15,19477406-12222510,-9248.14,Dews Coaches,Trade Supplier,S&C,H to S Transport - Secondary,Home to School - Contract
Cambridgeshire County Council,13-Nov-15,19423381-12357251,-7950.36,Guidant Group,Trade Supplier,LGSS,Audit Division,Pay - Agency Staff
Cambridgeshire County Council,20-Nov-15,19553768-12404134,-7306.7,Moments Fostering Limited,Care Establishment,S&C,Placements - Social Care,Agency Placements - Out County
Cambridgeshire County Council,26-Nov-15,19550414-12423497,-3500.93,Lex Autolease Ltd,Trade Supplier,LGSS Managed,LGSS Property Trading Recharges,Leased Vehicle Costs
Cambridgeshire County Council,13-Nov-15,19471301-12361309,-2946.98,Affinity Trust,Care Establishment,2 - Operations - Learning Disability,LDP Fenland Team,Supported Living
Cambridgeshire County Council,13-Nov-15,19471302-12361310,-2946.98,Affinity Trust,Care Establishment,2 - Operations - Learning Disability,LDP Fenland Team,Supported Living
Cambridgeshire County Council,13-Nov-15,19471304-12361312,-2946.98,Affinity Trust,Care Establishment,2 - Operations - Learning Disability,LDP Fenland Team,Supported Living
Cambridgeshire County Council,17-Nov-15,19512238-12377057,-2700,Huntingdonshire District Council,Other Public Bodies,LGSS Managed,Yaxley Children's Centre,Business rates
Cambridgeshire County Council,13-Nov-15,19471303-12361311,-2525.98,Affinity Trust,Care Establishment,2 - Operations - Learning Disability,LDP Fenland Team,Supported Living
Cambridgeshire County Council,26-Nov-15,19551727-12423621,-2217.72,Park House School,Education,S&C,Placements - Education,Independent School Placements
Cambridgeshire County Council,23-Nov-15,19563962-12407815,-2141.56,Mencap,Care Establishment,2 - Operations - Learning Disability,LDP City Team,Day and Domicillary Care Independent Sector
Cambridgeshire County Council,27-Nov-15,19584061-12432379,-1970.95,Orchard Manor (Scope),Care Establishment,2 - Operations - Learning Disability,LDP South Cambs Team,Residential Independent Sector
Cambridgeshire County Council,13-Nov-15,19523642-12360390,-1890.26,Haddon House,Care Establishment,2 - Operations - Learning Disability,LDP Huntingdonshire Team,Residential Independent Sector
Cambridgeshire County Council,13-Nov-15,19523643-12360391,-1890.26,Haddon House,Care Establishment,2 - Operations - Learning Disability,LDP Huntingdonshire Team,Residential Independent Sector
Cambridgeshire County Council,13-Nov-15,19532466-12360532,-1890.26,Haddon House,Care Establishment,2 - Operations - Learning Disability,LDP Huntingdonshire Team,Residential Independent Sector
Cambridgeshire County Council,13-Nov-15,19532503-12360569,-1890.26,Haddon House,Care Establishment,2 - Operations - Learning Disability,LDP Huntingdonshire Team,Residential Independent Sector
Cambridgeshire County Council,13-Nov-15,19532528-12360594,-1890.26,Haddon House,Care Establishment,2 - Operations - Learning Disability,LDP Huntingdonshire Team,Residential Independent Sector
Cambridgeshire County Council,13-Nov-15,19520693-12360447,-1871.96,Haddon House,Care Establishment,2 - Operations - Learning Disability,LDP Huntingdonshire Team,Residential Independent Sector
Cambridgeshire County Council,13-Nov-15,19520730-12360484,-1871.96,Haddon House,Care Establishment,2 - Operations - Learning Disability,LDP Huntingdonshire Team,Residential Independent Sector
Cambridgeshire County Council,13-Nov-15,19529624-12360426,-1871.96,Haddon House,Care Establishment,2 - Operations - Learning Disability,LDP Huntingdonshire Team,Residential Independent Sector
Cambridgeshire County Council,13-Nov-15,19529625-12360427,-1871.96,Haddon House,Care Establishment,2 - Operations - Learning Disability,LDP Huntingdonshire Team,Residential Independent Sector
Cambridgeshire County Council,13-Nov-15,19529636-12360408,-1871.96,Haddon House,Care Establishment,2 - Operations - Learning Disability,LDP Huntingdonshire Team,Residential Independent Sector
Cambridgeshire County Council,03-Nov-15,19389311-12226947,-1801.48,Guidant Group,Trade Supplier,Executive Director,Connecting Cambridgeshire,Pay - Agency Staff
Cambridgeshire County Council,13-Nov-15,19514314-12355300,-1778.47,Brookdale Healthcare Limited,Care Establishment,2 - Operations - Learning Disability,LDP Huntingdonshire Team,Residential Independent Sector
Cambridgeshire County Council,13-Nov-15,19514317-12355301,-1778.47,Brookdale Healthcare Limited,Care Establishment,2 - Operations - Learning Disability,LDP Huntingdonshire Team,Residential Independent Sector
Cambridgeshire County Council,13-Nov-15,19514325-12355307,-1778.47,Brookdale Healthcare Limited,Care Establishment,2 - Operations - Learning Disability,LDP Huntingdonshire Team,Residential Independent Sector
Cambridgeshire County Council,13-Nov-15,19514326-12355308,-1778.47,Brookdale Healthcare Limited,Care Establishment,2 - Operations - Learning Disability,LDP Huntingdonshire Team,Residential Independent Sector
Cambridgeshire County Council,13-Nov-15,19533700-12355310,-1778.47,Brookdale Healthcare Limited,Care Establishment,2 - Operations - Learning Disability,LDP Huntingdonshire Team,Residential Independent Sector
Cambridgeshire County Council,02-Nov-15,19394283-12222768,-1620,Cambridge City Council,Other Public Bodies,LRNG,Cambs Music Central Management,Business rates
Cambridgeshire County Council,13-Nov-15,19515943-12371722,-1477.57,Westminster Homecare Limited,Care Establishment,2 - Operations - Learning Disability,LDP E Cambs Team,SDS - Care and support Services
Cambridgeshire County Council,13-Nov-15,19515944-12371709,-1477.57,Westminster Homecare Limited,Care Establishment,2 - Operations - Learning Disability,LDP E Cambs Team,SDS - Care and support Services
Cambridgeshire County Council,13-Nov-15,19515945-12371710,-1477.57,Westminster Homecare Limited,Care Establishment,2 - Operations - Learning Disability,LDP E Cambs Team,SDS - Care and support Services
Cambridgeshire County Council,13-Nov-15,19515946-12371711,-1477.57,Westminster Homecare Limited,Care Establishment,2 - Operations - Learning Disability,LDP E Cambs Team,SDS - Care and support Services
Cambridgeshire County Council,13-Nov-15,19515947-12371712,-1477.57,Westminster Homecare Limited,Care Establishment,2 - Operations - Learning Disability,LDP E Cambs Team,SDS - Care and support Services
Cambridgeshire County Council,13-Nov-15,19515948-12371713,-1477.57,Westminster Homecare Limited,Care Establishment,2 - Operations - Learning Disability,LDP E Cambs Team,SDS - Care and support Services
Cambridgeshire County Council,13-Nov-15,19515950-12371715,-1477.57,Westminster Homecare Limited,Care Establishment,2 - Operations - Learning Disability,LDP E Cambs Team,SDS - Care and support Services
Cambridgeshire County Council,13-Nov-15,19515951-12371716,-1477.57,Westminster Homecare Limited,Care Establishment,2 - Operations - Learning Disability,LDP E Cambs Team,SDS - Care and support Services
Cambridgeshire County Council,13-Nov-15,19515952-12371717,-1477.57,Westminster Homecare Limited,Care Establishment,2 - Operations - Learning Disability,LDP E Cambs Team,SDS - Care and support Services
Cambridgeshire County Council,13-Nov-15,19515953-12371718,-1477.57,Westminster Homecare Limited,Care Establishment,2 - Operations - Learning Disability,LDP E Cambs Team,SDS - Care and support Services
Cambridgeshire County Council,13-Nov-15,19515954-12371719,-1477.57,Westminster Homecare Limited,Care Establishment,2 - Operations - Learning Disability,LDP E Cambs Team,SDS - Care and support Services
Cambridgeshire County Council,13-Nov-15,19515955-12371720,-1477.57,Westminster Homecare Limited,Care Establishment,2 - Operations - Learning Disability,LDP E Cambs Team,SDS - Care and support Services
Cambridgeshire County Council,13-Nov-15,19515956-12371721,-1477.57,Westminster Homecare Limited,Care Establishment,2 - Operations - Learning Disability,LDP E Cambs Team,SDS - Care and support Services
Cambridgeshire County Council,13-Nov-15,19525917-12372068,-1477.57,Westminster Homecare Limited,Care Establishment,2 - Operations - Learning Disability,LDP E Cambs Team,SDS - Care and support Services
Cambridgeshire County Council,13-Nov-15,19525918-12372069,-1477.57,Westminster Homecare Limited,Care Establishment,2 - Operations - Learning Disability,LDP E Cambs Team,SDS - Care and support Services
Cambridgeshire County Council,13-Nov-15,19451370-12360887,-1412.84,Graham Facilities Management Ltd,Company,LGSS Managed,Whittlesford Highways Depot,Building Maintenance - Structural Maintenance - Planned
Cambridgeshire County Council,13-Nov-15,19470359-12355593,-1408.45,Voyage (Lichfield),Care Establishment,2 - Operations - Learning Disability,LDP South Cambs Team,Day and Domicillary Care Independent Sector
Cambridgeshire County Council,13-Nov-15,19470360-12355594,-1408.45,Voyage (Lichfield),Care Establishment,2 - Operations - Learning Disability,LDP South Cambs Team,Day and Domicillary Care Independent Sector
Cambridgeshire County Council,13-Nov-15,19470361-12355595,-1408.45,Voyage (Lichfield),Care Establishment,2 - Operations - Learning Disability,LDP South Cambs Team,Day and Domicillary Care Independent Sector
Cambridgeshire County Council,13-Nov-15,19470362-12355596,-1408.45,Voyage (Lichfield),Care Establishment,2 - Operations - Learning Disability,LDP South Cambs Team,Day and Domicillary Care Independent Sector
Cambridgeshire County Council,13-Nov-15,19470363-12355597,-1408.45,Voyage (Lichfield),Care Establishment,2 - Operations - Learning Disability,LDP South Cambs Team,Day and Domicillary Care Independent Sector
Cambridgeshire County Council,13-Nov-15,19470365-12355599,-1408.45,Voyage (Lichfield),Care Establishment,2 - Operations - Learning Disability,LDP South Cambs Team,Day and Domicillary Care Independent Sector
Cambridgeshire County Council,13-Nov-15,19470366-12355600,-1408.45,Voyage (Lichfield),Care Establishment,2 - Operations - Learning Disability,LDP South Cambs Team,Day and Domicillary Care Independent Sector
Cambridgeshire County Council,13-Nov-15,19470367-12355601,-1408.45,Voyage (Lichfield),Care Establishment,2 - Operations - Learning Disability,LDP South Cambs Team,Day and Domicillary Care Independent Sector
Cambridgeshire County Council,13-Nov-15,19470368-12355602,-1408.45,Voyage (Lichfield),Care Establishment,2 - Operations - Learning Disability,LDP South Cambs Team,Day and Domicillary Care Independent Sector
Cambridgeshire County Council,13-Nov-15,19470370-12355604,-1408.45,Voyage (Lichfield),Care Establishment,2 - Operations - Learning Disability,LDP South Cambs Team,Day and Domicillary Care Independent Sector
Cambridgeshire County Council,13-Nov-15,19470371-12355605,-1408.45,Voyage (Lichfield),Care Establishment,2 - Operations - Learning Disability,LDP South Cambs Team,Day and Domicillary Care Independent Sector
Cambridgeshire County Council,13-Nov-15,19470372-12355606,-1408.45,Voyage (Lichfield),Care Establishment,2 - Operations - Learning Disability,LDP South Cambs Team,Day and Domicillary Care Independent Sector
Cambridgeshire County Council,13-Nov-15,19470373-12355607,-1408.45,Voyage (Lichfield),Care Establishment,2 - Operations - Learning Disability,LDP South Cambs Team,Day and Domicillary Care Independent Sector
Cambridgeshire County Council,13-Nov-15,19470374-12355608,-1408.45,Voyage (Lichfield),Care Establishment,2 - Operations - Learning Disability,LDP South Cambs Team,Day and Domicillary Care Independent Sector
Cambridgeshire County Council,13-Nov-15,19470375-12355609,-1408.45,Voyage (Lichfield),Care Establishment,2 - Operations - Learning Disability,LDP South Cambs Team,Day and Domicillary Care Independent Sector
Cambridgeshire County Council,13-Nov-15,19470376-12355610,-1408.45,Voyage (Lichfield),Care Establishment,2 - Operations - Learning Disability,LDP South Cambs Team,Day and Domicillary Care Independent Sector
Cambridgeshire County Council,13-Nov-15,19470378-12355612,-1408.45,Voyage (Lichfield),Care Establishment,2 - Operations - Learning Disability,LDP South Cambs Team,Day and Domicillary Care Independent Sector
Cambridgeshire County Council,13-Nov-15,19470379-12355613,-1408.45,Voyage (Lichfield),Care Establishment,2 - Operations - Learning Disability,LDP South Cambs Team,Day and Domicillary Care Independent Sector
Cambridgeshire County Council,13-Nov-15,19470380-12355614,-1408.45,Voyage (Lichfield),Care Establishment,2 - Operations - Learning Disability,LDP South Cambs Team,Day and Domicillary Care Independent Sector
Cambridgeshire County Council,13-Nov-15,19470381-12355615,-1408.45,Voyage (Lichfield),Care Establishment,2 - Operations - Learning Disability,LDP South Cambs Team,Day and Domicillary Care Independent Sector
Cambridgeshire County Council,13-Nov-15,19470382-12355616,-1408.45,Voyage (Lichfield),Care Establishment,2 - Operations - Learning Disability,LDP South Cambs Team,Day and Domicillary Care Independent Sector
Cambridgeshire County Council,13-Nov-15,19470383-12355617,-1408.45,Voyage (Lichfield),Care Establishment,2 - Operations - Learning Disability,LDP South Cambs Team,Day and Domicillary Care Independent Sector
Cambridgeshire County Council,13-Nov-15,19470384-12355618,-1408.45,Voyage (Lichfield),Care Establishment,2 - Operations - Learning Disability,LDP South Cambs Team,Day and Domicillary Care Independent Sector
Cambridgeshire County Council,13-Nov-15,19470385-12355619,-1408.45,Voyage (Lichfield),Care Establishment,2 - Operations - Learning Disability,LDP South Cambs Team,Day and Domicillary Care Independent Sector
Cambridgeshire County Council,13-Nov-15,19470386-12355620,-1408.45,Voyage (Lichfield),Care Establishment,2 - Operations - Learning Disability,LDP South Cambs Team,Day and Domicillary Care Independent Sector
Cambridgeshire County Council,13-Nov-15,19470387-12355621,-1408.45,Voyage (Lichfield),Care Establishment,2 - Operations - Learning Disability,LDP South Cambs Team,Day and Domicillary Care Independent Sector
Cambridgeshire County Council,13-Nov-15,19470388-12355622,-1408.45,Voyage (Lichfield),Care Establishment,2 - Operations - Learning Disability,LDP South Cambs Team,Day and Domicillary Care Independent Sector
Cambridgeshire County Council,13-Nov-15,19527036-12370729,-1337.66,Oaklands,Care Establishment,2 - Operations - Learning Disability,LDP Hunts special needs,Residential Independent Sector
Cambridgeshire County Council,13-Nov-15,19527037-12370730,-1337.66,Oaklands,Care Establishment,2 - Operations - Learning Disability,LDP Hunts special needs,Residential Independent Sector
Cambridgeshire County Council,13-Nov-15,19527046-12370737,-1337.66,Oaklands,Care Establishment,2 - Operations - Learning Disability,LDP Hunts special needs,Residential Independent Sector
Cambridgeshire County Council,13-Nov-15,19527047-12370738,-1337.66,Oaklands,Care Establishment,2 - Operations - Learning Disability,LDP Hunts special needs,Residential Independent Sector
Cambridgeshire County Council,13-Nov-15,19527049-12370740,-1337.66,Oaklands,Care Establishment,2 - Operations - Learning Disability,LDP Hunts special needs,Residential Independent Sector
Cambridgeshire County Council,19-Nov-15,19550402-12385697,-1282.68,Thera East Anglia,Trust (Other),2 - Operations - Learning Disability,LDP South Cambs Team,SDS - Care and support Services
Cambridgeshire County Council,10-Nov-15,19475490-12246624,-1273.56,Bnp Paribas Real Estate,Trade Supplier,LGSS Managed,Bailey Rooms,Buildings service charges
Cambridgeshire County Council,13-Nov-15,19470369-12355603,-1207.24,Voyage (Lichfield),Care Establishment,2 - Operations - Learning Disability,LDP South Cambs Team,Day and Domicillary Care Independent Sector
Cambridgeshire County Council,02-Nov-15,19475513-12222889,-1200,Cambridge Regional College,Education,LRNG,Qualifications,Other Hired Contract Services
Cambridgeshire County Council,02-Nov-15,19475807-12222470,-1190.24,Mencap,Care Establishment,2 - Operations - Learning Disability,LDP City Team,SDS - Care and support Services
Cambridgeshire County Council,20-Nov-15,19353789-12399098,-1120,Longueville Court,Care Establishment,3 - Operations - Countywide Services,Countywide PD Service,Respite Independent Sector
Cambridgeshire County Council,20-Nov-15,19353793-12399100,-1120,Longueville Court,Care Establishment,3 - Operations - Countywide Services,Countywide PD Service,Respite Independent Sector
Cambridgeshire County Council,20-Nov-15,19353794-12399101,-1120,Longueville Court,Care Establishment,3 - Operations - Countywide Services,Countywide PD Service,Respite Independent Sector
Cambridgeshire County Council,20-Nov-15,19353796-12399102,-1120,Longueville Court,Care Establishment,3 - Operations - Countywide Services,Countywide PD Service,Respite Independent Sector
Cambridgeshire County Council,20-Nov-15,19469585-12397772,-1105.5,Cherry Hinton Nursing Home,Care Establishment,2 - Commissioning - Older people Pool,Older People - City & South,Nursing Independent Sector
Cambridgeshire County Council,20-Nov-15,19469587-12397774,-1105.5,Cherry Hinton Nursing Home,Care Establishment,2 - Commissioning - Older people Pool,Older People - City & South,Nursing Independent Sector
Cambridgeshire County Council,20-Nov-15,19469588-12397775,-1105.5,Cherry Hinton Nursing Home,Care Establishment,2 - Commissioning - Older people Pool,Older People - City & South,Nursing Independent Sector
Cambridgeshire County Council,20-Nov-15,19469589-12397776,-1105.5,Cherry Hinton Nursing Home,Care Establishment,2 - Commissioning - Older people Pool,Older People - City & South,Nursing Independent Sector
Cambridgeshire County Council,20-Nov-15,19469590-12397777,-1105.5,Cherry Hinton Nursing Home,Care Establishment,2 - Commissioning - Older people Pool,Older People - City & South,Nursing Independent Sector
Cambridgeshire County Council,02-Nov-15,19394280-12222767,-1008,Cambridge City Council,Other Public Bodies,4 - Operations - Providers services,The Birches Day Centre,Business rates
Cambridgeshire County Council,20-Nov-15,19384275-12395878,-959.52,The Gables (Nursing Care Only),Care Establishment,2 - Commissioning - Older people Pool,East Cambs - O P Team,Nursing Independent Sector
Cambridgeshire County Council,20-Nov-15,19384276-12395879,-959.52,The Gables (Nursing Care Only),Care Establishment,2 - Commissioning - Older people Pool,East Cambs - O P Team,Nursing Independent Sector
Cambridgeshire County Council,20-Nov-15,19384278-12395881,-959.52,The Gables (Nursing Care Only),Care Establishment,2 - Commissioning - Older people Pool,East Cambs - O P Team,Nursing Independent Sector
Cambridgeshire County Council,20-Nov-15,19384279-12395882,-959.52,The Gables (Nursing Care Only),Care Establishment,2 - Commissioning - Older people Pool,East Cambs - O P Team,Nursing Independent Sector
Cambridgeshire County Council,20-Nov-15,19384280-12395883,-959.52,The Gables (Nursing Care Only),Care Establishment,2 - Commissioning - Older people Pool,East Cambs - O P Team,Nursing Independent Sector
Cambridgeshire County Council,20-Nov-15,19384281-12395884,-959.52,The Gables (Nursing Care Only),Care Establishment,2 - Commissioning - Older people Pool,East Cambs - O P Team,Nursing Independent Sector
Cambridgeshire County Council,20-Nov-15,19384282-12395885,-959.52,The Gables (Nursing Care Only),Care Establishment,2 - Commissioning - Older people Pool,East Cambs - O P Team,Nursing Independent Sector
Cambridgeshire County Council,20-Nov-15,19384283-12395886,-959.52,The Gables (Nursing Care Only),Care Establishment,2 - Commissioning - Older people Pool,East Cambs - O P Team,Nursing Independent Sector
Cambridgeshire County Council,20-Nov-15,19384284-12395887,-959.52,The Gables (Nursing Care Only),Care Establishment,2 - Commissioning - Older people Pool,East Cambs - O P Team,Nursing Independent Sector
Cambridgeshire County Council,20-Nov-15,19384285-12395888,-959.52,The Gables (Nursing Care Only),Care Establishment,2 - Commissioning - Older people Pool,East Cambs - O P Team,Nursing Independent Sector
Cambridgeshire County Council,20-Nov-15,19489170-12401554,-950,Woodlands Care Centre,Care Establishment,2 - Commissioning - Older people Pool,Older People - City & South,Nursing Independent Sector
Cambridgeshire County Council,20-Nov-15,19489171-12401555,-950,Woodlands Care Centre,Care Establishment,2 - Commissioning - Older people Pool,Older People - City & South,Nursing Independent Sector
Cambridgeshire County Council,20-Nov-15,19489173-12401557,-950,Woodlands Care Centre,Care Establishment,2 - Commissioning - Older people Pool,Older People - City & South,Nursing Independent Sector
Cambridgeshire County Council,20-Nov-15,19489174-12401558,-950,Woodlands Care Centre,Care Establishment,2 - Commissioning - Older people Pool,Older People - City & South,Nursing Independent Sector
Cambridgeshire County Council,20-Nov-15,19489175-12401559,-950,Woodlands Care Centre,Care Establishment,2 - Commissioning - Older people Pool,Older People - City & South,Nursing Independent Sector
Cambridgeshire County Council,20-Nov-15,19489176-12401560,-950,Woodlands Care Centre,Care Establishment,2 - Commissioning - Older people Pool,Older People - City & South,Nursing Independent Sector
Cambridgeshire County Council,20-Nov-15,19489177-12401561,-950,Woodlands Care Centre,Care Establishment,2 - Commissioning - Older people Pool,Older People - City & South,Nursing Independent Sector
Cambridgeshire County Council,20-Nov-15,19489178-12401562,-950,Woodlands Care Centre,Care Establishment,2 - Commissioning - Older people Pool,Older People - City & South,Nursing Independent Sector
Cambridgeshire County Council,20-Nov-15,19489179-12401563,-950,Woodlands Care Centre,Care Establishment,2 - Commissioning - Older people Pool,Older People - City & South,Nursing Independent Sector
Cambridgeshire County Council,20-Nov-15,19489180-12401564,-950,Woodlands Care Centre,Care Establishment,2 - Commissioning - Older people Pool,Older People - City & South,Nursing Independent Sector
Cambridgeshire County Council,20-Nov-15,19489181-12401565,-950,Woodlands Care Centre,Care Establishment,2 - Commissioning - Older people Pool,Older People - City & South,Nursing Independent Sector
Cambridgeshire County Council,20-Nov-15,19489182-12401566,-950,Woodlands Care Centre,Care Establishment,2 - Commissioning - Older people Pool,Older People - City & South,Nursing Independent Sector
Cambridgeshire County Council,20-Nov-15,19489183-12401567,-950,Woodlands Care Centre,Care Establishment,2 - Commissioning - Older people Pool,Older People - City & South,Nursing Independent Sector
Cambridgeshire County Council,20-Nov-15,19489184-12401568,-950,Woodlands Care Centre,Care Establishment,2 - Commissioning - Older people Pool,Older People - City & South,Nursing Independent Sector
Cambridgeshire County Council,20-Nov-15,19489185-12401569,-950,Woodlands Care Centre,Care Establishment,2 - Commissioning - Older people Pool,Older People - City & South,Nursing Independent Sector
Cambridgeshire County Council,20-Nov-15,19489186-12401570,-950,Woodlands Care Centre,Care Establishment,2 - Commissioning - Older people Pool,Older People - City & South,Nursing Independent Sector
Cambridgeshire County Council,20-Nov-15,19488017-12395893,-926.95,The Gables (Nursing Care Only),Care Establishment,2 - Commissioning - Older people Pool,East Cambs - O P Team,Nursing Independent Sector
Cambridgeshire County Council,20-Nov-15,19488018-12395894,-926.95,The Gables (Nursing Care Only),Care Establishment,2 - Commissioning - Older people Pool,East Cambs - O P Team,Nursing Independent Sector
Cambridgeshire County Council,20-Nov-15,19488019-12395895,-926.95,The Gables (Nursing Care Only),Care Establishment,2 - Commissioning - Older people Pool,East Cambs - O P Team,Nursing Independent Sector
Cambridgeshire County Council,20-Nov-15,19488020-12395896,-926.95,The Gables (Nursing Care Only),Care Establishment,2 - Commissioning - Older people Pool,East Cambs - O P Team,Nursing Independent Sector
Cambridgeshire County Council,05-Nov-15,19489688-12237721,-890,Abbey Healthcare (Huntingdon) Ltd,Care Establishment,2 - Commissioning - Older people Pool,Older People Mental Health Hunts,Nursing Independent Sector
Cambridgeshire County Council,05-Nov-15,19489694-12237713,-890,Abbey Healthcare (Huntingdon) Ltd,Care Establishment,2 - Commissioning - Older people Pool,Older People Mental Health Hunts,Nursing Independent Sector
Cambridgeshire County Council,05-Nov-15,19489695-12237714,-890,Abbey Healthcare (Huntingdon) Ltd,Care Establishment,2 - Commissioning - Older people Pool,Older People Mental Health Hunts,Nursing Independent Sector
Cambridgeshire County Council,05-Nov-15,19489697-12237716,-890,Abbey Healthcare (Huntingdon) Ltd,Care Establishment,2 - Commissioning - Older people Pool,Older People Mental Health Hunts,Nursing Independent Sector
Cambridgeshire County Council,13-Nov-15,19470305-12360896,-865.75,Askham Hall,Care Establishment,3 - Operations - Countywide Services,Countywide PD Service,Nursing Independent Sector
Cambridgeshire County Council,13-Nov-15,19470315-12360897,-865.75,Askham Hall,Care Establishment,3 - Operations - Countywide Services,Countywide PD Service,Nursing Independent Sector
Cambridgeshire County Council,13-Nov-15,19470316-12360898,-865.75,Askham Hall,Care Establishment,3 - Operations - Countywide Services,Countywide PD Service,Nursing Independent Sector
Cambridgeshire County Council,13-Nov-15,19470318-12360899,-865.75,Askham Hall,Care Establishment,3 - Operations - Countywide Services,Countywide PD Service,Nursing Independent Sector
Cambridgeshire County Council,13-Nov-15,19470321-12360901,-865.75,Askham Hall,Care Establishment,3 - Operations - Countywide Services,Countywide PD Service,Nursing Independent Sector
Cambridgeshire County Council,20-Nov-15,19483332-12400345,-854,Conifer Lodge,Care Establishment,2 - Operations - Learning Disability,LDP Fenland Team,Residential Independent Sector
Cambridgeshire County Council,20-Nov-15,19483335-12400347,-854,Conifer Lodge,Care Establishment,2 - Operations - Learning Disability,LDP Fenland Team,Residential Independent Sector
Cambridgeshire County Council,20-Nov-15,19483340-12400351,-854,Conifer Lodge,Care Establishment,2 - Operations - Learning Disability,LDP Fenland Team,Residential Independent Sector
Cambridgeshire County Council,20-Nov-15,19483344-12400352,-854,Conifer Lodge,Care Establishment,2 - Operations - Learning Disability,LDP Fenland Team,Residential Independent Sector
Cambridgeshire County Council,20-Nov-15,19483352-12400357,-854,Conifer Lodge,Care Establishment,2 - Operations - Learning Disability,LDP Fenland Team,Residential Independent Sector
Cambridgeshire County Council,20-Nov-15,19561101-12401426,-850,St Georges Nursing Home,Care Establishment,2 - Commissioning - Older people Pool,Older People - City & South,Nursing Independent Sector
Cambridgeshire County Council,20-Nov-15,19561102-12401427,-850,St Georges Nursing Home,Care Establishment,2 - Commissioning - Older people Pool,Older People - City & South,Nursing Independent Sector
Cambridgeshire County Council,13-Nov-15,19515949-12371714,-844.33,Westminster Homecare Limited,Care Establishment,2 - Operations - Learning Disability,LDP E Cambs Team,SDS - Care and support Services
Cambridgeshire County Council,20-Nov-15,19355661-12398980,-835,Longueville Court,Care Establishment,2 - Commissioning - Older people Pool,Older People Mental Health Hunts,Nursing Independent Sector
Cambridgeshire County Council,20-Nov-15,19355663-12398982,-835,Longueville Court,Care Establishment,2 - Commissioning - Older people Pool,Older People Mental Health Hunts,Nursing Independent Sector
Cambridgeshire County Council,20-Nov-15,19355665-12398984,-835,Longueville Court,Care Establishment,2 - Commissioning - Older people Pool,Older People Mental Health Hunts,Nursing Independent Sector
Cambridgeshire County Council,20-Nov-15,19355666-12398985,-835,Longueville Court,Care Establishment,2 - Commissioning - Older people Pool,Older People Mental Health Hunts,Nursing Independent Sector
Cambridgeshire County Council,20-Nov-15,19355667-12398986,-835,Longueville Court,Care Establishment,2 - Commissioning - Older people Pool,Older People Mental Health Hunts,Nursing Independent Sector
Cambridgeshire County Council,20-Nov-15,19355673-12398992,-835,Longueville Court,Care Establishment,2 - Commissioning - Older people Pool,Older People Mental Health Hunts,Nursing Independent Sector
Cambridgeshire County Council,20-Nov-15,19355674-12398993,-835,Longueville Court,Care Establishment,2 - Commissioning - Older people Pool,Older People Mental Health Hunts,Nursing Independent Sector
Cambridgeshire County Council,20-Nov-15,19355675-12398994,-835,Longueville Court,Care Establishment,2 - Commissioning - Older people Pool,Older People Mental Health Hunts,Nursing Independent Sector
Cambridgeshire County Council,20-Nov-15,19355677-12398996,-835,Longueville Court,Care Establishment,2 - Commissioning - Older people Pool,Older People Mental Health Hunts,Nursing Independent Sector
Cambridgeshire County Council,20-Nov-15,19355681-12399000,-835,Longueville Court,Care Establishment,2 - Commissioning - Older people Pool,Older People Mental Health Hunts,Nursing Independent Sector
Cambridgeshire County Council,20-Nov-15,19355682-12399001,-835,Longueville Court,Care Establishment,2 - Commissioning - Older people Pool,Older People Mental Health Hunts,Nursing Independent Sector
Cambridgeshire County Council,20-Nov-15,19355683-12399002,-835,Longueville Court,Care Establishment,2 - Commissioning - Older people Pool,Older People Mental Health Hunts,Nursing Independent Sector
Cambridgeshire County Council,20-Nov-15,19355684-12399003,-835,Longueville Court,Care Establishment,2 - Commissioning - Older people Pool,Older People Mental Health Hunts,Nursing Independent Sector
Cambridgeshire County Council,20-Nov-15,19355685-12399004,-835,Longueville Court,Care Establishment,2 - Commissioning - Older people Pool,Older People Mental Health Hunts,Nursing Independent Sector
Cambridgeshire County Council,20-Nov-15,19355686-12399005,-835,Longueville Court,Care Establishment,2 - Commissioning - Older people Pool,Older People Mental Health Hunts,Nursing Independent Sector
Cambridgeshire County Council,20-Nov-15,19355687-12399006,-835,Longueville Court,Care Establishment,2 - Commissioning - Older people Pool,Older People Mental Health Hunts,Nursing Independent Sector
Cambridgeshire County Council,20-Nov-15,19355688-12399007,-835,Longueville Court,Care Establishment,2 - Commissioning - Older people Pool,Older People Mental Health Hunts,Nursing Independent Sector
Cambridgeshire County Council,20-Nov-15,19355690-12399009,-835,Longueville Court,Care Establishment,2 - Commissioning - Older people Pool,Older People Mental Health Hunts,Nursing Independent Sector
Cambridgeshire County Council,20-Nov-15,19355695-12399014,-835,Longueville Court,Care Establishment,2 - Commissioning - Older people Pool,Older People Mental Health Hunts,Nursing Independent Sector
Cambridgeshire County Council,20-Nov-15,19355696-12399015,-835,Longueville Court,Care Establishment,2 - Commissioning - Older people Pool,Older People Mental Health Hunts,Nursing Independent Sector
Cambridgeshire County Council,20-Nov-15,19355699-12399018,-835,Longueville Court,Care Establishment,2 - Commissioning - Older people Pool,Older People Mental Health Hunts,Nursing Independent Sector
Cambridgeshire County Council,20-Nov-15,19355700-12399019,-835,Longueville Court,Care Establishment,2 - Commissioning - Older people Pool,Older People Mental Health Hunts,Nursing Independent Sector
Cambridgeshire County Council,20-Nov-15,19355702-12399021,-835,Longueville Court,Care Establishment,2 - Commissioning - Older people Pool,Older People Mental Health Hunts,Nursing Independent Sector
Cambridgeshire County Council,20-Nov-15,19355705-12399024,-835,Longueville Court,Care Establishment,2 - Commissioning - Older people Pool,Older People Mental Health Hunts,Nursing Independent Sector
Cambridgeshire County Council,20-Nov-15,19355706-12399025,-835,Longueville Court,Care Establishment,2 - Commissioning - Older people Pool,Older People Mental Health Hunts,Nursing Independent Sector
Cambridgeshire County Council,20-Nov-15,19380474-12399030,-835,Longueville Court,Care Establishment,2 - Commissioning - Older people Pool,Older People Mental Health Hunts,Nursing Independent Sector
Cambridgeshire County Council,20-Nov-15,19380475-12399031,-835,Longueville Court,Care Establishment,2 - Commissioning - Older people Pool,Older People Mental Health Hunts,Nursing Independent Sector
Cambridgeshire County Council,20-Nov-15,19380476-12399032,-835,Longueville Court,Care Establishment,2 - Commissioning - Older people Pool,Older People Mental Health Hunts,Nursing Independent Sector
Cambridgeshire County Council,20-Nov-15,19380478-12399033,-835,Longueville Court,Care Establishment,2 - Commissioning - Older people Pool,Older People Mental Health Hunts,Nursing Independent Sector
Cambridgeshire County Council,20-Nov-15,19380479-12399034,-835,Longueville Court,Care Establishment,2 - Commissioning - Older people Pool,Older People Mental Health Hunts,Nursing Independent Sector
Cambridgeshire County Council,20-Nov-15,19380487-12399039,-835,Longueville Court,Care Establishment,2 - Commissioning - Older people Pool,Older People Mental Health Hunts,Nursing Independent Sector
Cambridgeshire County Council,20-Nov-15,19380488-12399040,-835,Longueville Court,Care Establishment,2 - Commissioning - Older people Pool,Older People Mental Health Hunts,Nursing Independent Sector
Cambridgeshire County Council,20-Nov-15,19380489-12399041,-835,Longueville Court,Care Establishment,2 - Commissioning - Older people Pool,Older People Mental Health Hunts,Nursing Independent Sector
Cambridgeshire County Council,20-Nov-15,19380491-12399043,-835,Longueville Court,Care Establishment,2 - Commissioning - Older people Pool,Older People Mental Health Hunts,Nursing Independent Sector
Cambridgeshire County Council,20-Nov-15,19380493-12399045,-835,Longueville Court,Care Establishment,2 - Commissioning - Older people Pool,Older People Mental Health Hunts,Nursing Independent Sector
Cambridgeshire County Council,20-Nov-15,19380494-12399046,-835,Longueville Court,Care Establishment,2 - Commissioning - Older people Pool,Older People Mental Health Hunts,Nursing Independent Sector
Cambridgeshire County Council,20-Nov-15,19380495-12399047,-835,Longueville Court,Care Establishment,2 - Commissioning - Older people Pool,Older People Mental Health Hunts,Nursing Independent Sector
Cambridgeshire County Council,20-Nov-15,19385567-12399048,-835,Longueville Court,Care Establishment,2 - Commissioning - Older people Pool,Older People Mental Health Hunts,Nursing Independent Sector
Cambridgeshire County Council,20-Nov-15,19385568-12399049,-835,Longueville Court,Care Establishment,2 - Commissioning - Older people Pool,Older People Mental Health Hunts,Nursing Independent Sector
Cambridgeshire County Council,20-Nov-15,19385569-12399050,-835,Longueville Court,Care Establishment,2 - Commissioning - Older people Pool,Older People Mental Health Hunts,Nursing Independent Sector
Cambridgeshire County Council,20-Nov-15,19385570-12399051,-835,Longueville Court,Care Establishment,2 - Commissioning - Older people Pool,Older People Mental Health Hunts,Nursing Independent Sector
Cambridgeshire County Council,20-Nov-15,19385574-12399054,-835,Longueville Court,Care Establishment,2 - Commissioning - Older people Pool,Older People Mental Health Hunts,Nursing Independent Sector
Cambridgeshire County Council,20-Nov-15,19385577-12399057,-835,Longueville Court,Care Establishment,2 - Commissioning - Older people Pool,Older People Mental Health Hunts,Nursing Independent Sector
Cambridgeshire County Council,20-Nov-15,19385578-12399058,-835,Longueville Court,Care Establishment,2 - Commissioning - Older people Pool,Older People Mental Health Hunts,Nursing Independent Sector
Cambridgeshire County Council,20-Nov-15,19385580-12399059,-835,Longueville Court,Care Establishment,2 - Commissioning - Older people Pool,Older People Mental Health Hunts,Nursing Independent Sector
Cambridgeshire County Council,20-Nov-15,19385588-12399066,-835,Longueville Court,Care Establishment,2 - Commissioning - Older people Pool,Older People Mental Health Hunts,Nursing Independent Sector
Cambridgeshire County Council,20-Nov-15,19385594-12399070,-835,Longueville Court,Care Establishment,2 - Commissioning - Older people Pool,Older People Mental Health Hunts,Nursing Independent Sector
Cambridgeshire County Council,20-Nov-15,19385597-12399071,-835,Longueville Court,Care Establishment,2 - Commissioning - Older people Pool,Older People Mental Health Hunts,Nursing Independent Sector
Cambridgeshire County Council,20-Nov-15,19385599-12399073,-835,Longueville Court,Care Establishment,2 - Commissioning - Older people Pool,Older People Mental Health Hunts,Nursing Independent Sector
Cambridgeshire County Council,20-Nov-15,19385606-12399078,-835,Longueville Court,Care Establishment,2 - Commissioning - Older people Pool,Older People Mental Health Hunts,Nursing Independent Sector
Cambridgeshire County Council,20-Nov-15,19405163-12399080,-835,Longueville Court,Care Establishment,2 - Commissioning - Older people Pool,Older People Mental Health Hunts,Nursing Independent Sector
Cambridgeshire County Council,20-Nov-15,19405164-12399081,-835,Longueville Court,Care Establishment,2 - Commissioning - Older people Pool,Older People Mental Health Hunts,Nursing Independent Sector
Cambridgeshire County Council,20-Nov-15,19405169-12399083,-835,Longueville Court,Care Establishment,2 - Commissioning - Older people Pool,Older People Mental Health Hunts,Nursing Independent Sector
Cambridgeshire County Council,20-Nov-15,19405175-12399087,-835,Longueville Court,Care Establishment,2 - Commissioning - Older people Pool,Older People Mental Health Hunts,Nursing Independent Sector
Cambridgeshire County Council,20-Nov-15,19405176-12399088,-835,Longueville Court,Care Establishment,2 - Commissioning - Older people Pool,Older People Mental Health Hunts,Nursing Independent Sector
Cambridgeshire County Council,20-Nov-15,19405178-12399090,-835,Longueville Court,Care Establishment,2 - Commissioning - Older people Pool,Older People Mental Health Hunts,Nursing Independent Sector
Cambridgeshire County Council,20-Nov-15,19405179-12399091,-835,Longueville Court,Care Establishment,2 - Commissioning - Older people Pool,Older People Mental Health Hunts,Nursing Independent Sector
Cambridgeshire County Council,20-Nov-15,19405184-12399094,-835,Longueville Court,Care Establishment,2 - Commissioning - Older people Pool,Older People Mental Health Hunts,Nursing Independent Sector
Cambridgeshire County Council,20-Nov-15,19405189-12399096,-835,Longueville Court,Care Establishment,2 - Commissioning - Older people Pool,Older People Mental Health Hunts,Nursing Independent Sector
Cambridgeshire County Council,20-Nov-15,19405196-12398905,-835,Longueville Court,Care Establishment,2 - Commissioning - Older people Pool,Older People Mental Health Hunts,Nursing Independent Sector
Cambridgeshire County Council,20-Nov-15,19413406-12398909,-835,Longueville Court,Care Establishment,2 - Commissioning - Older people Pool,Older People Mental Health Hunts,Nursing Independent Sector
Cambridgeshire County Council,20-Nov-15,19413407-12398910,-835,Longueville Court,Care Establishment,2 - Commissioning - Older people Pool,Older People Mental Health Hunts,Nursing Independent Sector
Cambridgeshire County Council,20-Nov-15,19413409-12398912,-835,Longueville Court,Care Establishment,2 - Commissioning - Older people Pool,Older People Mental Health Hunts,Nursing Independent Sector
Cambridgeshire County Council,20-Nov-15,19413416-12398915,-835,Longueville Court,Care Establishment,2 - Commissioning - Older people Pool,Older People Mental Health Hunts,Nursing Independent Sector
Cambridgeshire County Council,20-Nov-15,19413417-12398916,-835,Longueville Court,Care Establishment,2 - Commissioning - Older people Pool,Older People Mental Health Hunts,Nursing Independent Sector
Cambridgeshire County Council,20-Nov-15,19413418-12398917,-835,Longueville Court,Care Establishment,2 - Commissioning - Older people Pool,Older People Mental Health Hunts,Nursing Independent Sector
Cambridgeshire County Council,20-Nov-15,19413420-12398962,-835,Longueville Court,Care Establishment,2 - Commissioning - Older people Pool,Older People Mental Health Hunts,Nursing Independent Sector
Cambridgeshire County Council,20-Nov-15,19413424-12398965,-835,Longueville Court,Care Establishment,2 - Commissioning - Older people Pool,Older People Mental Health Hunts,Nursing Independent Sector
Cambridgeshire County Council,20-Nov-15,19413426-12398967,-835,Longueville Court,Care Establishment,2 - Commissioning - Older people Pool,Older People Mental Health Hunts,Nursing Independent Sector
Cambridgeshire County Council,20-Nov-15,19413428-12398968,-835,Longueville Court,Care Establishment,2 - Commissioning - Older people Pool,Older People Mental Health Hunts,Nursing Independent Sector
Cambridgeshire County Council,20-Nov-15,19413429-12398969,-835,Longueville Court,Care Establishment,2 - Commissioning - Older people Pool,Older People Mental Health Hunts,Nursing Independent Sector
Cambridgeshire County Council,20-Nov-15,19413433-12398970,-835,Longueville Court,Care Establishment,2 - Commissioning - Older people Pool,Older People Mental Health Hunts,Nursing Independent Sector
Cambridgeshire County Council,20-Nov-15,19413439-12398973,-835,Longueville Court,Care Establishment,2 - Commissioning - Older people Pool,Older People Mental Health Hunts,Nursing Independent Sector
Cambridgeshire County Council,20-Nov-15,19413442-12398975,-835,Longueville Court,Care Establishment,2 - Commissioning - Older people Pool,Older People Mental Health Hunts,Nursing Independent Sector
Cambridgeshire County Council,20-Nov-15,19413443-12398976,-835,Longueville Court,Care Establishment,2 - Commissioning - Older people Pool,Older People Mental Health Hunts,Nursing Independent Sector
Cambridgeshire County Council,20-Nov-15,19439203-12398919,-835,Longueville Court,Care Establishment,2 - Commissioning - Older people Pool,Older People Mental Health Hunts,Nursing Independent Sector
Cambridgeshire County Council,20-Nov-15,19439204-12398920,-835,Longueville Court,Care Establishment,2 - Commissioning - Older people Pool,Older People Mental Health Hunts,Nursing Independent Sector
Cambridgeshire County Council,20-Nov-15,19439206-12398922,-835,Longueville Court,Care Establishment,2 - Commissioning - Older people Pool,Older People Mental Health Hunts,Nursing Independent Sector
Cambridgeshire County Council,20-Nov-15,19439207-12398923,-835,Longueville Court,Care Establishment,2 - Commissioning - Older people Pool,Older People Mental Health Hunts,Nursing Independent Sector
Cambridgeshire County Council,20-Nov-15,19439209-12398925,-835,Longueville Court,Care Establishment,2 - Commissioning - Older people Pool,Older People Mental Health Hunts,Nursing Independent Sector
Cambridgeshire County Council,20-Nov-15,19439210-12398926,-835,Longueville Court,Care Establishment,2 - Commissioning - Older people Pool,Older People Mental Health Hunts,Nursing Independent Sector
Cambridgeshire County Council,20-Nov-15,19439212-12398928,-835,Longueville Court,Care Establishment,2 - Commissioning - Older people Pool,Older People Mental Health Hunts,Nursing Independent Sector
Cambridgeshire County Council,20-Nov-15,19439705-12398930,-835,Longueville Court,Care Establishment,2 - Commissioning - Older people Pool,Older People Mental Health Hunts,Nursing Independent Sector
Cambridgeshire County Council,20-Nov-15,19439708-12398943,-835,Longueville Court,Care Establishment,2 - Commissioning - Older people Pool,Older People Mental Health Hunts,Nursing Independent Sector
Cambridgeshire County Council,20-Nov-15,19439709-12398944,-835,Longueville Court,Care Establishment,2 - Commissioning - Older people Pool,Older People Mental Health Hunts,Nursing Independent Sector
Cambridgeshire County Council,20-Nov-15,19439713-12398946,-835,Longueville Court,Care Establishment,2 - Commissioning - Older people Pool,Older People Mental Health Hunts,Nursing Independent Sector
Cambridgeshire County Council,20-Nov-15,19439714-12398947,-835,Longueville Court,Care Establishment,2 - Commissioning - Older people Pool,Older People Mental Health Hunts,Nursing Independent Sector
Cambridgeshire County Council,20-Nov-15,19439719-12398952,-835,Longueville Court,Care Establishment,2 - Commissioning - Older people Pool,Older People Mental Health Hunts,Nursing Independent Sector
Cambridgeshire County Council,20-Nov-15,19439724-12398955,-835,Longueville Court,Care Establishment,2 - Commissioning - Older people Pool,Older People Mental Health Hunts,Nursing Independent Sector
Cambridgeshire County Council,20-Nov-15,19439725-12398956,-835,Longueville Court,Care Establishment,2 - Commissioning - Older people Pool,Older People Mental Health Hunts,Nursing Independent Sector
Cambridgeshire County Council,20-Nov-15,19439727-12398958,-835,Longueville Court,Care Establishment,2 - Commissioning - Older people Pool,Older People Mental Health Hunts,Nursing Independent Sector
Cambridgeshire County Council,20-Nov-15,19439731-12398932,-835,Longueville Court,Care Establishment,2 - Commissioning - Older people Pool,Older People Mental Health Hunts,Nursing Independent Sector
Cambridgeshire County Council,20-Nov-15,19439732-12398933,-835,Longueville Court,Care Establishment,2 - Commissioning - Older people Pool,Older People Mental Health Hunts,Nursing Independent Sector
Cambridgeshire County Council,20-Nov-15,19439733-12398934,-835,Longueville Court,Care Establishment,2 - Commissioning - Older people Pool,Older People Mental Health Hunts,Nursing Independent Sector
Cambridgeshire County Council,20-Nov-15,19439735-12398936,-835,Longueville Court,Care Establishment,2 - Commissioning - Older people Pool,Older People Mental Health Hunts,Nursing Independent Sector
Cambridgeshire County Council,20-Nov-15,19439738-12398939,-835,Longueville Court,Care Establishment,2 - Commissioning - Older people Pool,Older People Mental Health Hunts,Nursing Independent Sector
Cambridgeshire County Council,20-Nov-15,19439741-12398942,-835,Longueville Court,Care Establishment,2 - Commissioning - Older people Pool,Older People Mental Health Hunts,Nursing Independent Sector
Cambridgeshire County Council,20-Nov-15,19443949-12398889,-835,Longueville Court,Care Establishment,2 - Commissioning - Older people Pool,Older People Mental Health Hunts,Nursing Independent Sector
Cambridgeshire County Council,20-Nov-15,19443951-12398891,-835,Longueville Court,Care Establishment,2 - Commissioning - Older people Pool,Older People Mental Health Hunts,Nursing Independent Sector
Cambridgeshire County Council,20-Nov-15,19443960-12398899,-835,Longueville Court,Care Establishment,2 - Commissioning - Older people Pool,Older People Mental Health Hunts,Nursing Independent Sector
Cambridgeshire County Council,20-Nov-15,19470853-12398839,-835,Longueville Court,Care Establishment,2 - Commissioning - Older people Pool,Older People Mental Health Hunts,Nursing Independent Sector
Cambridgeshire County Council,20-Nov-15,19470858-12398844,-835,Longueville Court,Care Establishment,2 - Commissioning - Older people Pool,Older People Mental Health Hunts,Nursing Independent Sector
Cambridgeshire County Council,20-Nov-15,19470860-12398846,-835,Longueville Court,Care Establishment,2 - Commissioning - Older people Pool,Older People Mental Health Hunts,Nursing Independent Sector
Cambridgeshire County Council,20-Nov-15,19470863-12398849,-835,Longueville Court,Care Establishment,2 - Commissioning - Older people Pool,Older People Mental Health Hunts,Nursing Independent Sector
Cambridgeshire County Council,20-Nov-15,19470864-12398850,-835,Longueville Court,Care Establishment,2 - Commissioning - Older people Pool,Older People Mental Health Hunts,Nursing Independent Sector
Cambridgeshire County Council,20-Nov-15,19470866-12398852,-835,Longueville Court,Care Establishment,2 - Commissioning - Older people Pool,Older People Mental Health Hunts,Nursing Independent Sector
Cambridgeshire County Council,20-Nov-15,19470871-12398857,-835,Longueville Court,Care Establishment,2 - Commissioning - Older people Pool,Older People Mental Health Hunts,Nursing Independent Sector
Cambridgeshire County Council,20-Nov-15,19470872-12398858,-835,Longueville Court,Care Establishment,2 - Commissioning - Older people Pool,Older People Mental Health Hunts,Nursing Independent Sector
Cambridgeshire County Council,20-Nov-15,19470875-12398861,-835,Longueville Court,Care Establishment,2 - Commissioning - Older people Pool,Older People Mental Health Hunts,Nursing Independent Sector
Cambridgeshire County Council,20-Nov-15,19470876-12398862,-835,Longueville Court,Care Establishment,2 - Commissioning - Older people Pool,Older People Mental Health Hunts,Nursing Independent Sector
Cambridgeshire County Council,20-Nov-15,19470877-12398863,-835,Longueville Court,Care Establishment,2 - Commissioning - Older people Pool,Older People Mental Health Hunts,Nursing Independent Sector
Cambridgeshire County Council,20-Nov-15,19470879-12398865,-835,Longueville Court,Care Establishment,2 - Commissioning - Older people Pool,Older People Mental Health Hunts,Nursing Independent Sector
Cambridgeshire County Council,20-Nov-15,19470881-12398867,-835,Longueville Court,Care Establishment,2 - Commissioning - Older people Pool,Older People Mental Health Hunts,Nursing Independent Sector
Cambridgeshire County Council,20-Nov-15,19470883-12398869,-835,Longueville Court,Care Establishment,2 - Commissioning - Older people Pool,Older People Mental Health Hunts,Nursing Independent Sector
Cambridgeshire County Council,20-Nov-15,19470884-12398870,-835,Longueville Court,Care Establishment,2 - Commissioning - Older people Pool,Older People Mental Health Hunts,Nursing Independent Sector
Cambridgeshire County Council,20-Nov-15,19470886-12398872,-835,Longueville Court,Care Establishment,2 - Commissioning - Older people Pool,Older People Mental Health Hunts,Nursing Independent Sector
Cambridgeshire County Council,20-Nov-15,19470887-12398873,-835,Longueville Court,Care Establishment,2 - Commissioning - Older people Pool,Older People Mental Health Hunts,Nursing Independent Sector
Cambridgeshire County Council,20-Nov-15,19470888-12398874,-835,Longueville Court,Care Establishment,2 - Commissioning - Older people Pool,Older People Mental Health Hunts,Nursing Independent Sector
Cambridgeshire County Council,20-Nov-15,19470889-12398875,-835,Longueville Court,Care Establishment,2 - Commissioning - Older people Pool,Older People Mental Health Hunts,Nursing Independent Sector
Cambridgeshire County Council,20-Nov-15,19470890-12398876,-835,Longueville Court,Care Establishment,2 - Commissioning - Older people Pool,Older People Mental Health Hunts,Nursing Independent Sector
Cambridgeshire County Council,20-Nov-15,19470894-12398880,-835,Longueville Court,Care Establishment,2 - Commissioning - Older people Pool,Older People Mental Health Hunts,Nursing Independent Sector
Cambridgeshire County Council,20-Nov-15,19470895-12398881,-835,Longueville Court,Care Establishment,2 - Commissioning - Older people Pool,Older People Mental Health Hunts,Nursing Independent Sector
Cambridgeshire County Council,20-Nov-15,19470898-12398884,-835,Longueville Court,Care Establishment,2 - Commissioning - Older people Pool,Older People Mental Health Hunts,Nursing Independent Sector
Cambridgeshire County Council,20-Nov-15,19470900-12398886,-835,Longueville Court,Care Establishment,2 - Commissioning - Older people Pool,Older People Mental Health Hunts,Nursing Independent Sector
Cambridgeshire County Council,20-Nov-15,19470902-12398836,-835,Longueville Court,Care Establishment,2 - Commissioning - Older people Pool,Older People Mental Health Hunts,Nursing Independent Sector
Cambridgeshire County Council,20-Nov-15,19486455-12399238,-835,Longueville Court,Care Establishment,2 - Commissioning - Older people Pool,Older People Mental Health Hunts,Nursing Independent Sector
Cambridgeshire County Council,20-Nov-15,19486457-12399240,-835,Longueville Court,Care Establishment,2 - Commissioning - Older people Pool,Older People Mental Health Hunts,Nursing Independent Sector
Cambridgeshire County Council,20-Nov-15,19486460-12399243,-835,Longueville Court,Care Establishment,2 - Commissioning - Older people Pool,Older People Mental Health Hunts,Nursing Independent Sector
Cambridgeshire County Council,20-Nov-15,19486461-12399244,-835,Longueville Court,Care Establishment,2 - Commissioning - Older people Pool,Older People Mental Health Hunts,Nursing Independent Sector
Cambridgeshire County Council,20-Nov-15,19486462-12399245,-835,Longueville Court,Care Establishment,2 - Commissioning - Older people Pool,Older People Mental Health Hunts,Nursing Independent Sector
Cambridgeshire County Council,20-Nov-15,19486465-12399247,-835,Longueville Court,Care Establishment,2 - Commissioning - Older people Pool,Older People Mental Health Hunts,Nursing Independent Sector
Cambridgeshire County Council,20-Nov-15,19486467-12399248,-835,Longueville Court,Care Establishment,2 - Commissioning - Older people Pool,Older People Mental Health Hunts,Nursing Independent Sector
Cambridgeshire County Council,20-Nov-15,19486468-12399249,-835,Longueville Court,Care Establishment,2 - Commissioning - Older people Pool,Older People Mental Health Hunts,Nursing Independent Sector
Cambridgeshire County Council,20-Nov-15,19486474-12399203,-835,Longueville Court,Care Establishment,2 - Commissioning - Older people Pool,Older People Mental Health Hunts,Nursing Independent Sector
Cambridgeshire County Council,20-Nov-15,19486478-12399206,-835,Longueville Court,Care Establishment,2 - Commissioning - Older people Pool,Older People Mental Health Hunts,Nursing Independent Sector
Cambridgeshire County Council,20-Nov-15,19486480-12399207,-835,Longueville Court,Care Establishment,2 - Commissioning - Older people Pool,Older People Mental Health Hunts,Nursing Independent Sector
Cambridgeshire County Council,20-Nov-15,19486482-12399209,-835,Longueville Court,Care Establishment,2 - Commissioning - Older people Pool,Older People Mental Health Hunts,Nursing Independent Sector
Cambridgeshire County Council,20-Nov-15,19486483-12399210,-835,Longueville Court,Care Establishment,2 - Commissioning - Older people Pool,Older People Mental Health Hunts,Nursing Independent Sector
Cambridgeshire County Council,20-Nov-15,19486484-12399211,-835,Longueville Court,Care Establishment,2 - Commissioning - Older people Pool,Older People Mental Health Hunts,Nursing Independent Sector
Cambridgeshire County Council,20-Nov-15,19486486-12399212,-835,Longueville Court,Care Establishment,2 - Commissioning - Older people Pool,Older People Mental Health Hunts,Nursing Independent Sector
Cambridgeshire County Council,20-Nov-15,19486487-12399213,-835,Longueville Court,Care Establishment,2 - Commissioning - Older people Pool,Older People Mental Health Hunts,Nursing Independent Sector
Cambridgeshire County Council,20-Nov-15,19486489-12399215,-835,Longueville Court,Care Establishment,2 - Commissioning - Older people Pool,Older People Mental Health Hunts,Nursing Independent Sector
Cambridgeshire County Council,20-Nov-15,19486494-12399218,-835,Longueville Court,Care Establishment,2 - Commissioning - Older people Pool,Older People Mental Health Hunts,Nursing Independent Sector
Cambridgeshire County Council,20-Nov-15,19486495-12399219,-835,Longueville Court,Care Establishment,2 - Commissioning - Older people Pool,Older People Mental Health Hunts,Nursing Independent Sector
Cambridgeshire County Council,20-Nov-15,19486497-12399220,-835,Longueville Court,Care Establishment,2 - Commissioning - Older people Pool,Older People Mental Health Hunts,Nursing Independent Sector
Cambridgeshire County Council,20-Nov-15,19486501-12399222,-835,Longueville Court,Care Establishment,2 - Commissioning - Older people Pool,Older People Mental Health Hunts,Nursing Independent Sector
Cambridgeshire County Council,20-Nov-15,19486503-12399224,-835,Longueville Court,Care Establishment,2 - Commissioning - Older people Pool,Older People Mental Health Hunts,Nursing Independent Sector
Cambridgeshire County Council,20-Nov-15,19486505-12399226,-835,Longueville Court,Care Establishment,2 - Commissioning - Older people Pool,Older People Mental Health Hunts,Nursing Independent Sector
Cambridgeshire County Council,20-Nov-15,19486506-12399227,-835,Longueville Court,Care Establishment,2 - Commissioning - Older people Pool,Older People Mental Health Hunts,Nursing Independent Sector
Cambridgeshire County Council,20-Nov-15,19486515-12399233,-835,Longueville Court,Care Establishment,2 - Commissioning - Older people Pool,Older People Mental Health Hunts,Nursing Independent Sector
Cambridgeshire County Council,20-Nov-15,19521186-12399166,-835,Longueville Court,Care Establishment,2 - Commissioning - Older people Pool,Older People Mental Health Hunts,Nursing Independent Sector
Cambridgeshire County Council,20-Nov-15,19522006-12399167,-835,Longueville Court,Care Establishment,2 - Commissioning - Older people Pool,Older People Mental Health Hunts,Nursing Independent Sector
Cambridgeshire County Council,20-Nov-15,19522007-12399168,-835,Longueville Court,Care Establishment,2 - Commissioning - Older people Pool,Older People Mental Health Hunts,Nursing Independent Sector
Cambridgeshire County Council,20-Nov-15,19522011-12399170,-835,Longueville Court,Care Establishment,2 - Commissioning - Older people Pool,Older People Mental Health Hunts,Nursing Independent Sector
Cambridgeshire County Council,20-Nov-15,19522016-12399174,-835,Longueville Court,Care Establishment,2 - Commissioning - Older people Pool,Older People Mental Health Hunts,Nursing Independent Sector
Cambridgeshire County Council,20-Nov-15,19522020-12399176,-835,Longueville Court,Care Establishment,2 - Commissioning - Older people Pool,Older People Mental Health Hunts,Nursing Independent Sector
Cambridgeshire County Council,20-Nov-15,19522021-12399177,-835,Longueville Court,Care Establishment,2 - Commissioning - Older people Pool,Older People Mental Health Hunts,Nursing Independent Sector
Cambridgeshire County Council,20-Nov-15,19522022-12399178,-835,Longueville Court,Care Establishment,2 - Commissioning - Older people Pool,Older People Mental Health Hunts,Nursing Independent Sector
Cambridgeshire County Council,20-Nov-15,19522023-12399179,-835,Longueville Court,Care Establishment,2 - Commissioning - Older people Pool,Older People Mental Health Hunts,Nursing Independent Sector
Cambridgeshire County Council,20-Nov-15,19522034-12399184,-835,Longueville Court,Care Establishment,2 - Commissioning - Older people Pool,Older People Mental Health Hunts,Nursing Independent Sector
Cambridgeshire County Council,20-Nov-15,19522036-12399186,-835,Longueville Court,Care Establishment,2 - Commissioning - Older people Pool,Older People Mental Health Hunts,Nursing Independent Sector
Cambridgeshire County Council,20-Nov-15,19522037-12399187,-835,Longueville Court,Care Establishment,2 - Commissioning - Older people Pool,Older People Mental Health Hunts,Nursing Independent Sector
Cambridgeshire County Council,20-Nov-15,19522039-12399188,-835,Longueville Court,Care Establishment,2 - Commissioning - Older people Pool,Older People Mental Health Hunts,Nursing Independent Sector
Cambridgeshire County Council,20-Nov-15,19522042-12399191,-835,Longueville Court,Care Establishment,2 - Commissioning - Older people Pool,Older People Mental Health Hunts,Nursing Independent Sector
Cambridgeshire County Council,20-Nov-15,19522054-12399198,-835,Longueville Court,Care Establishment,2 - Commissioning - Older people Pool,Older People Mental Health Hunts,Nursing Independent Sector
Cambridgeshire County Council,20-Nov-15,19522064-12399202,-835,Longueville Court,Care Establishment,2 - Commissioning - Older people Pool,Older People Mental Health Hunts,Nursing Independent Sector
Cambridgeshire County Council,20-Nov-15,19522069-12399152,-835,Longueville Court,Care Establishment,2 - Commissioning - Older people Pool,Older People Mental Health Hunts,Nursing Independent Sector
Cambridgeshire County Council,20-Nov-15,19522074-12399154,-835,Longueville Court,Care Establishment,2 - Commissioning - Older people Pool,Older People Mental Health Hunts,Nursing Independent Sector
Cambridgeshire County Council,20-Nov-15,19522076-12399156,-835,Longueville Court,Care Establishment,2 - Commissioning - Older people Pool,Older People Mental Health Hunts,Nursing Independent Sector
Cambridgeshire County Council,20-Nov-15,19522077-12399157,-835,Longueville Court,Care Establishment,2 - Commissioning - Older people Pool,Older People Mental Health Hunts,Nursing Independent Sector
Cambridgeshire County Council,20-Nov-15,19522078-12399158,-835,Longueville Court,Care Establishment,2 - Commissioning - Older people Pool,Older People Mental Health Hunts,Nursing Independent Sector
Cambridgeshire County Council,20-Nov-15,19522079-12399159,-835,Longueville Court,Care Establishment,2 - Commissioning - Older people Pool,Older People Mental Health Hunts,Nursing Independent Sector
Cambridgeshire County Council,20-Nov-15,19522081-12399160,-835,Longueville Court,Care Establishment,2 - Commissioning - Older people Pool,Older People Mental Health Hunts,Nursing Independent Sector
Cambridgeshire County Council,20-Nov-15,19522082-12399161,-835,Longueville Court,Care Establishment,2 - Commissioning - Older people Pool,Older People Mental Health Hunts,Nursing Independent Sector
Cambridgeshire County Council,20-Nov-15,19522084-12399162,-835,Longueville Court,Care Establishment,2 - Commissioning - Older people Pool,Older People Mental Health Hunts,Nursing Independent Sector
Cambridgeshire County Council,20-Nov-15,19555894-12399130,-835,Longueville Court,Care Establishment,2 - Commissioning - Older people Pool,Older People Mental Health Hunts,Nursing Independent Sector
Cambridgeshire County Council,20-Nov-15,19555896-12399131,-835,Longueville Court,Care Establishment,2 - Commissioning - Older people Pool,Older People Mental Health Hunts,Nursing Independent Sector
Cambridgeshire County Council,20-Nov-15,19555899-12399134,-835,Longueville Court,Care Establishment,2 - Commissioning - Older people Pool,Older People Mental Health Hunts,Nursing Independent Sector
Cambridgeshire County Council,20-Nov-15,19555900-12399135,-835,Longueville Court,Care Establishment,2 - Commissioning - Older people Pool,Older People Mental Health Hunts,Nursing Independent Sector
Cambridgeshire County Council,20-Nov-15,19555902-12399137,-835,Longueville Court,Care Establishment,2 - Commissioning - Older people Pool,Older People Mental Health Hunts,Nursing Independent Sector
Cambridgeshire County Council,20-Nov-15,19555903-12399138,-835,Longueville Court,Care Establishment,2 - Commissioning - Older people Pool,Older People Mental Health Hunts,Nursing Independent Sector
Cambridgeshire County Council,20-Nov-15,19555904-12399139,-835,Longueville Court,Care Establishment,2 - Commissioning - Older people Pool,Older People Mental Health Hunts,Nursing Independent Sector
Cambridgeshire County Council,20-Nov-15,19555905-12399140,-835,Longueville Court,Care Establishment,2 - Commissioning - Older people Pool,Older People Mental Health Hunts,Nursing Independent Sector
Cambridgeshire County Council,20-Nov-15,19555913-12399146,-835,Longueville Court,Care Establishment,2 - Commissioning - Older people Pool,Older People Mental Health Hunts,Nursing Independent Sector
Cambridgeshire County Council,20-Nov-15,19555916-12399149,-835,Longueville Court,Care Establishment,2 - Commissioning - Older people Pool,Older People Mental Health Hunts,Nursing Independent Sector
Cambridgeshire County Council,20-Nov-15,19555917-12399150,-835,Longueville Court,Care Establishment,2 - Commissioning - Older people Pool,Older People Mental Health Hunts,Nursing Independent Sector
Cambridgeshire County Council,20-Nov-15,19555921-12399106,-835,Longueville Court,Care Establishment,2 - Commissioning - Older people Pool,Older People Mental Health Hunts,Nursing Independent Sector
Cambridgeshire County Council,20-Nov-15,19556056-12399107,-835,Longueville Court,Care Establishment,2 - Commissioning - Older people Pool,Older People Mental Health Hunts,Nursing Independent Sector
Cambridgeshire County Council,20-Nov-15,19556060-12399110,-835,Longueville Court,Care Establishment,2 - Commissioning - Older people Pool,Older People Mental Health Hunts,Nursing Independent Sector
Cambridgeshire County Council,20-Nov-15,19556061-12399111,-835,Longueville Court,Care Establishment,2 - Commissioning - Older people Pool,Older People Mental Health Hunts,Nursing Independent Sector
Cambridgeshire County Council,20-Nov-15,19556068-12399116,-835,Longueville Court,Care Establishment,2 - Commissioning - Older people Pool,Older People Mental Health Hunts,Nursing Independent Sector
Cambridgeshire County Council,20-Nov-15,19556071-12399119,-835,Longueville Court,Care Establishment,2 - Commissioning - Older people Pool,Older People Mental Health Hunts,Nursing Independent Sector
Cambridgeshire County Council,20-Nov-15,19556078-12399125,-835,Longueville Court,Care Establishment,2 - Commissioning - Older people Pool,Older People Mental Health Hunts,Nursing Independent Sector
Cambridgeshire County Council,20-Nov-15,19556083-12399128,-835,Longueville Court,Care Establishment,2 - Commissioning - Older people Pool,Older People Mental Health Hunts,Nursing Independent Sector
Cambridgeshire County Council,20-Nov-15,19559500-12399255,-835,Longueville Court,Care Establishment,2 - Commissioning - Older people Pool,Older People Mental Health Hunts,Nursing Independent Sector
Cambridgeshire County Council,20-Nov-15,19559503-12399258,-835,Longueville Court,Care Establishment,2 - Commissioning - Older people Pool,Older People Mental Health Hunts,Nursing Independent Sector
Cambridgeshire County Council,20-Nov-15,19559504-12399259,-835,Longueville Court,Care Establishment,2 - Commissioning - Older people Pool,Older People Mental Health Hunts,Nursing Independent Sector
Cambridgeshire County Council,20-Nov-15,19559506-12399261,-835,Longueville Court,Care Establishment,2 - Commissioning - Older people Pool,Older People Mental Health Hunts,Nursing Independent Sector
Cambridgeshire County Council,20-Nov-15,19559508-12399262,-835,Longueville Court,Care Establishment,2 - Commissioning - Older people Pool,Older People Mental Health Hunts,Nursing Independent Sector
Cambridgeshire County Council,20-Nov-15,19559509-12399263,-835,Longueville Court,Care Establishment,2 - Commissioning - Older people Pool,Older People Mental Health Hunts,Nursing Independent Sector
Cambridgeshire County Council,27-Nov-15,19585091-12430913,-835,Longueville Court,Care Establishment,2 - Commissioning - Older people Pool,Older People Mental Health Hunts,Nursing Independent Sector
Cambridgeshire County Council,27-Nov-15,19585094-12430916,-835,Longueville Court,Care Establishment,2 - Commissioning - Older people Pool,Older People Mental Health Hunts,Nursing Independent Sector
Cambridgeshire County Council,27-Nov-15,19585095-12430917,-835,Longueville Court,Care Establishment,2 - Commissioning - Older people Pool,Older People Mental Health Hunts,Nursing Independent Sector
Cambridgeshire County Council,27-Nov-15,19585098-12430920,-835,Longueville Court,Care Establishment,2 - Commissioning - Older people Pool,Older People Mental Health Hunts,Nursing Independent Sector
Cambridgeshire County Council,27-Nov-15,19585100-12430922,-835,Longueville Court,Care Establishment,2 - Commissioning - Older people Pool,Older People Mental Health Hunts,Nursing Independent Sector
Cambridgeshire County Council,27-Nov-15,19585102-12430924,-835,Longueville Court,Care Establishment,2 - Commissioning - Older people Pool,Older People Mental Health Hunts,Nursing Independent Sector
Cambridgeshire County Council,27-Nov-15,19585103-12430925,-835,Longueville Court,Care Establishment,2 - Commissioning - Older people Pool,Older People Mental Health Hunts,Nursing Independent Sector
Cambridgeshire County Council,27-Nov-15,19585104-12430926,-835,Longueville Court,Care Establishment,2 - Commissioning - Older people Pool,Older People Mental Health Hunts,Nursing Independent Sector
Cambridgeshire County Council,27-Nov-15,19585106-12430928,-835,Longueville Court,Care Establishment,2 - Commissioning - Older people Pool,Older People Mental Health Hunts,Nursing Independent Sector
Cambridgeshire County Council,27-Nov-15,19585108-12430930,-835,Longueville Court,Care Establishment,2 - Commissioning - Older people Pool,Older People Mental Health Hunts,Nursing Independent Sector
Cambridgeshire County Council,27-Nov-15,19585111-12430933,-835,Longueville Court,Care Establishment,2 - Commissioning - Older people Pool,Older People Mental Health Hunts,Nursing Independent Sector
Cambridgeshire County Council,27-Nov-15,19585112-12430934,-835,Longueville Court,Care Establishment,2 - Commissioning - Older people Pool,Older People Mental Health Hunts,Nursing Independent Sector
Cambridgeshire County Council,27-Nov-15,19585113-12430935,-835,Longueville Court,Care Establishment,2 - Commissioning - Older people Pool,Older People Mental Health Hunts,Nursing Independent Sector
Cambridgeshire County Council,27-Nov-15,19585114-12430936,-835,Longueville Court,Care Establishment,2 - Commissioning - Older people Pool,Older People Mental Health Hunts,Nursing Independent Sector
Cambridgeshire County Council,27-Nov-15,19585116-12430938,-835,Longueville Court,Care Establishment,2 - Commissioning - Older people Pool,Older People Mental Health Hunts,Nursing Independent Sector
Cambridgeshire County Council,27-Nov-15,19585120-12430942,-835,Longueville Court,Care Establishment,2 - Commissioning - Older people Pool,Older People Mental Health Hunts,Nursing Independent Sector
Cambridgeshire County Council,27-Nov-15,19585123-12430945,-835,Longueville Court,Care Establishment,2 - Commissioning - Older people Pool,Older People Mental Health Hunts,Nursing Independent Sector
Cambridgeshire County Council,27-Nov-15,19585124-12430946,-835,Longueville Court,Care Establishment,2 - Commissioning - Older people Pool,Older People Mental Health Hunts,Nursing Independent Sector
Cambridgeshire County Council,27-Nov-15,19585126-12430948,-835,Longueville Court,Care Establishment,2 - Commissioning - Older people Pool,Older People Mental Health Hunts,Nursing Independent Sector
Cambridgeshire County Council,27-Nov-15,19585133-12430955,-835,Longueville Court,Care Establishment,2 - Commissioning - Older people Pool,Older People Mental Health Hunts,Nursing Independent Sector
Cambridgeshire County Council,27-Nov-15,19585136-12430958,-835,Longueville Court,Care Establishment,2 - Commissioning - Older people Pool,Older People Mental Health Hunts,Nursing Independent Sector
Cambridgeshire County Council,27-Nov-15,19585137-12430959,-835,Longueville Court,Care Establishment,2 - Commissioning - Older people Pool,Older People Mental Health Hunts,Nursing Independent Sector
Cambridgeshire County Council,27-Nov-15,19585138-12430960,-835,Longueville Court,Care Establishment,2 - Commissioning - Older people Pool,Older People Mental Health Hunts,Nursing Independent Sector
Cambridgeshire County Council,27-Nov-15,19585139-12430961,-835,Longueville Court,Care Establishment,2 - Commissioning - Older people Pool,Older People Mental Health Hunts,Nursing Independent Sector
Cambridgeshire County Council,27-Nov-15,19585141-12430963,-835,Longueville Court,Care Establishment,2 - Commissioning - Older people Pool,Older People Mental Health Hunts,Nursing Independent Sector
Cambridgeshire County Council,20-Nov-15,19384277-12395880,-822.45,The Gables (Nursing Care Only),Care Establishment,2 - Commissioning - Older people Pool,East Cambs - O P Team,Nursing Independent Sector
Cambridgeshire County Council,13-Nov-15,19470847-12372780,-820.31,Social Care Solutions Ltd,Care Establishment,2 - Operations - Learning Disability,LDP Hunts special needs,Supported Living
Cambridgeshire County Council,13-Nov-15,19532490-12360556,-810.11,Haddon House,Care Establishment,2 - Operations - Learning Disability,LDP Huntingdonshire Team,Residential Independent Sector
Cambridgeshire County Council,13-Nov-15,19529631-12360403,-802.27,Haddon House,Care Establishment,2 - Operations - Learning Disability,LDP Huntingdonshire Team,Residential Independent Sector
Cambridgeshire County Council,20-Nov-15,19353791-12399099,-800,Longueville Court,Care Establishment,3 - Operations - Countywide Services,Countywide PD Service,Respite Independent Sector
Cambridgeshire County Council,13-Nov-15,19470377-12355611,-798.44,Voyage (Lichfield),Care Establishment,2 - Operations - Learning Disability,LDP South Cambs Team,Day and Domicillary Care Independent Sector
Cambridgeshire County Council,13-Nov-15,19514329-12355309,-762.2,Brookdale Healthcare Limited,Care Establishment,2 - Operations - Learning Disability,LDP Huntingdonshire Team,Residential Independent Sector
Cambridgeshire County Council,05-Nov-15,19486036-12236287,-750,Redacted Personal Data,Individual,3 - Operations - Countywide Services,Countywide PD Service,SDS - Care and support Services
Cambridgeshire County Council,13-Nov-15,19525636-12361333,-741.08,Affinity Trust,Care Establishment,2 - Operations - Learning Disability,LDP Huntingdonshire Team,Day and Domicillary Care Independent Sector
Cambridgeshire County Council,05-Nov-15,19483228-12237275,-732.56,Alderton House,Care Establishment,2 - Operations - Learning Disability,LDP E Cambs Team,SDS - Care and support Services
Cambridgeshire County Council,05-Nov-15,19487209-12237293,-732.56,Alderton House,Care Establishment,2 - Operations - Learning Disability,LDP E Cambs Team,SDS - Care and support Services
Cambridgeshire County Council,05-Nov-15,19487210-12237294,-732.56,Alderton House,Care Establishment,2 - Operations - Learning Disability,LDP E Cambs Team,SDS - Care and support Services
Cambridgeshire County Council,05-Nov-15,19487214-12237298,-732.56,Alderton House,Care Establishment,2 - Operations - Learning Disability,LDP E Cambs Team,SDS - Care and support Services
Cambridgeshire County Council,05-Nov-15,19487216-12237300,-732.56,Alderton House,Care Establishment,2 - Operations - Learning Disability,LDP E Cambs Team,SDS - Care and support Services
Cambridgeshire County Council,05-Nov-15,19487217-12237301,-732.56,Alderton House,Care Establishment,2 - Operations - Learning Disability,LDP E Cambs Team,SDS - Care and support Services
Cambridgeshire County Council,05-Nov-15,19487220-12237304,-732.56,Alderton House,Care Establishment,2 - Operations - Learning Disability,LDP E Cambs Team,SDS - Care and support Services
Cambridgeshire County Council,05-Nov-15,19487221-12237305,-732.56,Alderton House,Care Establishment,2 - Operations - Learning Disability,LDP E Cambs Team,SDS - Care and support Services
Cambridgeshire County Council,05-Nov-15,19487223-12237307,-732.56,Alderton House,Care Establishment,2 - Operations - Learning Disability,LDP E Cambs Team,SDS - Care and support Services
Cambridgeshire County Council,05-Nov-15,19487224-12237308,-732.56,Alderton House,Care Establishment,2 - Operations - Learning Disability,LDP E Cambs Team,SDS - Care and support Services
Cambridgeshire County Council,05-Nov-15,19487225-12237309,-732.56,Alderton House,Care Establishment,2 - Operations - Learning Disability,LDP E Cambs Team,SDS - Care and support Services
Cambridgeshire County Council,05-Nov-15,19487226-12237310,-732.56,Alderton House,Care Establishment,2 - Operations - Learning Disability,LDP E Cambs Team,SDS - Care and support Services
Cambridgeshire County Council,05-Nov-15,19487228-12237312,-732.56,Alderton House,Care Establishment,2 - Operations - Learning Disability,LDP E Cambs Team,SDS - Care and support Services
Cambridgeshire County Council,05-Nov-15,19487230-12237314,-732.56,Alderton House,Care Establishment,2 - Operations - Learning Disability,LDP E Cambs Team,SDS - Care and support Services
Cambridgeshire County Council,05-Nov-15,19487232-12237316,-732.56,Alderton House,Care Establishment,2 - Operations - Learning Disability,LDP E Cambs Team,SDS - Care and support Services
Cambridgeshire County Council,05-Nov-15,19487235-12237319,-732.56,Alderton House,Care Establishment,2 - Operations - Learning Disability,LDP E Cambs Team,SDS - Care and support Services
Cambridgeshire County Council,05-Nov-15,19487238-12237322,-732.56,Alderton House,Care Establishment,2 - Operations - Learning Disability,LDP E Cambs Team,SDS - Care and support Services
Cambridgeshire County Council,05-Nov-15,19487239-12237323,-732.56,Alderton House,Care Establishment,2 - Operations - Learning Disability,LDP E Cambs Team,SDS - Care and support Services
Cambridgeshire County Council,05-Nov-15,19487240-12237324,-732.56,Alderton House,Care Establishment,2 - Operations - Learning Disability,LDP E Cambs Team,SDS - Care and support Services
Cambridgeshire County Council,05-Nov-15,19487242-12237326,-732.56,Alderton House,Care Establishment,2 - Operations - Learning Disability,LDP E Cambs Team,SDS - Care and support Services
Cambridgeshire County Council,05-Nov-15,19487244-12237328,-732.56,Alderton House,Care Establishment,2 - Operations - Learning Disability,LDP E Cambs Team,SDS - Care and support Services
Cambridgeshire County Council,05-Nov-15,19487247-12237276,-732.56,Alderton House,Care Establishment,2 - Operations - Learning Disability,LDP E Cambs Team,SDS - Care and support Services
Cambridgeshire County Council,05-Nov-15,19487251-12237280,-732.56,Alderton House,Care Establishment,2 - Operations - Learning Disability,LDP E Cambs Team,SDS - Care and support Services
Cambridgeshire County Council,05-Nov-15,19487252-12237281,-732.56,Alderton House,Care Establishment,2 - Operations - Learning Disability,LDP E Cambs Team,SDS - Care and support Services
Cambridgeshire County Council,05-Nov-15,19487253-12237282,-732.56,Alderton House,Care Establishment,2 - Operations - Learning Disability,LDP E Cambs Team,SDS - Care and support Services
Cambridgeshire County Council,05-Nov-15,19487258-12237287,-732.56,Alderton House,Care Establishment,2 - Operations - Learning Disability,LDP E Cambs Team,SDS - Care and support Services
Cambridgeshire County Council,05-Nov-15,19487261-12237290,-732.56,Alderton House,Care Establishment,2 - Operations - Learning Disability,LDP E Cambs Team,SDS - Care and support Services
Cambridgeshire County Council,05-Nov-15,19487263-12237292,-732.56,Alderton House,Care Establishment,2 - Operations - Learning Disability,LDP E Cambs Team,SDS - Care and support Services
Cambridgeshire County Council,13-Nov-15,19471941-12372766,-683.42,Social Care Solutions Ltd,Care Establishment,2 - Operations - Learning Disability,LDP Huntingdonshire Team,Day and Domicillary Care Independent Sector
Cambridgeshire County Council,13-Nov-15,19471942-12372767,-683.42,Social Care Solutions Ltd,Care Establishment,2 - Operations - Learning Disability,LDP Huntingdonshire Team,Day and Domicillary Care Independent Sector
Cambridgeshire County Council,13-Nov-15,19471944-12372769,-683.42,Social Care Solutions Ltd,Care Establishment,2 - Operations - Learning Disability,LDP Huntingdonshire Team,Day and Domicillary Care Independent Sector
Cambridgeshire County Council,19-Nov-15,19551000-12385743,-681.31,Southern Electric Plc,Trade Supplier,LGSS Managed,Bedford House Day Centre,Electricity
Cambridgeshire County Council,13-Nov-15,19471912-12366942,-677.7,St George'S Court,Care Establishment,2 - Commissioning - Older people Pool,Older People - City & South,Nursing Independent Sector
Cambridgeshire County Council,13-Nov-15,19468471-12363283,-675,Cottenham Court Nursing Home,Care Establishment,2 - Commissioning - Older people Pool,Older People - City & South,Nursing Independent Sector
Cambridgeshire County Council,13-Nov-15,19468472-12363284,-675,Cottenham Court Nursing Home,Care Establishment,2 - Commissioning - Older people Pool,Older People - City & South,Nursing Independent Sector
Cambridgeshire County Council,13-Nov-15,19468473-12363285,-675,Cottenham Court Nursing Home,Care Establishment,2 - Commissioning - Older people Pool,Older People - City & South,Nursing Independent Sector
Cambridgeshire County Council,13-Nov-15,19468474-12363286,-675,Cottenham Court Nursing Home,Care Establishment,2 - Commissioning - Older people Pool,Older People - City & South,Nursing Independent Sector
Cambridgeshire County Council,13-Nov-15,19468475-12363287,-675,Cottenham Court Nursing Home,Care Establishment,2 - Commissioning - Older people Pool,Older People - City & South,Nursing Independent Sector
Cambridgeshire County Council,13-Nov-15,19468476-12363288,-675,Cottenham Court Nursing Home,Care Establishment,2 - Commissioning - Older people Pool,Older People - City & South,Nursing Independent Sector
Cambridgeshire County Council,10-Nov-15,19367609-12246398,-648.13,Askham Village Community Ltd,Care Establishment,2 - Commissioning - Older people Pool,Older People - Fenland,Nursing Independent Sector
Cambridgeshire County Council,19-Nov-15,19551007-12385749,-648.13,Southern Electric Plc,Trade Supplier,LGSS Managed,Bedford House Day Centre,Electricity
Cambridgeshire County Council,19-Nov-15,19551011-12385753,-646.34,Southern Electric Plc,Trade Supplier,LGSS Managed,Bedford House Day Centre,Electricity
Cambridgeshire County Council,19-Nov-15,19550930-12385733,-634.52,Southern Electric Plc,Trade Supplier,LGSS Managed,Bedford House Day Centre,Electricity
Cambridgeshire County Council,19-Nov-15,19550998-12385741,-622.84,Southern Electric Plc,Trade Supplier,LGSS Managed,Bedford House Day Centre,Electricity
Cambridgeshire County Council,19-Nov-15,19551003-12385745,-621.1,Southern Electric Plc,Trade Supplier,LGSS Managed,Bedford House Day Centre,Electricity
Cambridgeshire County Council,13-Nov-15,19470319-12360900,-618.39,Askham Hall,Care Establishment,3 - Operations - Countywide Services,Countywide PD Service,Nursing Independent Sector
Cambridgeshire County Council,13-Nov-15,19470987-12373445,-616.92,Hunters Healthcare (Hunters Down),Care Establishment,2 - Commissioning - Older people Pool,Hunts O P  Team,Nursing Independent Sector
Cambridgeshire County Council,27-Nov-15,19579935-12430785,-610.29,St Elizabeth'S Care Home,Care Establishment,3 - Operations - Countywide Services,Countywide PD Service,Residential Independent Sector
Cambridgeshire County Council,27-Nov-15,19579936-12430786,-610.29,St Elizabeth'S Care Home,Care Establishment,3 - Operations - Countywide Services,Countywide PD Service,Residential Independent Sector
Cambridgeshire County Council,27-Nov-15,19579939-12430789,-610.29,St Elizabeth'S Care Home,Care Establishment,3 - Operations - Countywide Services,Countywide PD Service,Residential Independent Sector
Cambridgeshire County Council,27-Nov-15,19579941-12430791,-610.29,St Elizabeth'S Care Home,Care Establishment,3 - Operations - Countywide Services,Countywide PD Service,Residential Independent Sector
Cambridgeshire County Council,27-Nov-15,19582689-12430730,-610.29,St Elizabeth'S Care Home,Care Establishment,3 - Operations - Countywide Services,Countywide PD Service,Residential Independent Sector
Cambridgeshire County Council,27-Nov-15,19582692-12430733,-610.29,St Elizabeth'S Care Home,Care Establishment,3 - Operations - Countywide Services,Countywide PD Service,Residential Independent Sector
Cambridgeshire County Council,27-Nov-15,19582695-12430736,-610.29,St Elizabeth'S Care Home,Care Establishment,3 - Operations - Countywide Services,Countywide PD Service,Residential Independent Sector
Cambridgeshire County Council,27-Nov-15,19582704-12430745,-610.29,St Elizabeth'S Care Home,Care Establishment,3 - Operations - Countywide Services,Countywide PD Service,Residential Independent Sector
Cambridgeshire County Council,27-Nov-15,19582706-12430747,-610.29,St Elizabeth'S Care Home,Care Establishment,3 - Operations - Countywide Services,Countywide PD Service,Residential Independent Sector
Cambridgeshire County Council,27-Nov-15,19582708-12430749,-610.29,St Elizabeth'S Care Home,Care Establishment,3 - Operations - Countywide Services,Countywide PD Service,Residential Independent Sector
Cambridgeshire County Council,27-Nov-15,19582710-12430751,-610.29,St Elizabeth'S Care Home,Care Establishment,3 - Operations - Countywide Services,Countywide PD Service,Residential Independent Sector
Cambridgeshire County Council,27-Nov-15,19582712-12430753,-610.29,St Elizabeth'S Care Home,Care Establishment,3 - Operations - Countywide Services,Countywide PD Service,Residential Independent Sector
Cambridgeshire County Council,27-Nov-15,19582713-12430754,-610.29,St Elizabeth'S Care Home,Care Establishment,3 - Operations - Countywide Services,Countywide PD Service,Residential Independent Sector
Cambridgeshire County Council,27-Nov-15,19582715-12430756,-610.29,St Elizabeth'S Care Home,Care Establishment,3 - Operations - Countywide Services,Countywide PD Service,Residential Independent Sector
Cambridgeshire County Council,27-Nov-15,19582716-12430757,-610.29,St Elizabeth'S Care Home,Care Establishment,3 - Operations - Countywide Services,Countywide PD Service,Residential Independent Sector
Cambridgeshire County Council,27-Nov-15,19582717-12430758,-610.29,St Elizabeth'S Care Home,Care Establishment,3 - Operations - Countywide Services,Countywide PD Service,Residential Independent Sector
Cambridgeshire County Council,27-Nov-15,19582719-12430760,-610.29,St Elizabeth'S Care Home,Care Establishment,3 - Operations - Countywide Services,Countywide PD Service,Residential Independent Sector
Cambridgeshire County Council,27-Nov-15,19582723-12430764,-610.29,St Elizabeth'S Care Home,Care Establishment,3 - Operations - Countywide Services,Countywide PD Service,Residential Independent Sector
Cambridgeshire County Council,27-Nov-15,19582725-12430766,-610.29,St Elizabeth'S Care Home,Care Establishment,3 - Operations - Countywide Services,Countywide PD Service,Residential Independent Sector
Cambridgeshire County Council,27-Nov-15,19582727-12430768,-610.29,St Elizabeth'S Care Home,Care Establishment,3 - Operations - Countywide Services,Countywide PD Service,Residential Independent Sector
Cambridgeshire County Council,27-Nov-15,19582728-12430769,-610.29,St Elizabeth'S Care Home,Care Establishment,3 - Operations - Countywide Services,Countywide PD Service,Residential Independent Sector
Cambridgeshire County Council,27-Nov-15,19582731-12430772,-610.29,St Elizabeth'S Care Home,Care Establishment,3 - Operations - Countywide Services,Countywide PD Service,Residential Independent Sector
Cambridgeshire County Council,27-Nov-15,19582732-12430773,-610.29,St Elizabeth'S Care Home,Care Establishment,3 - Operations - Countywide Services,Countywide PD Service,Residential Independent Sector
Cambridgeshire County Council,27-Nov-15,19582734-12430775,-610.29,St Elizabeth'S Care Home,Care Establishment,3 - Operations - Countywide Services,Countywide PD Service,Residential Independent Sector
Cambridgeshire County Council,27-Nov-15,19582735-12430776,-610.29,St Elizabeth'S Care Home,Care Establishment,3 - Operations - Countywide Services,Countywide PD Service,Residential Independent Sector
Cambridgeshire County Council,27-Nov-15,19582736-12430777,-610.29,St Elizabeth'S Care Home,Care Establishment,3 - Operations - Countywide Services,Countywide PD Service,Residential Independent Sector
Cambridgeshire County Council,27-Nov-15,19582742-12430783,-610.29,St Elizabeth'S Care Home,Care Establishment,3 - Operations - Countywide Services,Countywide PD Service,Residential Independent Sector
Cambridgeshire County Council,27-Nov-15,19582746-12430719,-610.29,St Elizabeth'S Care Home,Care Establishment,3 - Operations - Countywide Services,Countywide PD Service,Residential Independent Sector
Cambridgeshire County Council,27-Nov-15,19582747-12430720,-610.29,St Elizabeth'S Care Home,Care Establishment,3 - Operations - Countywide Services,Countywide PD Service,Residential Independent Sector
Cambridgeshire County Council,27-Nov-15,19582748-12430721,-610.29,St Elizabeth'S Care Home,Care Establishment,3 - Operations - Countywide Services,Countywide PD Service,Residential Independent Sector
Cambridgeshire County Council,27-Nov-15,19582749-12430722,-610.29,St Elizabeth'S Care Home,Care Establishment,3 - Operations - Countywide Services,Countywide PD Service,Residential Independent Sector
Cambridgeshire County Council,27-Nov-15,19582753-12430726,-610.29,St Elizabeth'S Care Home,Care Establishment,3 - Operations - Countywide Services,Countywide PD Service,Residential Independent Sector
Cambridgeshire County Council,27-Nov-15,19582754-12430727,-610.29,St Elizabeth'S Care Home,Care Establishment,3 - Operations - Countywide Services,Countywide PD Service,Residential Independent Sector
Cambridgeshire County Council,27-Nov-15,19582755-12430728,-610.29,St Elizabeth'S Care Home,Care Establishment,3 - Operations - Countywide Services,Countywide PD Service,Residential Independent Sector
Cambridgeshire County Council,27-Nov-15,19582756-12430729,-610.29,St Elizabeth'S Care Home,Care Establishment,3 - Operations - Countywide Services,Countywide PD Service,Residential Independent Sector
Cambridgeshire County Council,19-Nov-15,19550937-12385739,-609.78,Southern Electric Plc,Trade Supplier,LGSS Managed,Bedford House Day Centre,Electricity
Cambridgeshire County Council,19-Nov-15,19551005-12385747,-606.57,Southern Electric Plc,Trade Supplier,LGSS Managed,Bedford House Day Centre,Electricity
Cambridgeshire County Council,13-Nov-15,19486378-12365685,-587.31,Conquest Care Homes (Soham) Ltd,Care Establishment,2 - Operations - Learning Disability,LDP E Cambs Team,SDS - Care and support Services
Cambridgeshire County Council,13-Nov-15,19515829-12365675,-587.31,Conquest Care Homes (Soham) Ltd,Care Establishment,2 - Operations - Learning Disability,LDP E Cambs Team,SDS - Care and support Services
Cambridgeshire County Council,20-Nov-15,19553199-12398536,-587.31,Conquest Care Homes (Soham) Ltd,Care Establishment,2 - Operations - Learning Disability,LDP E Cambs Team,SDS - Care and support Services
Cambridgeshire County Council,27-Nov-15,19580219-12430636,-587.31,Conquest Care Homes (Soham) Ltd,Care Establishment,2 - Operations - Learning Disability,LDP E Cambs Team,SDS - Care and support Services
Cambridgeshire County Council,19-Nov-15,19551013-12385755,-584.8,Southern Electric Plc,Trade Supplier,LGSS Managed,Bedford House Day Centre,Electricity
Cambridgeshire County Council,13-Nov-15,19488424-12372724,-577.16,Social Care Solutions Ltd,Care Establishment,2 - Operations - Learning Disability,LDP South Cambs Team,Day and Domicillary Care Independent Sector
Cambridgeshire County Council,13-Nov-15,19488425-12372725,-577.16,Social Care Solutions Ltd,Care Establishment,2 - Operations - Learning Disability,LDP South Cambs Team,Day and Domicillary Care Independent Sector
Cambridgeshire County Council,13-Nov-15,19488428-12372728,-577.16,Social Care Solutions Ltd,Care Establishment,2 - Operations - Learning Disability,LDP South Cambs Team,Day and Domicillary Care Independent Sector
Cambridgeshire County Council,13-Nov-15,19488431-12372731,-577.16,Social Care Solutions Ltd,Care Establishment,2 - Operations - Learning Disability,LDP South Cambs Team,Day and Domicillary Care Independent Sector
Cambridgeshire County Council,13-Nov-15,19488432-12372732,-577.16,Social Care Solutions Ltd,Care Establishment,2 - Operations - Learning Disability,LDP South Cambs Team,Day and Domicillary Care Independent Sector
Cambridgeshire County Council,13-Nov-15,19488433-12372733,-577.16,Social Care Solutions Ltd,Care Establishment,2 - Operations - Learning Disability,LDP South Cambs Team,Day and Domicillary Care Independent Sector
Cambridgeshire County Council,13-Nov-15,19488438-12372738,-577.16,Social Care Solutions Ltd,Care Establishment,2 - Operations - Learning Disability,LDP South Cambs Team,Day and Domicillary Care Independent Sector
Cambridgeshire County Council,13-Nov-15,19488439-12372739,-577.16,Social Care Solutions Ltd,Care Establishment,2 - Operations - Learning Disability,LDP South Cambs Team,Day and Domicillary Care Independent Sector
Cambridgeshire County Council,13-Nov-15,19488441-12372707,-577.16,Social Care Solutions Ltd,Care Establishment,2 - Operations - Learning Disability,LDP South Cambs Team,Day and Domicillary Care Independent Sector
Cambridgeshire County Council,13-Nov-15,19469308-12365581,-576.58,Atlas Home Support,Care Establishment,2 - Operations - Learning Disability,LDP City Team,Day and Domicillary Care Independent Sector
Cambridgeshire County Council,13-Nov-15,19469310-12365583,-576.58,Atlas Home Support,Care Establishment,2 - Operations - Learning Disability,LDP City Team,Day and Domicillary Care Independent Sector
Cambridgeshire County Council,13-Nov-15,19469314-12365587,-576.58,Atlas Home Support,Care Establishment,2 - Operations - Learning Disability,LDP City Team,Day and Domicillary Care Independent Sector
Cambridgeshire County Council,13-Nov-15,19469320-12365593,-576.58,Atlas Home Support,Care Establishment,2 - Operations - Learning Disability,LDP City Team,Day and Domicillary Care Independent Sector
Cambridgeshire County Council,13-Nov-15,19469321-12365594,-576.58,Atlas Home Support,Care Establishment,2 - Operations - Learning Disability,LDP City Team,Day and Domicillary Care Independent Sector
Cambridgeshire County Council,13-Nov-15,19469325-12365598,-576.58,Atlas Home Support,Care Establishment,2 - Operations - Learning Disability,LDP City Team,Day and Domicillary Care Independent Sector
Cambridgeshire County Council,13-Nov-15,19469328-12365601,-576.58,Atlas Home Support,Care Establishment,2 - Operations - Learning Disability,LDP City Team,Day and Domicillary Care Independent Sector
Cambridgeshire County Council,13-Nov-15,19469330-12365603,-576.58,Atlas Home Support,Care Establishment,2 - Operations - Learning Disability,LDP City Team,Day and Domicillary Care Independent Sector
Cambridgeshire County Council,13-Nov-15,19469335-12365608,-576.58,Atlas Home Support,Care Establishment,2 - Operations - Learning Disability,LDP City Team,Day and Domicillary Care Independent Sector
Cambridgeshire County Council,13-Nov-15,19469337-12365610,-576.58,Atlas Home Support,Care Establishment,2 - Operations - Learning Disability,LDP City Team,Day and Domicillary Care Independent Sector
Cambridgeshire County Council,13-Nov-15,19469340-12365613,-576.58,Atlas Home Support,Care Establishment,2 - Operations - Learning Disability,LDP City Team,Day and Domicillary Care Independent Sector
Cambridgeshire County Council,13-Nov-15,19469342-12365615,-576.58,Atlas Home Support,Care Establishment,2 - Operations - Learning Disability,LDP City Team,Day and Domicillary Care Independent Sector
Cambridgeshire County Council,13-Nov-15,19469346-12365619,-576.58,Atlas Home Support,Care Establishment,2 - Operations - Learning Disability,LDP City Team,Day and Domicillary Care Independent Sector
Cambridgeshire County Council,13-Nov-15,19469354-12365627,-576.58,Atlas Home Support,Care Establishment,2 - Operations - Learning Disability,LDP City Team,Day and Domicillary Care Independent Sector
Cambridgeshire County Council,13-Nov-15,19469359-12365632,-576.58,Atlas Home Support,Care Establishment,2 - Operations - Learning Disability,LDP City Team,Day and Domicillary Care Independent Sector
Cambridgeshire County Council,13-Nov-15,19469371-12365549,-576.58,Atlas Home Support,Care Establishment,2 - Operations - Learning Disability,LDP City Team,Day and Domicillary Care Independent Sector
Cambridgeshire County Council,13-Nov-15,19469378-12365556,-576.58,Atlas Home Support,Care Establishment,2 - Operations - Learning Disability,LDP City Team,Day and Domicillary Care Independent Sector
Cambridgeshire County Council,13-Nov-15,19469379-12365557,-576.58,Atlas Home Support,Care Establishment,2 - Operations - Learning Disability,LDP City Team,Day and Domicillary Care Independent Sector
Cambridgeshire County Council,13-Nov-15,19469387-12365565,-576.58,Atlas Home Support,Care Establishment,2 - Operations - Learning Disability,LDP City Team,Day and Domicillary Care Independent Sector
Cambridgeshire County Council,13-Nov-15,19469395-12365573,-576.58,Atlas Home Support,Care Establishment,2 - Operations - Learning Disability,LDP City Team,Day and Domicillary Care Independent Sector
Cambridgeshire County Council,13-Nov-15,19469399-12365577,-576.58,Atlas Home Support,Care Establishment,2 - Operations - Learning Disability,LDP City Team,Day and Domicillary Care Independent Sector
Cambridgeshire County Council,13-Nov-15,19469401-12365579,-576.58,Atlas Home Support,Care Establishment,2 - Operations - Learning Disability,LDP City Team,Day and Domicillary Care Independent Sector
Cambridgeshire County Council,13-Nov-15,19471820-12365523,-576.58,Atlas Home Support,Care Establishment,2 - Operations - Learning Disability,LDP City Team,Day and Domicillary Care Independent Sector
Cambridgeshire County Council,13-Nov-15,19471823-12365526,-576.58,Atlas Home Support,Care Establishment,2 - Operations - Learning Disability,LDP City Team,Day and Domicillary Care Independent Sector
Cambridgeshire County Council,13-Nov-15,19471825-12365528,-576.58,Atlas Home Support,Care Establishment,2 - Operations - Learning Disability,LDP City Team,Day and Domicillary Care Independent Sector
Cambridgeshire County Council,13-Nov-15,19471828-12365531,-576.58,Atlas Home Support,Care Establishment,2 - Operations - Learning Disability,LDP City Team,Day and Domicillary Care Independent Sector
Cambridgeshire County Council,13-Nov-15,19471830-12365533,-576.58,Atlas Home Support,Care Establishment,2 - Operations - Learning Disability,LDP City Team,Day and Domicillary Care Independent Sector
Cambridgeshire County Council,13-Nov-15,19471119-12370546,-576.4,Etheldred House,Care Establishment,2 - Commissioning - Older people Pool,Older People - City & South,Nursing Independent Sector
Cambridgeshire County Council,13-Nov-15,19471123-12370547,-576.4,Etheldred House,Care Establishment,2 - Commissioning - Older people Pool,Older People - City & South,Nursing Independent Sector
Cambridgeshire County Council,13-Nov-15,19527039-12370732,-573.28,Oaklands,Care Establishment,2 - Operations - Learning Disability,LDP Hunts special needs,Residential Independent Sector
Cambridgeshire County Council,13-Nov-15,19484969-12374643,-572.53,The Cambridge Nursing Centre,Care Establishment,2 - Commissioning - Older people Pool,Older People - City & South,Nursing Independent Sector
Cambridgeshire County Council,13-Nov-15,19484970-12374644,-572.53,The Cambridge Nursing Centre,Care Establishment,2 - Commissioning - Older people Pool,Older People - City & South,Nursing Independent Sector
Cambridgeshire County Council,13-Nov-15,19484971-12374645,-572.53,The Cambridge Nursing Centre,Care Establishment,2 - Commissioning - Older people Pool,Older People - City & South,Nursing Independent Sector
Cambridgeshire County Council,13-Nov-15,19484972-12374646,-572.53,The Cambridge Nursing Centre,Care Establishment,2 - Commissioning - Older people Pool,Older People - City & South,Nursing Independent Sector
Cambridgeshire County Council,13-Nov-15,19484973-12374647,-572.53,The Cambridge Nursing Centre,Care Establishment,2 - Commissioning - Older people Pool,Older People - City & South,Nursing Independent Sector
Cambridgeshire County Council,13-Nov-15,19484975-12374649,-572.53,The Cambridge Nursing Centre,Care Establishment,2 - Commissioning - Older people Pool,Older People - City & South,Nursing Independent Sector
Cambridgeshire County Council,20-Nov-15,19556304-12402944,-572.53,The Cambridge Nursing Centre,Care Establishment,2 - Commissioning - Older people Pool,East Cambs - O P Team,Nursing Independent Sector
Cambridgeshire County Council,20-Nov-15,19556305-12402945,-572.53,The Cambridge Nursing Centre,Care Establishment,2 - Commissioning - Older people Pool,East Cambs - O P Team,Nursing Independent Sector
Cambridgeshire County Council,20-Nov-15,19556307-12402947,-572.53,The Cambridge Nursing Centre,Care Establishment,2 - Commissioning - Older people Pool,East Cambs - O P Team,Nursing Independent Sector
Cambridgeshire County Council,20-Nov-15,19556308-12402948,-572.53,The Cambridge Nursing Centre,Care Establishment,2 - Commissioning - Older people Pool,East Cambs - O P Team,Nursing Independent Sector
Cambridgeshire County Council,20-Nov-15,19515859-12402134,-566.31,Midfield Lodge Care Centre,Care Establishment,2 - Commissioning - Older people Pool,Older People - City & South,Nursing Independent Sector
Cambridgeshire County Council,20-Nov-15,19515862-12402137,-566.31,Midfield Lodge Care Centre,Care Establishment,2 - Commissioning - Older people Pool,Older People - City & South,Nursing Independent Sector
Cambridgeshire County Council,20-Nov-15,19515863-12402138,-566.31,Midfield Lodge Care Centre,Care Establishment,2 - Commissioning - Older people Pool,Older People - City & South,Nursing Independent Sector
Cambridgeshire County Council,20-Nov-15,19515867-12402142,-566.31,Midfield Lodge Care Centre,Care Establishment,2 - Commissioning - Older people Pool,Older People - City & South,Nursing Independent Sector
Cambridgeshire County Council,20-Nov-15,19515869-12402144,-566.31,Midfield Lodge Care Centre,Care Establishment,2 - Commissioning - Older people Pool,Older People - City & South,Nursing Independent Sector
Cambridgeshire County Council,20-Nov-15,19515870-12402145,-566.31,Midfield Lodge Care Centre,Care Establishment,2 - Commissioning - Older people Pool,Older People - City & South,Nursing Independent Sector
Cambridgeshire County Council,20-Nov-15,19515875-12402150,-566.31,Midfield Lodge Care Centre,Care Establishment,2 - Commissioning - Older people Pool,Older People - City & South,Nursing Independent Sector
Cambridgeshire County Council,20-Nov-15,19515876-12402151,-566.31,Midfield Lodge Care Centre,Care Establishment,2 - Commissioning - Older people Pool,Older People - City & South,Nursing Independent Sector
Cambridgeshire County Council,20-Nov-15,19515878-12402153,-566.31,Midfield Lodge Care Centre,Care Establishment,2 - Commissioning - Older people Pool,Older People - City & South,Nursing Independent Sector
Cambridgeshire County Council,20-Nov-15,19515881-12402156,-566.31,Midfield Lodge Care Centre,Care Establishment,2 - Commissioning - Older people Pool,Older People - City & South,Nursing Independent Sector
Cambridgeshire County Council,20-Nov-15,19515882-12402157,-566.31,Midfield Lodge Care Centre,Care Establishment,2 - Commissioning - Older people Pool,Older People - City & South,Nursing Independent Sector
Cambridgeshire County Council,20-Nov-15,19515883-12402158,-566.31,Midfield Lodge Care Centre,Care Establishment,2 - Commissioning - Older people Pool,Older People - City & South,Nursing Independent Sector
Cambridgeshire County Council,20-Nov-15,19515884-12402159,-566.31,Midfield Lodge Care Centre,Care Establishment,2 - Commissioning - Older people Pool,Older People - City & South,Nursing Independent Sector
Cambridgeshire County Council,20-Nov-15,19515886-12402161,-566.31,Midfield Lodge Care Centre,Care Establishment,2 - Commissioning - Older people Pool,Older People - City & South,Nursing Independent Sector
Cambridgeshire County Council,20-Nov-15,19515888-12402163,-566.31,Midfield Lodge Care Centre,Care Establishment,2 - Commissioning - Older people Pool,Older People - City & South,Nursing Independent Sector
Cambridgeshire County Council,20-Nov-15,19515890-12402165,-566.31,Midfield Lodge Care Centre,Care Establishment,2 - Commissioning - Older people Pool,Older People - City & South,Nursing Independent Sector
Cambridgeshire County Council,20-Nov-15,19515891-12402166,-566.31,Midfield Lodge Care Centre,Care Establishment,2 - Commissioning - Older people Pool,Older People - City & South,Nursing Independent Sector
Cambridgeshire County Council,20-Nov-15,19515893-12402168,-566.31,Midfield Lodge Care Centre,Care Establishment,2 - Commissioning - Older people Pool,Older People - City & South,Nursing Independent Sector
Cambridgeshire County Council,20-Nov-15,19515894-12402169,-566.31,Midfield Lodge Care Centre,Care Establishment,2 - Commissioning - Older people Pool,Older People - City & South,Nursing Independent Sector
Cambridgeshire County Council,20-Nov-15,19515899-12402174,-566.31,Midfield Lodge Care Centre,Care Establishment,2 - Commissioning - Older people Pool,Older People - City & South,Nursing Independent Sector
Cambridgeshire County Council,20-Nov-15,19515901-12402176,-566.31,Midfield Lodge Care Centre,Care Establishment,2 - Commissioning - Older people Pool,Older People - City & South,Nursing Independent Sector
Cambridgeshire County Council,20-Nov-15,19515904-12402179,-566.31,Midfield Lodge Care Centre,Care Establishment,2 - Commissioning - Older people Pool,Older People - City & South,Nursing Independent Sector
Cambridgeshire County Council,20-Nov-15,19515914-12402189,-566.31,Midfield Lodge Care Centre,Care Establishment,2 - Commissioning - Older people Pool,Older People - City & South,Nursing Independent Sector
Cambridgeshire County Council,20-Nov-15,19515915-12402190,-566.31,Midfield Lodge Care Centre,Care Establishment,2 - Commissioning - Older people Pool,Older People - City & South,Nursing Independent Sector
Cambridgeshire County Council,20-Nov-15,19515921-12402196,-566.31,Midfield Lodge Care Centre,Care Establishment,2 - Commissioning - Older people Pool,Older People - City & South,Nursing Independent Sector
Cambridgeshire County Council,20-Nov-15,19515925-12402200,-566.31,Midfield Lodge Care Centre,Care Establishment,2 - Commissioning - Older people Pool,Older People - City & South,Nursing Independent Sector
Cambridgeshire County Council,20-Nov-15,19515926-12402201,-566.31,Midfield Lodge Care Centre,Care Establishment,2 - Commissioning - Older people Pool,Older People - City & South,Nursing Independent Sector
Cambridgeshire County Council,20-Nov-15,19515928-12402203,-566.31,Midfield Lodge Care Centre,Care Establishment,2 - Commissioning - Older people Pool,Older People - City & South,Nursing Independent Sector
Cambridgeshire County Council,20-Nov-15,19515929-12402204,-566.31,Midfield Lodge Care Centre,Care Establishment,2 - Commissioning - Older people Pool,Older People - City & South,Nursing Independent Sector
Cambridgeshire County Council,20-Nov-15,19515931-12402206,-566.31,Midfield Lodge Care Centre,Care Establishment,2 - Commissioning - Older people Pool,Older People - City & South,Nursing Independent Sector
Cambridgeshire County Council,20-Nov-15,19515932-12402207,-566.31,Midfield Lodge Care Centre,Care Establishment,2 - Commissioning - Older people Pool,Older People - City & South,Nursing Independent Sector
Cambridgeshire County Council,20-Nov-15,19515933-12402208,-566.31,Midfield Lodge Care Centre,Care Establishment,2 - Commissioning - Older people Pool,Older People - City & South,Nursing Independent Sector
Cambridgeshire County Council,20-Nov-15,19515934-12402209,-566.31,Midfield Lodge Care Centre,Care Establishment,2 - Commissioning - Older people Pool,Older People - City & South,Nursing Independent Sector
Cambridgeshire County Council,20-Nov-15,19515935-12402210,-566.31,Midfield Lodge Care Centre,Care Establishment,2 - Commissioning - Older people Pool,Older People - City & South,Nursing Independent Sector
Cambridgeshire County Council,20-Nov-15,19515938-12402213,-566.31,Midfield Lodge Care Centre,Care Establishment,2 - Commissioning - Older people Pool,Older People - City & South,Nursing Independent Sector
Cambridgeshire County Council,19-Nov-15,19550934-12385737,-563.16,Southern Electric Plc,Trade Supplier,LGSS Managed,Bedford House Day Centre,Electricity
Cambridgeshire County Council,27-Nov-15,19578951-12428262,-549.74,Redacted Personal Data,Individual,2 - Commissioning - Older people Pool,Older People - City & South,Direct Payments - Social Services
Cambridgeshire County Council,27-Nov-15,19578952-12428263,-549.74,Redacted Personal Data,Individual,2 - Commissioning - Older people Pool,Older People - City & South,Direct Payments - Social Services
Cambridgeshire County Council,27-Nov-15,19578953-12428264,-549.74,Redacted Personal Data,Individual,2 - Commissioning - Older people Pool,Older People - City & South,Direct Payments - Social Services
Cambridgeshire County Council,27-Nov-15,19578958-12428269,-549.74,Redacted Personal Data,Individual,2 - Commissioning - Older people Pool,Older People - City & South,Direct Payments - Social Services
Cambridgeshire County Council,20-Nov-15,19469791-12397778,-549.36,Cherry Hinton Nursing Home,Care Establishment,2 - Commissioning - Older people Pool,Older People - City & South,Nursing Independent Sector
Cambridgeshire County Council,20-Nov-15,19469792-12397779,-549.36,Cherry Hinton Nursing Home,Care Establishment,2 - Commissioning - Older people Pool,Older People - City & South,Nursing Independent Sector
Cambridgeshire County Council,20-Nov-15,19469793-12397780,-549.36,Cherry Hinton Nursing Home,Care Establishment,2 - Commissioning - Older people Pool,Older People - City & South,Nursing Independent Sector
Cambridgeshire County Council,20-Nov-15,19469794-12397781,-549.36,Cherry Hinton Nursing Home,Care Establishment,2 - Commissioning - Older people Pool,Older People - City & South,Nursing Independent Sector
Cambridgeshire County Council,20-Nov-15,19469796-12397783,-549.36,Cherry Hinton Nursing Home,Care Establishment,2 - Commissioning - Older people Pool,Older People - City & South,Nursing Independent Sector
Cambridgeshire County Council,20-Nov-15,19515880-12402155,-547.16,Midfield Lodge Care Centre,Care Establishment,2 - Commissioning - Older people Pool,Older People - City & South,Nursing Independent Sector
Cambridgeshire County Council,20-Nov-15,19515896-12402171,-547.16,Midfield Lodge Care Centre,Care Establishment,2 - Commissioning - Older people Pool,Older People - City & South,Nursing Independent Sector
Cambridgeshire County Council,19-Nov-15,19550926-12385731,-545.3,Southern Electric Plc,Trade Supplier,LGSS Managed,Bedford House Day Centre,Electricity
Cambridgeshire County Council,20-Nov-15,19489172-12401556,-542.86,Woodlands Care Centre,Care Establishment,2 - Commissioning - Older people Pool,Older People - City & South,Nursing Independent Sector
Cambridgeshire County Council,13-Nov-15,19471943-12372768,-534.85,Social Care Solutions Ltd,Care Establishment,2 - Operations - Learning Disability,LDP Huntingdonshire Team,Day and Domicillary Care Independent Sector
Cambridgeshire County Council,19-Nov-15,19550302-12385758,-531.14,Southern Electric Plc,Trade Supplier,LGSS Managed,"Comberton Road, Toft",Electricity
Cambridgeshire County Council,19-Nov-15,19551009-12385751,-530.96,Southern Electric Plc,Trade Supplier,LGSS Managed,Bedford House Day Centre,Electricity
Cambridgeshire County Council,27-Nov-15,19582804-12428391,-527.63,Llys Gwyn Residential Home,Care Establishment,2 - Commissioning - Older people Pool,Older People Mental Health City & South,Residential Independent Sector
Cambridgeshire County Council,27-Nov-15,19582808-12428395,-527.63,Llys Gwyn Residential Home,Care Establishment,2 - Commissioning - Older people Pool,Older People Mental Health City & South,Residential Independent Sector
Cambridgeshire County Council,27-Nov-15,19582809-12428396,-527.63,Llys Gwyn Residential Home,Care Establishment,2 - Commissioning - Older people Pool,Older People Mental Health City & South,Residential Independent Sector
Cambridgeshire County Council,27-Nov-15,19582810-12428397,-527.63,Llys Gwyn Residential Home,Care Establishment,2 - Commissioning - Older people Pool,Older People Mental Health City & South,Residential Independent Sector
Cambridgeshire County Council,27-Nov-15,19582814-12428401,-527.63,Llys Gwyn Residential Home,Care Establishment,2 - Commissioning - Older people Pool,Older People Mental Health City & South,Residential Independent Sector
Cambridgeshire County Council,27-Nov-15,19582816-12428403,-527.63,Llys Gwyn Residential Home,Care Establishment,2 - Commissioning - Older people Pool,Older People Mental Health City & South,Residential Independent Sector
Cambridgeshire County Council,27-Nov-15,19582817-12428404,-527.63,Llys Gwyn Residential Home,Care Establishment,2 - Commissioning - Older people Pool,Older People Mental Health City & South,Residential Independent Sector
Cambridgeshire County Council,27-Nov-15,19582818-12428405,-527.63,Llys Gwyn Residential Home,Care Establishment,2 - Commissioning - Older people Pool,Older People Mental Health City & South,Residential Independent Sector
Cambridgeshire County Council,27-Nov-15,19582819-12428406,-527.63,Llys Gwyn Residential Home,Care Establishment,2 - Commissioning - Older people Pool,Older People Mental Health City & South,Residential Independent Sector
Cambridgeshire County Council,27-Nov-15,19582820-12428407,-527.63,Llys Gwyn Residential Home,Care Establishment,2 - Commissioning - Older people Pool,Older People Mental Health City & South,Residential Independent Sector
Cambridgeshire County Council,27-Nov-15,19582823-12429410,-527.63,Llys Gwyn Residential Home,Care Establishment,2 - Commissioning - Older people Pool,Older People Mental Health City & South,Residential Independent Sector
Cambridgeshire County Council,27-Nov-15,19582827-12429414,-527.63,Llys Gwyn Residential Home,Care Establishment,2 - Commissioning - Older people Pool,Older People Mental Health City & South,Residential Independent Sector
Cambridgeshire County Council,27-Nov-15,19582829-12429416,-527.63,Llys Gwyn Residential Home,Care Establishment,2 - Commissioning - Older people Pool,Older People Mental Health City & South,Residential Independent Sector
Cambridgeshire County Council,27-Nov-15,19582832-12428381,-527.63,Llys Gwyn Residential Home,Care Establishment,2 - Commissioning - Older people Pool,Older People Mental Health City & South,Residential Independent Sector
Cambridgeshire County Council,27-Nov-15,19582833-12428382,-527.63,Llys Gwyn Residential Home,Care Establishment,2 - Commissioning - Older people Pool,Older People Mental Health City & South,Residential Independent Sector
Cambridgeshire County Council,27-Nov-15,19582838-12428387,-527.63,Llys Gwyn Residential Home,Care Establishment,2 - Commissioning - Older people Pool,Older People Mental Health City & South,Residential Independent Sector
Cambridgeshire County Council,27-Nov-15,19582840-12428389,-527.63,Llys Gwyn Residential Home,Care Establishment,2 - Commissioning - Older people Pool,Older People Mental Health City & South,Residential Independent Sector
Cambridgeshire County Council,27-Nov-15,19582841-12428390,-527.63,Llys Gwyn Residential Home,Care Establishment,2 - Commissioning - Older people Pool,Older People Mental Health City & South,Residential Independent Sector
Cambridgeshire County Council,27-Nov-15,19585144-12428357,-527.63,Llys Gwyn Residential Home,Care Establishment,2 - Commissioning - Older people Pool,Older People Mental Health City & South,Residential Independent Sector
Cambridgeshire County Council,27-Nov-15,19585148-12428361,-527.63,Llys Gwyn Residential Home,Care Establishment,2 - Commissioning - Older people Pool,Older People Mental Health City & South,Residential Independent Sector
Cambridgeshire County Council,27-Nov-15,19585149-12428362,-527.63,Llys Gwyn Residential Home,Care Establishment,2 - Commissioning - Older people Pool,Older People Mental Health City & South,Residential Independent Sector
Cambridgeshire County Council,27-Nov-15,19585150-12428363,-527.63,Llys Gwyn Residential Home,Care Establishment,2 - Commissioning - Older people Pool,Older People Mental Health City & South,Residential Independent Sector
Cambridgeshire County Council,27-Nov-15,19585151-12428364,-527.63,Llys Gwyn Residential Home,Care Establishment,2 - Commissioning - Older people Pool,Older People Mental Health City & South,Residential Independent Sector
Cambridgeshire County Council,27-Nov-15,19585154-12428367,-527.63,Llys Gwyn Residential Home,Care Establishment,2 - Commissioning - Older people Pool,Older People Mental Health City & South,Residential Independent Sector
Cambridgeshire County Council,27-Nov-15,19585156-12428369,-527.63,Llys Gwyn Residential Home,Care Establishment,2 - Commissioning - Older people Pool,Older People Mental Health City & South,Residential Independent Sector
Cambridgeshire County Council,27-Nov-15,19585157-12428370,-527.63,Llys Gwyn Residential Home,Care Establishment,2 - Commissioning - Older people Pool,Older People Mental Health City & South,Residential Independent Sector
Cambridgeshire County Council,27-Nov-15,19585160-12428373,-527.63,Llys Gwyn Residential Home,Care Establishment,2 - Commissioning - Older people Pool,Older People Mental Health City & South,Residential Independent Sector
Cambridgeshire County Council,27-Nov-15,19585163-12428376,-527.63,Llys Gwyn Residential Home,Care Establishment,2 - Commissioning - Older people Pool,Older People Mental Health City & South,Residential Independent Sector
Cambridgeshire County Council,27-Nov-15,19585164-12428377,-527.63,Llys Gwyn Residential Home,Care Establishment,2 - Commissioning - Older people Pool,Older People Mental Health City & South,Residential Independent Sector
Cambridgeshire County Council,27-Nov-15,19585166-12428379,-527.63,Llys Gwyn Residential Home,Care Establishment,2 - Commissioning - Older people Pool,Older People Mental Health City & South,Residential Independent Sector
Cambridgeshire County Council,27-Nov-15,19585167-12428380,-527.63,Llys Gwyn Residential Home,Care Establishment,2 - Commissioning - Older people Pool,Older People Mental Health City & South,Residential Independent Sector
Cambridgeshire County Council,19-Nov-15,19550918-12385727,-523.88,Southern Electric Plc,Trade Supplier,LGSS Managed,"Comberton Road, Toft",Electricity
Cambridgeshire County Council,27-Nov-15,19579942-12430792,-523.11,St Elizabeth'S Care Home,Care Establishment,3 - Operations - Countywide Services,Countywide PD Service,Residential Independent Sector
Cambridgeshire County Council,13-Nov-15,19470102-12368478,-513.18,Orchard House Nursing Home,Care Establishment,2 - Commissioning - Older people Pool,Older People - Fenland,Nursing Independent Sector
Cambridgeshire County Council,13-Nov-15,19470103-12368479,-513.18,Orchard House Nursing Home,Care Establishment,2 - Commissioning - Older people Pool,Older People - Fenland,Nursing Independent Sector
Cambridgeshire County Council,13-Nov-15,19470104-12368480,-513.18,Orchard House Nursing Home,Care Establishment,2 - Commissioning - Older people Pool,Older People - Fenland,Nursing Independent Sector
Cambridgeshire County Council,13-Nov-15,19470105-12368481,-513.18,Orchard House Nursing Home,Care Establishment,2 - Commissioning - Older people Pool,Older People - Fenland,Nursing Independent Sector
Cambridgeshire County Council,13-Nov-15,19470106-12368482,-513.18,Orchard House Nursing Home,Care Establishment,2 - Commissioning - Older people Pool,Older People - Fenland,Nursing Independent Sector
Cambridgeshire County Council,13-Nov-15,19472866-12368457,-513.18,Orchard House Nursing Home,Care Establishment,2 - Commissioning - Older people Pool,Older People - Fenland,Nursing Independent Sector
Cambridgeshire County Council,13-Nov-15,19472867-12368458,-513.18,Orchard House Nursing Home,Care Establishment,2 - Commissioning - Older people Pool,Older People - Fenland,Nursing Independent Sector
Cambridgeshire County Council,13-Nov-15,19472868-12368459,-513.18,Orchard House Nursing Home,Care Establishment,2 - Commissioning - Older people Pool,Older People - Fenland,Nursing Independent Sector
Cambridgeshire County Council,13-Nov-15,19472869-12368460,-513.18,Orchard House Nursing Home,Care Establishment,2 - Commissioning - Older people Pool,Older People - Fenland,Nursing Independent Sector
Cambridgeshire County Council,05-Nov-15,19488198-12237420,-513.1,Heron House Care Home,Care Establishment,2 - Commissioning - Older people Pool,Older People Mental Health Hunts,Nursing Independent Sector
Cambridgeshire County Council,05-Nov-15,19488200-12237422,-513.1,Heron House Care Home,Care Establishment,2 - Commissioning - Older people Pool,Older People Mental Health Hunts,Nursing Independent Sector
Cambridgeshire County Council,05-Nov-15,19488202-12237424,-513.1,Heron House Care Home,Care Establishment,2 - Commissioning - Older people Pool,Older People Mental Health Hunts,Nursing Independent Sector
Cambridgeshire County Council,05-Nov-15,19488209-12237431,-513.1,Heron House Care Home,Care Establishment,2 - Commissioning - Older people Pool,Older People Mental Health Hunts,Nursing Independent Sector
Cambridgeshire County Council,05-Nov-15,19488211-12237433,-513.1,Heron House Care Home,Care Establishment,2 - Commissioning - Older people Pool,Older People Mental Health Hunts,Nursing Independent Sector
Cambridgeshire County Council,05-Nov-15,19488213-12237435,-513.1,Heron House Care Home,Care Establishment,2 - Commissioning - Older people Pool,Older People Mental Health Hunts,Nursing Independent Sector
Cambridgeshire County Council,05-Nov-15,19488217-12237439,-513.1,Heron House Care Home,Care Establishment,2 - Commissioning - Older people Pool,Older People Mental Health Hunts,Nursing Independent Sector
Cambridgeshire County Council,05-Nov-15,19488220-12237442,-513.1,Heron House Care Home,Care Establishment,2 - Commissioning - Older people Pool,Older People Mental Health Hunts,Nursing Independent Sector
Cambridgeshire County Council,05-Nov-15,19488221-12237443,-513.1,Heron House Care Home,Care Establishment,2 - Commissioning - Older people Pool,Older People Mental Health Hunts,Nursing Independent Sector
Cambridgeshire County Council,05-Nov-15,19488222-12237444,-513.1,Heron House Care Home,Care Establishment,2 - Commissioning - Older people Pool,Older People Mental Health Hunts,Nursing Independent Sector
Cambridgeshire County Council,05-Nov-15,19488223-12237445,-513.1,Heron House Care Home,Care Establishment,2 - Commissioning - Older people Pool,Older People Mental Health Hunts,Nursing Independent Sector
Cambridgeshire County Council,05-Nov-15,19488225-12237447,-513.1,Heron House Care Home,Care Establishment,2 - Commissioning - Older people Pool,Older People Mental Health Hunts,Nursing Independent Sector
Cambridgeshire County Council,05-Nov-15,19488226-12237448,-513.1,Heron House Care Home,Care Establishment,2 - Commissioning - Older people Pool,Older People Mental Health Hunts,Nursing Independent Sector
Cambridgeshire County Council,05-Nov-15,19488229-12237451,-513.1,Heron House Care Home,Care Establishment,2 - Commissioning - Older people Pool,Older People Mental Health Hunts,Nursing Independent Sector
Cambridgeshire County Council,05-Nov-15,19488230-12237452,-513.1,Heron House Care Home,Care Establishment,2 - Commissioning - Older people Pool,Older People Mental Health Hunts,Nursing Independent Sector
Cambridgeshire County Council,05-Nov-15,19488235-12237457,-513.1,Heron House Care Home,Care Establishment,2 - Commissioning - Older people Pool,Older People Mental Health Hunts,Nursing Independent Sector
Cambridgeshire County Council,05-Nov-15,19488236-12237458,-513.1,Heron House Care Home,Care Establishment,2 - Commissioning - Older people Pool,Older People Mental Health Hunts,Nursing Independent Sector
Cambridgeshire County Council,05-Nov-15,19488237-12237459,-513.1,Heron House Care Home,Care Establishment,2 - Commissioning - Older people Pool,Older People Mental Health Hunts,Nursing Independent Sector
Cambridgeshire County Council,05-Nov-15,19488238-12237460,-513.1,Heron House Care Home,Care Establishment,2 - Commissioning - Older people Pool,Older People Mental Health Hunts,Nursing Independent Sector
Cambridgeshire County Council,13-Nov-15,19514995-12362281,-513.1,Heron House Care Home,Care Establishment,2 - Commissioning - Older people Pool,Older People Mental Health Hunts,Nursing Independent Sector
Cambridgeshire County Council,13-Nov-15,19514999-12362283,-513.1,Heron House Care Home,Care Establishment,2 - Commissioning - Older people Pool,Older People Mental Health Hunts,Nursing Independent Sector
Cambridgeshire County Council,13-Nov-15,19515000-12362284,-513.1,Heron House Care Home,Care Establishment,2 - Commissioning - Older people Pool,Older People Mental Health Hunts,Nursing Independent Sector
Cambridgeshire County Council,13-Nov-15,19515007-12362290,-513.1,Heron House Care Home,Care Establishment,2 - Commissioning - Older people Pool,Older People Mental Health Hunts,Nursing Independent Sector
Cambridgeshire County Council,13-Nov-15,19524969-12362363,-513.1,Heron House Care Home,Care Establishment,2 - Commissioning - Older people Pool,Older People Mental Health Hunts,Nursing Independent Sector
Cambridgeshire County Council,13-Nov-15,19524970-12362364,-513.1,Heron House Care Home,Care Establishment,2 - Commissioning - Older people Pool,Older People Mental Health Hunts,Nursing Independent Sector
Cambridgeshire County Council,13-Nov-15,19524972-12362366,-513.1,Heron House Care Home,Care Establishment,2 - Commissioning - Older people Pool,Older People Mental Health Hunts,Nursing Independent Sector
Cambridgeshire County Council,13-Nov-15,19524973-12362367,-513.1,Heron House Care Home,Care Establishment,2 - Commissioning - Older people Pool,Older People Mental Health Hunts,Nursing Independent Sector
Cambridgeshire County Council,13-Nov-15,19524974-12362368,-513.1,Heron House Care Home,Care Establishment,2 - Commissioning - Older people Pool,Older People Mental Health Hunts,Nursing Independent Sector
Cambridgeshire County Council,13-Nov-15,19524977-12362370,-513.1,Heron House Care Home,Care Establishment,2 - Commissioning - Older people Pool,Older People Mental Health Hunts,Nursing Independent Sector
Cambridgeshire County Council,13-Nov-15,19524979-12362372,-513.1,Heron House Care Home,Care Establishment,2 - Commissioning - Older people Pool,Older People Mental Health Hunts,Nursing Independent Sector
Cambridgeshire County Council,13-Nov-15,19524981-12362338,-513.1,Heron House Care Home,Care Establishment,2 - Commissioning - Older people Pool,Older People Mental Health Hunts,Nursing Independent Sector
Cambridgeshire County Council,13-Nov-15,19524983-12362340,-513.1,Heron House Care Home,Care Establishment,2 - Commissioning - Older people Pool,Older People Mental Health Hunts,Nursing Independent Sector
Cambridgeshire County Council,13-Nov-15,19524985-12362341,-513.1,Heron House Care Home,Care Establishment,2 - Commissioning - Older people Pool,Older People Mental Health Hunts,Nursing Independent Sector
Cambridgeshire County Council,13-Nov-15,19524992-12362345,-513.1,Heron House Care Home,Care Establishment,2 - Commissioning - Older people Pool,Older People Mental Health Hunts,Nursing Independent Sector
Cambridgeshire County Council,13-Nov-15,19524993-12362346,-513.1,Heron House Care Home,Care Establishment,2 - Commissioning - Older people Pool,Older People Mental Health Hunts,Nursing Independent Sector
Cambridgeshire County Council,13-Nov-15,19524997-12362350,-513.1,Heron House Care Home,Care Establishment,2 - Commissioning - Older people Pool,Older People Mental Health Hunts,Nursing Independent Sector
Cambridgeshire County Council,13-Nov-15,19524998-12362351,-513.1,Heron House Care Home,Care Establishment,2 - Commissioning - Older people Pool,Older People Mental Health Hunts,Nursing Independent Sector
Cambridgeshire County Council,13-Nov-15,19525005-12362355,-513.1,Heron House Care Home,Care Establishment,2 - Commissioning - Older people Pool,Older People Mental Health Hunts,Nursing Independent Sector
Cambridgeshire County Council,20-Nov-15,19553314-12397728,-513.1,Heron House Care Home,Care Establishment,2 - Commissioning - Older people Pool,Older People Mental Health Hunts,Nursing Independent Sector
Cambridgeshire County Council,20-Nov-15,19553317-12397731,-513.1,Heron House Care Home,Care Establishment,2 - Commissioning - Older people Pool,Older People Mental Health Hunts,Nursing Independent Sector
Cambridgeshire County Council,20-Nov-15,19553321-12397735,-513.1,Heron House Care Home,Care Establishment,2 - Commissioning - Older people Pool,Older People Mental Health Hunts,Nursing Independent Sector
Cambridgeshire County Council,20-Nov-15,19553323-12397737,-513.1,Heron House Care Home,Care Establishment,2 - Commissioning - Older people Pool,Older People Mental Health Hunts,Nursing Independent Sector
Cambridgeshire County Council,20-Nov-15,19553324-12397738,-513.1,Heron House Care Home,Care Establishment,2 - Commissioning - Older people Pool,Older People Mental Health Hunts,Nursing Independent Sector
Cambridgeshire County Council,20-Nov-15,19553326-12397740,-513.1,Heron House Care Home,Care Establishment,2 - Commissioning - Older people Pool,Older People Mental Health Hunts,Nursing Independent Sector
Cambridgeshire County Council,20-Nov-15,19553327-12397741,-513.1,Heron House Care Home,Care Establishment,2 - Commissioning - Older people Pool,Older People Mental Health Hunts,Nursing Independent Sector
Cambridgeshire County Council,20-Nov-15,19553330-12397744,-513.1,Heron House Care Home,Care Establishment,2 - Commissioning - Older people Pool,Older People Mental Health Hunts,Nursing Independent Sector
Cambridgeshire County Council,20-Nov-15,19553333-12397747,-513.1,Heron House Care Home,Care Establishment,2 - Commissioning - Older people Pool,Older People Mental Health Hunts,Nursing Independent Sector
Cambridgeshire County Council,20-Nov-15,19553334-12397748,-513.1,Heron House Care Home,Care Establishment,2 - Commissioning - Older people Pool,Older People Mental Health Hunts,Nursing Independent Sector
Cambridgeshire County Council,20-Nov-15,19553338-12397752,-513.1,Heron House Care Home,Care Establishment,2 - Commissioning - Older people Pool,Older People Mental Health Hunts,Nursing Independent Sector
Cambridgeshire County Council,20-Nov-15,19553339-12397753,-513.1,Heron House Care Home,Care Establishment,2 - Commissioning - Older people Pool,Older People Mental Health Hunts,Nursing Independent Sector
Cambridgeshire County Council,20-Nov-15,19553340-12397754,-513.1,Heron House Care Home,Care Establishment,2 - Commissioning - Older people Pool,Older People Mental Health Hunts,Nursing Independent Sector
Cambridgeshire County Council,20-Nov-15,19553344-12397716,-513.1,Heron House Care Home,Care Establishment,2 - Commissioning - Older people Pool,Older People Mental Health Hunts,Nursing Independent Sector
Cambridgeshire County Council,20-Nov-15,19553345-12397717,-513.1,Heron House Care Home,Care Establishment,2 - Commissioning - Older people Pool,Older People Mental Health Hunts,Nursing Independent Sector
Cambridgeshire County Council,20-Nov-15,19553346-12397718,-513.1,Heron House Care Home,Care Establishment,2 - Commissioning - Older people Pool,Older People Mental Health Hunts,Nursing Independent Sector
Cambridgeshire County Council,20-Nov-15,19553351-12397723,-513.1,Heron House Care Home,Care Establishment,2 - Commissioning - Older people Pool,Older People Mental Health Hunts,Nursing Independent Sector
Cambridgeshire County Council,20-Nov-15,19553352-12397724,-513.1,Heron House Care Home,Care Establishment,2 - Commissioning - Older people Pool,Older People Mental Health Hunts,Nursing Independent Sector
Cambridgeshire County Council,20-Nov-15,19553355-12397727,-513.1,Heron House Care Home,Care Establishment,2 - Commissioning - Older people Pool,Older People Mental Health Hunts,Nursing Independent Sector
Cambridgeshire County Council,05-Nov-15,19485887-12233512,-513.05,Ringshill Care Home,Care Establishment,2 - Commissioning - Older people Pool,Older People Mental Health Hunts,Nursing Independent Sector
Cambridgeshire County Council,05-Nov-15,19485888-12233513,-513.05,Ringshill Care Home,Care Establishment,2 - Commissioning - Older people Pool,Older People Mental Health Hunts,Nursing Independent Sector
Cambridgeshire County Council,05-Nov-15,19485890-12233515,-513.05,Ringshill Care Home,Care Establishment,2 - Commissioning - Older people Pool,Older People Mental Health Hunts,Nursing Independent Sector
Cambridgeshire County Council,05-Nov-15,19485892-12233517,-513.05,Ringshill Care Home,Care Establishment,2 - Commissioning - Older people Pool,Older People Mental Health Hunts,Nursing Independent Sector
Cambridgeshire County Council,05-Nov-15,19485895-12233520,-513.05,Ringshill Care Home,Care Establishment,2 - Commissioning - Older people Pool,Older People Mental Health Hunts,Nursing Independent Sector
Cambridgeshire County Council,13-Nov-15,19521483-12373266,-513.05,Ringshill Care Home,Care Establishment,2 - Commissioning - Older people Pool,Older People Mental Health Hunts,Nursing Independent Sector
Cambridgeshire County Council,13-Nov-15,19521484-12373267,-513.05,Ringshill Care Home,Care Establishment,2 - Commissioning - Older people Pool,Older People Mental Health Hunts,Nursing Independent Sector
Cambridgeshire County Council,13-Nov-15,19521487-12373270,-513.05,Ringshill Care Home,Care Establishment,2 - Commissioning - Older people Pool,Older People Mental Health Hunts,Nursing Independent Sector
Cambridgeshire County Council,13-Nov-15,19521488-12373271,-513.05,Ringshill Care Home,Care Establishment,2 - Commissioning - Older people Pool,Older People Mental Health Hunts,Nursing Independent Sector
Cambridgeshire County Council,13-Nov-15,19521489-12373272,-513.05,Ringshill Care Home,Care Establishment,2 - Commissioning - Older people Pool,Older People Mental Health Hunts,Nursing Independent Sector
Cambridgeshire County Council,27-Nov-15,19555611-12432317,-513.05,Ringshill Care Home,Care Establishment,2 - Commissioning - Older people Pool,Older People Mental Health Hunts,Nursing Independent Sector
Cambridgeshire County Council,27-Nov-15,19555613-12432319,-513.05,Ringshill Care Home,Care Establishment,2 - Commissioning - Older people Pool,Older People Mental Health Hunts,Nursing Independent Sector
Cambridgeshire County Council,27-Nov-15,19555614-12432320,-513.05,Ringshill Care Home,Care Establishment,2 - Commissioning - Older people Pool,Older People Mental Health Hunts,Nursing Independent Sector
Cambridgeshire County Council,27-Nov-15,19555620-12432326,-513.05,Ringshill Care Home,Care Establishment,2 - Commissioning - Older people Pool,Older People Mental Health Hunts,Nursing Independent Sector
Cambridgeshire County Council,27-Nov-15,19555622-12432328,-513.05,Ringshill Care Home,Care Establishment,2 - Commissioning - Older people Pool,Older People Mental Health Hunts,Nursing Independent Sector
Cambridgeshire County Council,27-Nov-15,19579868-12432308,-513.05,Ringshill Care Home,Care Establishment,2 - Commissioning - Older people Pool,Older People Mental Health Hunts,Nursing Independent Sector
Cambridgeshire County Council,27-Nov-15,19579870-12432310,-513.05,Ringshill Care Home,Care Establishment,2 - Commissioning - Older people Pool,Older People Mental Health Hunts,Nursing Independent Sector
Cambridgeshire County Council,27-Nov-15,19579872-12432312,-513.05,Ringshill Care Home,Care Establishment,2 - Commissioning - Older people Pool,Older People Mental Health Hunts,Nursing Independent Sector
Cambridgeshire County Council,27-Nov-15,19579873-12432313,-513.05,Ringshill Care Home,Care Establishment,2 - Commissioning - Older people Pool,Older People Mental Health Hunts,Nursing Independent Sector
Cambridgeshire County Council,27-Nov-15,19579874-12432314,-513.05,Ringshill Care Home,Care Establishment,2 - Commissioning - Older people Pool,Older People Mental Health Hunts,Nursing Independent Sector
Cambridgeshire County Council,13-Nov-15,19437006-12372969,-500,Hatley Court Ltd,Care Establishment,2 - Commissioning - Older people Pool,East Cambs - O P Team,Residential Independent Sector
Cambridgeshire County Council,20-Nov-15,19557727-12399965,-500,Kelam Health Care Ltd T/A Paxton Hall Care Home,Care Establishment,2 - Commissioning - Older people Pool,Older People - City & South,Residential Independent Sector
Cambridgeshire County Council,20-Nov-15,19557728-12399966,-500,Kelam Health Care Ltd T/A Paxton Hall Care Home,Care Establishment,2 - Commissioning - Older people Pool,Older People - City & South,Residential Independent Sector
Cambridgeshire County Council,20-Nov-15,19557729-12399967,-500,Kelam Health Care Ltd T/A Paxton Hall Care Home,Care Establishment,2 - Commissioning - Older people Pool,Older People - City & South,Residential Independent Sector
Cambridgeshire County Council,20-Nov-15,19557731-12399969,-500,Kelam Health Care Ltd T/A Paxton Hall Care Home,Care Establishment,2 - Commissioning - Older people Pool,Older People - City & South,Residential Independent Sector
Cambridgeshire County Council,02-Nov-15,19423417-12222594,500,Anglia Cars,Trade Supplier,S&C,Catering - Shelton Lower,Vehicle hire
Cambridgeshire County Council,09-Nov-15,19447113-12243583,500,Arts Council England,Charity,Schools,Pilgrim Pru,Subscriptions
Cambridgeshire County Council,11-Nov-15,19449018-12250553,500,Leonard A Priestley Minibus Travel,Trade Supplier,E&P,YS - M&C NCS Project,Specialist equipment for service provision
Cambridgeshire County Council,17-Nov-15,19480934-12377957,500,Ascentis Awarding Organisation,Trade Supplier,Corporate Services,AL&S Accreditation,Exam Fees
Cambridgeshire County Council,05-Nov-15,19481114-12241358,500,Lifeplus,Company,Growth & Economy,LSTF - TfW Resources,Marketing
Cambridgeshire County Council,05-Nov-15,19484755-12238260,500,Kelam Health Care Ltd T/A Paxton Hall Care Home,Care Establishment,2 - Commissioning - Older people Pool,Older People - City & South,Residential Independent Sector
Cambridgeshire County Council,05-Nov-15,19484756-12238261,500,Kelam Health Care Ltd T/A Paxton Hall Care Home,Care Establishment,2 - Commissioning - Older people Pool,Older People - City & South,Residential Independent Sector
Cambridgeshire County Council,05-Nov-15,19484757-12238262,500,Kelam Health Care Ltd T/A Paxton Hall Care Home,Care Establishment,2 - Commissioning - Older people Pool,Older People - City & South,Residential Independent Sector
Cambridgeshire County Council,05-Nov-15,19484758-12238263,500,Kelam Health Care Ltd T/A Paxton Hall Care Home,Care Establishment,2 - Commissioning - Older people Pool,Older People - City & South,Residential Independent Sector
Cambridgeshire County Council,05-Nov-15,19486587-12237977,500,Redacted Personal Data,Individual,2 - Operations - Learning Disability,LDP Huntingdonshire Team,SDS - Live Independently
Cambridgeshire County Council,05-Nov-15,19486588-12237978,500,Redacted Personal Data,Individual,2 - Operations - Learning Disability,LDP Huntingdonshire Team,SDS - Live Independently
Cambridgeshire County Council,05-Nov-15,19486594-12237975,500,Redacted Personal Data,Individual,2 - Operations - Learning Disability,LDP Huntingdonshire Team,SDS - Live Independently
Cambridgeshire County Council,05-Nov-15,19486608-12237976,500,Redacted Personal Data,Individual,2 - Operations - Learning Disability,LDP Huntingdonshire Team,SDS - Live Independently
Cambridgeshire County Council,05-Nov-15,19488548-12239499,500,Redacted Personal Data,Parent/Guardian,3 - Operations - Countywide Services,Countywide PD Service,Direct Payments - Social Services
Cambridgeshire County Council,05-Nov-15,19488549-12239500,500,Redacted Personal Data,Parent/Guardian,3 - Operations - Countywide Services,Countywide PD Service,Direct Payments - Social Services
Cambridgeshire County Council,05-Nov-15,19488550-12239501,500,Redacted Personal Data,Parent/Guardian,3 - Operations - Countywide Services,Countywide PD Service,Direct Payments - Social Services
Cambridgeshire County Council,05-Nov-15,19488551-12239502,500,Redacted Personal Data,Parent/Guardian,3 - Operations - Countywide Services,Countywide PD Service,Direct Payments - Social Services
Cambridgeshire County Council,05-Nov-15,19492014-12234175,500,Cambridge Conservation Forum,Local Clubs & Groups,Supporting Businesses and Communities,Open Spaces,Joint / Partnership Funding
Cambridgeshire County Council,13-Nov-15,19515153-12374685,500,The Hillings Limited,Care Establishment,2 - Commissioning - Older people Pool,Hunts O P  Team,Respite Independent Sector
Cambridgeshire County Council,17-Nov-15,19533935-12378416,500,Redacted Personal Data,Individual,4 - Commissioning - Mental Health & Supporting People,Adult Mental Health - North Carers,Direct Payments - Social Services
Cambridgeshire County Council,17-Nov-15,19537423-12376849,500,South London And Maudsley Nhs Trust,Trade Supplier,E&P,YOT - MST,Staff Training & Development
Cambridgeshire County Council,20-Nov-15,19558917-12403375,500,Gracefield Nursing And Residential Home,Care Establishment,2 - Commissioning - Older people Pool,Older People Mental Health Hunts,Nursing Independent Sector
Cambridgeshire County Council,20-Nov-15,19558918-12403376,500,Gracefield Nursing And Residential Home,Care Establishment,2 - Commissioning - Older people Pool,Older People Mental Health Hunts,Nursing Independent Sector
Cambridgeshire County Council,20-Nov-15,19558919-12403377,500,Gracefield Nursing And Residential Home,Care Establishment,2 - Commissioning - Older people Pool,Older People Mental Health Hunts,Nursing Independent Sector
Cambridgeshire County Council,20-Nov-15,19558920-12403378,500,Gracefield Nursing And Residential Home,Care Establishment,2 - Commissioning - Older people Pool,Older People Mental Health Hunts,Nursing Independent Sector
Cambridgeshire County Council,26-Nov-15,19576314-12423452,500,Redacted Personal Data,Individual,CSC,CSC Direct Payments,Direct Payments - Social Services
Cambridgeshire County Council,26-Nov-15,19576914-12423492,500,Camcab Ltd,Trade Supplier,2 - Operations - Learning Disability,LDP City Team,SDS - PB Travel
Cambridgeshire County Council,27-Nov-15,19583465-12430543,500,Fenland Association For Community Transport Ltd (Fact),Local Clubs & Groups,2 - Commissioning - Older people Pool,Older People - Fenland,SDS - PB Travel
Cambridgeshire County Council,10-Nov-15,19498379-12246610,500.02,Veolia Environmental Services,Company,LRNG,Grafham Water Centre,Refuse collection charge
Cambridgeshire County Council,04-Nov-15,19479832-12229460,500.47,Shirley Primary School,Education,LGSS Managed,Chesterton Childrens Centre,Buildings service charges
Cambridgeshire County Council,04-Nov-15,19479833-12229461,500.47,Shirley Primary School,Education,LGSS Managed,Chesterton Childrens Centre,Buildings service charges
Cambridgeshire County Council,25-Nov-15,19553568-12416041,500.58,Veolia Environmental Services,Company,LRNG,Grafham Water Centre,Refuse collection charge
Cambridgeshire County Council,20-Nov-15,19557596-12397585,500.58,Rose Lodge,Care Establishment,2 - Commissioning - Older people Pool,Older People - Fenland,Nursing Independent Sector
Cambridgeshire County Council,20-Nov-15,19557603-12397586,500.58,Rose Lodge,Care Establishment,2 - Commissioning - Older people Pool,Older People - Fenland,Nursing Independent Sector
Cambridgeshire County Council,20-Nov-15,19557604-12397587,500.58,Rose Lodge,Care Establishment,2 - Commissioning - Older people Pool,Older People - Fenland,Nursing Independent Sector
Cambridgeshire County Council,20-Nov-15,19557616-12397588,500.58,Rose Lodge,Care Establishment,2 - Commissioning - Older people Pool,Older People - Fenland,Nursing Independent Sector
Cambridgeshire County Council,25-Nov-15,19539615-12415809,500.9,Securitas Security Services (Uk) Limited,Trade Supplier,LGSS Managed,March Community Centre,Security Services
Cambridgeshire County Council,25-Nov-15,19568926-12415807,500.9,Securitas Security Services (Uk) Limited,Trade Supplier,LGSS Managed,March Community Centre,Security Services
Cambridgeshire County Council,04-Nov-15,19479830-12229458,501.47,Shirley Primary School,Education,LGSS Managed,Chesterton Childrens Centre,Buildings service charges
Cambridgeshire County Council,04-Nov-15,19479831-12229459,501.47,Shirley Primary School,Education,LGSS Managed,Chesterton Childrens Centre,Buildings service charges
Cambridgeshire County Council,18-Nov-15,19540961-12382150,501.59,Espo,Trade Supplier,S&C,Catering Direct Overheads,Cleaning Materials
Cambridgeshire County Council,19-Nov-15,19279063-12385453,501.96,Insight Direct (Uk) Ltd,Trade Supplier,LGSS,Corporate Office IT Assets,Computer hardware
Cambridgeshire County Council,03-Nov-15,19478187-12226756,502.48,Redacted Personal Data,Foster Parent,CSC,FCP allowances,Boarding Out Allowances
Cambridgeshire County Council,13-Nov-15,19521764-12362061,502.5,Cedar Court Care Ltd,Care Establishment,2 - Commissioning - Older people Pool,Hunts O P  Team,Nursing Independent Sector
Cambridgeshire County Council,13-Nov-15,19521766-12362062,502.5,Cedar Court Care Ltd,Care Establishment,2 - Commissioning - Older people Pool,Hunts O P  Team,Nursing Independent Sector
Cambridgeshire County Council,13-Nov-15,19521768-12362063,502.5,Cedar Court Care Ltd,Care Establishment,2 - Commissioning - Older people Pool,Hunts O P  Team,Nursing Independent Sector
Cambridgeshire County Council,13-Nov-15,19521769-12362064,502.5,Cedar Court Care Ltd,Care Establishment,2 - Commissioning - Older people Pool,Hunts O P  Team,Nursing Independent Sector
Cambridgeshire County Council,20-Nov-15,19557031-12401448,502.5,Woodlands Care Centre,Care Establishment,2 - Commissioning - Older people Pool,Older People Mental Health City & South,Residential Independent Sector
Cambridgeshire County Council,20-Nov-15,19557032-12401449,502.5,Woodlands Care Centre,Care Establishment,2 - Commissioning - Older people Pool,Older People Mental Health City & South,Residential Independent Sector
Cambridgeshire County Council,20-Nov-15,19557033-12401450,502.5,Woodlands Care Centre,Care Establishment,2 - Commissioning - Older people Pool,Older People Mental Health City & South,Residential Independent Sector
Cambridgeshire County Council,20-Nov-15,19557034-12401451,502.5,Woodlands Care Centre,Care Establishment,2 - Commissioning - Older people Pool,Older People Mental Health City & South,Residential Independent Sector
Cambridgeshire County Council,13-Nov-15,19516102-12362641,502.95,Mihomecare Ltd (Fenland Premier Care),Care Establishment,2 - Commissioning - Older people Pool,East Cambs - O P Team,Day and Domicillary Care Independent Sector
Cambridgeshire County Council,13-Nov-15,19516103-12362642,502.95,Mihomecare Ltd (Fenland Premier Care),Care Establishment,2 - Commissioning - Older people Pool,East Cambs - O P Team,Day and Domicillary Care Independent Sector
Cambridgeshire County Council,13-Nov-15,19517304-12362550,502.95,Mihomecare Ltd (Fenland Premier Care),Care Establishment,2 - Commissioning - Older people Pool,East Cambs - O P Team,Day and Domicillary Care Independent Sector
Cambridgeshire County Council,13-Nov-15,19517305-12362551,502.95,Mihomecare Ltd (Fenland Premier Care),Care Establishment,2 - Commissioning - Older people Pool,East Cambs - O P Team,Day and Domicillary Care Independent Sector
Cambridgeshire County Council,13-Nov-15,19517306-12362552,502.95,Mihomecare Ltd (Fenland Premier Care),Care Establishment,2 - Commissioning - Older people Pool,East Cambs - O P Team,Day and Domicillary Care Independent Sector
Cambridgeshire County Council,13-Nov-15,19517307-12362553,502.95,Mihomecare Ltd (Fenland Premier Care),Care Establishment,2 - Commissioning - Older people Pool,East Cambs - O P Team,Day and Domicillary Care Independent Sector
Cambridgeshire County Council,13-Nov-15,19521292-12362787,502.95,Mihomecare Ltd (Fenland Premier Care),Care Establishment,2 - Commissioning - Older people Pool,East Cambs - O P Team,Day and Domicillary Care Independent Sector
Cambridgeshire County Council,13-Nov-15,19521293-12362788,502.95,Mihomecare Ltd (Fenland Premier Care),Care Establishment,2 - Commissioning - Older people Pool,East Cambs - O P Team,Day and Domicillary Care Independent Sector
Cambridgeshire County Council,13-Nov-15,19521294-12362789,502.95,Mihomecare Ltd (Fenland Premier Care),Care Establishment,2 - Commissioning - Older people Pool,East Cambs - O P Team,Day and Domicillary Care Independent Sector
Cambridgeshire County Council,13-Nov-15,19521295-12362790,502.95,Mihomecare Ltd (Fenland Premier Care),Care Establishment,2 - Commissioning - Older people Pool,East Cambs - O P Team,Day and Domicillary Care Independent Sector
Cambridgeshire County Council,13-Nov-15,19528459-12368140,502.95,Mihomecare Ltd (Enara Hunts),Care Establishment,3 - Operations - Countywide Services,Countywide PD Service,Day and Domicillary Care Independent Sector
Cambridgeshire County Council,13-Nov-15,19528460-12368141,502.95,Mihomecare Ltd (Enara Hunts),Care Establishment,3 - Operations - Countywide Services,Countywide PD Service,Day and Domicillary Care Independent Sector
Cambridgeshire County Council,13-Nov-15,19528461-12368142,502.95,Mihomecare Ltd (Enara Hunts),Care Establishment,3 - Operations - Countywide Services,Countywide PD Service,Day and Domicillary Care Independent Sector
Cambridgeshire County Council,13-Nov-15,19528462-12368143,502.95,Mihomecare Ltd (Enara Hunts),Care Establishment,3 - Operations - Countywide Services,Countywide PD Service,Day and Domicillary Care Independent Sector
Cambridgeshire County Council,13-Nov-15,19515143-12368431,503.08,Orchard House Nursing Home,Care Establishment,2 - Commissioning - Older people Pool,Older People - Fenland,Nursing Independent Sector
Cambridgeshire County Council,13-Nov-15,19515145-12368432,503.08,Orchard House Nursing Home,Care Establishment,2 - Commissioning - Older people Pool,Older People - Fenland,Nursing Independent Sector
Cambridgeshire County Council,13-Nov-15,19515146-12368433,503.08,Orchard House Nursing Home,Care Establishment,2 - Commissioning - Older people Pool,Older People - Fenland,Nursing Independent Sector
Cambridgeshire County Council,13-Nov-15,19515147-12368434,503.08,Orchard House Nursing Home,Care Establishment,2 - Commissioning - Older people Pool,Older People - Fenland,Nursing Independent Sector
Cambridgeshire County Council,13-Nov-15,19516226-12368407,503.08,Orchard House Nursing Home,Care Establishment,2 - Commissioning - Older people Pool,Older People - Fenland,Nursing Independent Sector
Cambridgeshire County Council,13-Nov-15,19516228-12368408,503.08,Orchard House Nursing Home,Care Establishment,2 - Commissioning - Older people Pool,Older People - Fenland,Nursing Independent Sector
Cambridgeshire County Council,13-Nov-15,19516229-12368409,503.08,Orchard House Nursing Home,Care Establishment,2 - Commissioning - Older people Pool,Older People - Fenland,Nursing Independent Sector
Cambridgeshire County Council,13-Nov-15,19516231-12368410,503.08,Orchard House Nursing Home,Care Establishment,2 - Commissioning - Older people Pool,Older People - Fenland,Nursing Independent Sector
Cambridgeshire County Council,13-Nov-15,19517523-12368509,503.08,Orchard House Nursing Home,Care Establishment,2 - Commissioning - Older people Pool,Older People - Fenland,Nursing Independent Sector
Cambridgeshire County Council,13-Nov-15,19517525-12368510,503.08,Orchard House Nursing Home,Care Establishment,2 - Commissioning - Older people Pool,Older People - Fenland,Nursing Independent Sector
Cambridgeshire County Council,13-Nov-15,19517527-12368511,503.08,Orchard House Nursing Home,Care Establishment,2 - Commissioning - Older people Pool,Older People - Fenland,Nursing Independent Sector
Cambridgeshire County Council,13-Nov-15,19517528-12368512,503.08,Orchard House Nursing Home,Care Establishment,2 - Commissioning - Older people Pool,Older People - Fenland,Nursing Independent Sector
Cambridgeshire County Council,13-Nov-15,19519630-12368461,503.08,Orchard House Nursing Home,Care Establishment,2 - Commissioning - Older people Pool,Older People Mental Health Fenland,Nursing Independent Sector
Cambridgeshire County Council,13-Nov-15,19519631-12368462,503.08,Orchard House Nursing Home,Care Establishment,2 - Commissioning - Older people Pool,Older People Mental Health Fenland,Nursing Independent Sector
Cambridgeshire County Council,13-Nov-15,19519635-12368463,503.08,Orchard House Nursing Home,Care Establishment,2 - Commissioning - Older people Pool,Older People Mental Health Fenland,Nursing Independent Sector
Cambridgeshire County Council,13-Nov-15,19519638-12368464,503.08,Orchard House Nursing Home,Care Establishment,2 - Commissioning - Older people Pool,Older People Mental Health Fenland,Nursing Independent Sector
Cambridgeshire County Council,13-Nov-15,19524830-12368495,503.08,Orchard House Nursing Home,Care Establishment,2 - Commissioning - Older people Pool,Older People - Fenland,Nursing Independent Sector
Cambridgeshire County Council,13-Nov-15,19524831-12368496,503.08,Orchard House Nursing Home,Care Establishment,2 - Commissioning - Older people Pool,Older People - Fenland,Nursing Independent Sector
Cambridgeshire County Council,13-Nov-15,19524832-12368497,503.08,Orchard House Nursing Home,Care Establishment,2 - Commissioning - Older people Pool,Older People - Fenland,Nursing Independent Sector
Cambridgeshire County Council,13-Nov-15,19524833-12368498,503.08,Orchard House Nursing Home,Care Establishment,2 - Commissioning - Older people Pool,Older People - Fenland,Nursing Independent Sector
Cambridgeshire County Council,13-Nov-15,19527486-12368440,503.08,Orchard House Nursing Home,Care Establishment,2 - Commissioning - Older people Pool,Older People - Fenland,Nursing Independent Sector
Cambridgeshire County Council,13-Nov-15,19527494-12368441,503.08,Orchard House Nursing Home,Care Establishment,2 - Commissioning - Older people Pool,Older People - Fenland,Nursing Independent Sector
Cambridgeshire County Council,13-Nov-15,19527495-12368442,503.08,Orchard House Nursing Home,Care Establishment,2 - Commissioning - Older people Pool,Older People - Fenland,Nursing Independent Sector
Cambridgeshire County Council,13-Nov-15,19527502-12368443,503.08,Orchard House Nursing Home,Care Establishment,2 - Commissioning - Older people Pool,Older People - Fenland,Nursing Independent Sector
Cambridgeshire County Council,13-Nov-15,19528402-12368427,503.08,Orchard House Nursing Home,Care Establishment,2 - Commissioning - Older people Pool,Older People - Fenland,Nursing Independent Sector
Cambridgeshire County Council,13-Nov-15,19528411-12368428,503.08,Orchard House Nursing Home,Care Establishment,2 - Commissioning - Older people Pool,Older People - Fenland,Nursing Independent Sector
Cambridgeshire County Council,13-Nov-15,19528413-12368429,503.08,Orchard House Nursing Home,Care Establishment,2 - Commissioning - Older people Pool,Older People - Fenland,Nursing Independent Sector
Cambridgeshire County Council,13-Nov-15,19528416-12368430,503.08,Orchard House Nursing Home,Care Establishment,2 - Commissioning - Older people Pool,Older People - Fenland,Nursing Independent Sector
Cambridgeshire County Council,13-Nov-15,19531777-12368491,503.08,Orchard House Nursing Home,Care Establishment,2 - Commissioning - Older people Pool,Older People - Fenland,Nursing Independent Sector
Cambridgeshire County Council,13-Nov-15,19531783-12368492,503.08,Orchard House Nursing Home,Care Establishment,2 - Commissioning - Older people Pool,Older People - Fenland,Nursing Independent Sector
Cambridgeshire County Council,13-Nov-15,19531787-12368493,503.08,Orchard House Nursing Home,Care Establishment,2 - Commissioning - Older people Pool,Older People - Fenland,Nursing Independent Sector
Cambridgeshire County Council,13-Nov-15,19531789-12368494,503.08,Orchard House Nursing Home,Care Establishment,2 - Commissioning - Older people Pool,Older People - Fenland,Nursing Independent Sector
Cambridgeshire County Council,13-Nov-15,19521270-12354488,503.09,Loughton Hall,Care Establishment,2 - Commissioning - Older people Pool,Older People - City & South,Residential Independent Sector
Cambridgeshire County Council,13-Nov-15,19521271-12354489,503.09,Loughton Hall,Care Establishment,2 - Commissioning - Older people Pool,Older People - City & South,Residential Independent Sector
Cambridgeshire County Council,13-Nov-15,19521273-12354490,503.09,Loughton Hall,Care Establishment,2 - Commissioning - Older people Pool,Older People - City & South,Residential Independent Sector
Cambridgeshire County Council,13-Nov-15,19521274-12354491,503.09,Loughton Hall,Care Establishment,2 - Commissioning - Older people Pool,Older People - City & South,Residential Independent Sector
Cambridgeshire County Council,23-Nov-15,19479829-12407495,503.47,Shirley Primary School,Education,LGSS Managed,Chesterton Childrens Centre,Buildings service charges
Cambridgeshire County Council,10-Nov-15,19478359-12246479,503.91,Lex Autolease Ltd,Trade Supplier,4 - Operations - Providers services,No. 18 Alder Close High Supported Living Scheme,Leased Vehicle Costs
Cambridgeshire County Council,27-Nov-15,19582972-12427980,503.94,Trans Uk Supplies Ltd,Trade Supplier,Corporate Services,Support - Stock & Distribution,DVDs - for hire
Cambridgeshire County Council,09-Nov-15,19425581-12243749,504,Global Tree Solutions Ltd,Company,S&C,"Grounds Management Service - Client	",Grounds Maintenance - Trees
Cambridgeshire County Council,03-Nov-15,19448027-12227217,504,Coach And Horses Guest House,Trade Supplier,CSC,CSC Access Unit 3,Living support grants
Cambridgeshire County Council,10-Nov-15,19497378-12246462,504,Coach And Horses Guest House,Trade Supplier,CSC,CSC Access Unit 3,Living support grants
Cambridgeshire County Council,13-Nov-15,19520921-12373295,504.1,Ringshill Care Home,Care Establishment,2 - Commissioning - Older people Pool,Hunts O P  Team,Nursing Independent Sector
Cambridgeshire County Council,13-Nov-15,19520922-12373296,504.1,Ringshill Care Home,Care Establishment,2 - Commissioning - Older people Pool,Hunts O P  Team,Nursing Independent Sector
Cambridgeshire County Council,13-Nov-15,19520923-12373297,504.1,Ringshill Care Home,Care Establishment,2 - Commissioning - Older people Pool,Hunts O P  Team,Nursing Independent Sector
Cambridgeshire County Council,13-Nov-15,19520924-12373298,504.1,Ringshill Care Home,Care Establishment,2 - Commissioning - Older people Pool,Hunts O P  Team,Nursing Independent Sector
Cambridgeshire County Council,13-Nov-15,19522843-12373238,504.1,Ringshill Care Home,Care Establishment,2 - Commissioning - Older people Pool,Hunts O P  Team,Nursing Independent Sector
Cambridgeshire County Council,13-Nov-15,19522844-12373239,504.1,Ringshill Care Home,Care Establishment,2 - Commissioning - Older people Pool,Hunts O P  Team,Nursing Independent Sector
Cambridgeshire County Council,13-Nov-15,19522845-12373240,504.1,Ringshill Care Home,Care Establishment,2 - Commissioning - Older people Pool,Hunts O P  Team,Nursing Independent Sector
Cambridgeshire County Council,13-Nov-15,19522846-12373241,504.1,Ringshill Care Home,Care Establishment,2 - Commissioning - Older people Pool,Hunts O P  Team,Nursing Independent Sector
Cambridgeshire County Council,27-Nov-15,19580052-12431220,504.19,Orchard House Nursing Home,Care Establishment,2 - Commissioning - Older people Pool,Older People - Fenland,Nursing Independent Sector
Cambridgeshire County Council,27-Nov-15,19580053-12431221,504.19,Orchard House Nursing Home,Care Establishment,2 - Commissioning - Older people Pool,Older People - Fenland,Nursing Independent Sector
Cambridgeshire County Council,27-Nov-15,19580055-12431223,504.19,Orchard House Nursing Home,Care Establishment,2 - Commissioning - Older people Pool,Older People - Fenland,Nursing Independent Sector
Cambridgeshire County Council,27-Nov-15,19580056-12431224,504.19,Orchard House Nursing Home,Care Establishment,2 - Commissioning - Older people Pool,Older People - Fenland,Nursing Independent Sector
Cambridgeshire County Council,27-Nov-15,19580058-12431226,504.19,Orchard House Nursing Home,Care Establishment,2 - Commissioning - Older people Pool,Older People - Fenland,Nursing Independent Sector
Cambridgeshire County Council,27-Nov-15,19580059-12431227,504.19,Orchard House Nursing Home,Care Establishment,2 - Commissioning - Older people Pool,Older People - Fenland,Nursing Independent Sector
Cambridgeshire County Council,27-Nov-15,19580061-12431229,504.19,Orchard House Nursing Home,Care Establishment,2 - Commissioning - Older people Pool,Older People - Fenland,Nursing Independent Sector
Cambridgeshire County Council,27-Nov-15,19580062-12431230,504.19,Orchard House Nursing Home,Care Establishment,2 - Commissioning - Older people Pool,Older People - Fenland,Nursing Independent Sector
Cambridgeshire County Council,27-Nov-15,19580064-12431232,504.19,Orchard House Nursing Home,Care Establishment,2 - Commissioning - Older people Pool,Older People - Fenland,Nursing Independent Sector
Cambridgeshire County Council,27-Nov-15,19580065-12431233,504.19,Orchard House Nursing Home,Care Establishment,2 - Commissioning - Older people Pool,Older People - Fenland,Nursing Independent Sector
Cambridgeshire County Council,27-Nov-15,19580066-12431234,504.19,Orchard House Nursing Home,Care Establishment,2 - Commissioning - Older people Pool,Older People - Fenland,Nursing Independent Sector
Cambridgeshire County Council,27-Nov-15,19580067-12431235,504.19,Orchard House Nursing Home,Care Establishment,2 - Commissioning - Older people Pool,Older People - Fenland,Nursing Independent Sector
Cambridgeshire County Council,27-Nov-15,19580068-12431236,504.19,Orchard House Nursing Home,Care Establishment,2 - Commissioning - Older people Pool,Older People - Fenland,Nursing Independent Sector
Cambridgeshire County Council,27-Nov-15,19580069-12431237,504.19,Orchard House Nursing Home,Care Establishment,2 - Commissioning - Older people Pool,Older People - Fenland,Nursing Independent Sector
Cambridgeshire County Council,27-Nov-15,19580070-12431238,504.19,Orchard House Nursing Home,Care Establishment,2 - Commissioning - Older people Pool,Older People - Fenland,Nursing Independent Sector
Cambridgeshire County Council,27-Nov-15,19580071-12431239,504.19,Orchard House Nursing Home,Care Establishment,2 - Commissioning - Older people Pool,Older People - Fenland,Nursing Independent Sector
Cambridgeshire County Council,27-Nov-15,19580072-12431240,504.19,Orchard House Nursing Home,Care Establishment,2 - Commissioning - Older people Pool,Older People - Fenland,Nursing Independent Sector
Cambridgeshire County Council,27-Nov-15,19580073-12431241,504.19,Orchard House Nursing Home,Care Establishment,2 - Commissioning - Older people Pool,Older People - Fenland,Nursing Independent Sector
Cambridgeshire County Council,27-Nov-15,19580074-12431242,504.19,Orchard House Nursing Home,Care Establishment,2 - Commissioning - Older people Pool,Older People - Fenland,Nursing Independent Sector
Cambridgeshire County Council,27-Nov-15,19580075-12431243,504.19,Orchard House Nursing Home,Care Establishment,2 - Commissioning - Older people Pool,Older People - Fenland,Nursing Independent Sector
Cambridgeshire County Council,27-Nov-15,19580077-12431245,504.19,Orchard House Nursing Home,Care Establishment,2 - Commissioning - Older people Pool,Older People - Fenland,Nursing Independent Sector
Cambridgeshire County Council,27-Nov-15,19580078-12431246,504.19,Orchard House Nursing Home,Care Establishment,2 - Commissioning - Older people Pool,Older People - Fenland,Nursing Independent Sector
Cambridgeshire County Council,27-Nov-15,19580079-12431247,504.19,Orchard House Nursing Home,Care Establishment,2 - Commissioning - Older people Pool,Older People - Fenland,Nursing Independent Sector
Cambridgeshire County Council,27-Nov-15,19580080-12431248,504.19,Orchard House Nursing Home,Care Establishment,2 - Commissioning - Older people Pool,Older People - Fenland,Nursing Independent Sector
Cambridgeshire County Council,27-Nov-15,19580081-12431249,504.19,Orchard House Nursing Home,Care Establishment,2 - Commissioning - Older people Pool,Older People - Fenland,Nursing Independent Sector
Cambridgeshire County Council,27-Nov-15,19580083-12431251,504.19,Orchard House Nursing Home,Care Establishment,2 - Commissioning - Older people Pool,Older People - Fenland,Nursing Independent Sector
Cambridgeshire County Council,27-Nov-15,19580084-12431252,504.19,Orchard House Nursing Home,Care Establishment,2 - Commissioning - Older people Pool,Older People - Fenland,Nursing Independent Sector
Cambridgeshire County Council,27-Nov-15,19580086-12431254,504.19,Orchard House Nursing Home,Care Establishment,2 - Commissioning - Older people Pool,Older People - Fenland,Nursing Independent Sector
Cambridgeshire County Council,27-Nov-15,19580087-12431255,504.19,Orchard House Nursing Home,Care Establishment,2 - Commissioning - Older people Pool,Older People - Fenland,Nursing Independent Sector
Cambridgeshire County Council,27-Nov-15,19582042-12431218,504.19,Orchard House Nursing Home,Care Establishment,2 - Commissioning - Older people Pool,Older People - Fenland,Nursing Independent Sector
Cambridgeshire County Council,27-Nov-15,19582043-12431219,504.19,Orchard House Nursing Home,Care Establishment,2 - Commissioning - Older people Pool,Older People - Fenland,Nursing Independent Sector
Cambridgeshire County Council,05-Nov-15,19483264-12236206,504.44,Redacted Personal Data,Individual,3 - Operations - Countywide Services,Countywide PD Service,Direct Payments - Social Services
Cambridgeshire County Council,05-Nov-15,19483265-12236207,504.44,Redacted Personal Data,Individual,3 - Operations - Countywide Services,Countywide PD Service,Direct Payments - Social Services
Cambridgeshire County Council,05-Nov-15,19483268-12236210,504.44,Redacted Personal Data,Individual,3 - Operations - Countywide Services,Countywide PD Service,Direct Payments - Social Services
Cambridgeshire County Council,05-Nov-15,19483274-12236216,504.44,Redacted Personal Data,Individual,3 - Operations - Countywide Services,Countywide PD Service,Direct Payments - Social Services
Cambridgeshire County Council,13-Nov-15,19515816-12357397,504.48,Care Uk Limited,Care Establishment,2 - Commissioning - Older people Pool,Older People Mental Health Hunts,Nursing Independent Sector
Cambridgeshire County Council,13-Nov-15,19515817-12357398,504.48,Care Uk Limited,Care Establishment,2 - Commissioning - Older people Pool,Older People Mental Health Hunts,Nursing Independent Sector
Cambridgeshire County Council,13-Nov-15,19515818-12357399,504.48,Care Uk Limited,Care Establishment,2 - Commissioning - Older people Pool,Older People Mental Health Hunts,Nursing Independent Sector
Cambridgeshire County Council,13-Nov-15,19515819-12357396,504.48,Care Uk Limited,Care Establishment,2 - Commissioning - Older people Pool,Older People Mental Health Hunts,Nursing Independent Sector
Cambridgeshire County Council,13-Nov-15,19519119-12360664,504.48,Soham Lodge,Care Establishment,2 - Commissioning - Older people Pool,Older People Mental Health E Cambs,Nursing Independent Sector
Cambridgeshire County Council,13-Nov-15,19519154-12360661,504.48,Soham Lodge,Care Establishment,2 - Commissioning - Older people Pool,Older People Mental Health E Cambs,Nursing Independent Sector
Cambridgeshire County Council,13-Nov-15,19519155-12360662,504.48,Soham Lodge,Care Establishment,2 - Commissioning - Older people Pool,Older People Mental Health E Cambs,Nursing Independent Sector
Cambridgeshire County Council,13-Nov-15,19519171-12360663,504.48,Soham Lodge,Care Establishment,2 - Commissioning - Older people Pool,Older People Mental Health E Cambs,Nursing Independent Sector
Cambridgeshire County Council,13-Nov-15,19526983-12374846,504.48,Ford House Care Home,Care Establishment,2 - Commissioning - Older people Pool,Older People Mental Health Hunts,Nursing Independent Sector
Cambridgeshire County Council,13-Nov-15,19526984-12374847,504.48,Ford House Care Home,Care Establishment,2 - Commissioning - Older people Pool,Older People Mental Health Hunts,Nursing Independent Sector
Cambridgeshire County Council,13-Nov-15,19526988-12374849,504.48,Ford House Care Home,Care Establishment,2 - Commissioning - Older people Pool,Older People Mental Health Hunts,Nursing Independent Sector
Cambridgeshire County Council,13-Nov-15,19526991-12374852,504.48,Ford House Care Home,Care Establishment,2 - Commissioning - Older people Pool,Older People Mental Health Hunts,Nursing Independent Sector
Cambridgeshire County Council,20-Nov-15,19555091-12399636,504.48,Abbey Healthcare (Huntingdon) Ltd,Care Establishment,2 - Commissioning - Older people Pool,Older People Mental Health Hunts,Nursing Independent Sector
Cambridgeshire County Council,20-Nov-15,19555098-12399639,504.48,Abbey Healthcare (Huntingdon) Ltd,Care Establishment,2 - Commissioning - Older people Pool,Older People Mental Health Hunts,Nursing Independent Sector
Cambridgeshire County Council,20-Nov-15,19555101-12399640,504.48,Abbey Healthcare (Huntingdon) Ltd,Care Establishment,2 - Commissioning - Older people Pool,Older People Mental Health Hunts,Nursing Independent Sector
Cambridgeshire County Council,20-Nov-15,19558405-12399613,504.48,Abbey Healthcare (Huntingdon) Ltd,Care Establishment,2 - Commissioning - Older people Pool,Older People Mental Health Hunts,Nursing Independent Sector
Cambridgeshire County Council,20-Nov-15,19558921-12399609,504.48,Abbey Healthcare (Huntingdon) Ltd,Care Establishment,2 - Commissioning - Older people Pool,Older People Mental Health Hunts,Nursing Independent Sector
Cambridgeshire County Council,20-Nov-15,19558922-12399610,504.48,Abbey Healthcare (Huntingdon) Ltd,Care Establishment,2 - Commissioning - Older people Pool,Older People Mental Health Hunts,Nursing Independent Sector
Cambridgeshire County Council,20-Nov-15,19559318-12399671,504.48,Abbey Healthcare (Huntingdon) Ltd,Care Establishment,2 - Commissioning - Older people Pool,Older People Mental Health Hunts,Nursing Independent Sector
Cambridgeshire County Council,20-Nov-15,19559319-12399672,504.48,Abbey Healthcare (Huntingdon) Ltd,Care Establishment,2 - Commissioning - Older people Pool,Older People Mental Health Hunts,Nursing Independent Sector
Cambridgeshire County Council,17-Nov-15,19535239-12377952,504.74,East Cambridgeshire District Council,Other Public Bodies,Control Accounts,Third Party Deductions - Oracle,Suspense/Other bodies Expenditure / Payments
Cambridgeshire County Council,13-Nov-15,19517230-12365140,504.86,Cambridgeshire Homecare,Care Establishment,2 - Commissioning - Older people Pool,Hunts O P  Team,Day and Domicillary Care Independent Sector
Cambridgeshire County Council,13-Nov-15,19517237-12365142,504.86,Cambridgeshire Homecare,Care Establishment,2 - Commissioning - Older people Pool,Hunts O P  Team,Day and Domicillary Care Independent Sector
Cambridgeshire County Council,13-Nov-15,19518066-12365380,504.86,Cambridgeshire Homecare,Care Establishment,2 - Commissioning - Older people Pool,Hunts O P  Team,Day and Domicillary Care Independent Sector
Cambridgeshire County Council,13-Nov-15,19518083-12365381,504.86,Cambridgeshire Homecare,Care Establishment,2 - Commissioning - Older people Pool,Hunts O P  Team,Day and Domicillary Care Independent Sector
Cambridgeshire County Council,13-Nov-15,19520001-12355035,504.86,Citc Care Ltd (Home Choice),Care Establishment,2 - Commissioning - Older people Pool,Hunts O P  Team,Day and Domicillary Care Independent Sector
Cambridgeshire County Council,13-Nov-15,19520007-12355024,504.86,Citc Care Ltd (Home Choice),Care Establishment,2 - Commissioning - Older people Pool,Hunts O P  Team,Day and Domicillary Care Independent Sector
Cambridgeshire County Council,13-Nov-15,19520011-12355025,504.86,Citc Care Ltd (Home Choice),Care Establishment,2 - Commissioning - Older people Pool,Hunts O P  Team,Day and Domicillary Care Independent Sector
Cambridgeshire County Council,13-Nov-15,19520014-12355027,504.86,Citc Care Ltd (Home Choice),Care Establishment,2 - Commissioning - Older people Pool,Hunts O P  Team,Day and Domicillary Care Independent Sector
Cambridgeshire County Council,13-Nov-15,19523951-12365144,504.86,Cambridgeshire Homecare,Care Establishment,2 - Commissioning - Older people Pool,Older People - Fenland,Day and Domicillary Care Independent Sector
Cambridgeshire County Council,13-Nov-15,19523958-12365145,504.86,Cambridgeshire Homecare,Care Establishment,2 - Commissioning - Older people Pool,Older People - Fenland,Day and Domicillary Care Independent Sector
Cambridgeshire County Council,13-Nov-15,19526225-12365331,504.86,Cambridgeshire Homecare,Care Establishment,2 - Commissioning - Older people Pool,Hunts O P  Team,Day and Domicillary Care Independent Sector
Cambridgeshire County Council,13-Nov-15,19527827-12365271,504.86,Cambridgeshire Homecare,Care Establishment,2 - Commissioning - Older people Pool,Hunts O P  Team,Day and Domicillary Care Independent Sector
Cambridgeshire County Council,13-Nov-15,19527831-12365272,504.86,Cambridgeshire Homecare,Care Establishment,2 - Commissioning - Older people Pool,Hunts O P  Team,Day and Domicillary Care Independent Sector
Cambridgeshire County Council,13-Nov-15,19532127-12355117,504.86,Citc Care Ltd (Home Choice),Care Establishment,3 - Operations - Countywide Services,Countywide PD Service,Day and Domicillary Care Independent Sector
Cambridgeshire County Council,13-Nov-15,19532169-12355119,504.86,Citc Care Ltd (Home Choice),Care Establishment,3 - Operations - Countywide Services,Countywide PD Service,Day and Domicillary Care Independent Sector
Cambridgeshire County Council,13-Nov-15,19532365-12355103,504.86,Citc Care Ltd (Home Choice),Care Establishment,2 - Commissioning - Older people Pool,Hunts O P  Team,Day and Domicillary Care Independent Sector
Cambridgeshire County Council,13-Nov-15,19532366-12355104,504.86,Citc Care Ltd (Home Choice),Care Establishment,2 - Commissioning - Older people Pool,Hunts O P  Team,Day and Domicillary Care Independent Sector
Cambridgeshire County Council,13-Nov-15,19532367-12355105,504.86,Citc Care Ltd (Home Choice),Care Establishment,2 - Commissioning - Older people Pool,Hunts O P  Team,Day and Domicillary Care Independent Sector
Cambridgeshire County Council,13-Nov-15,19532368-12355106,504.86,Citc Care Ltd (Home Choice),Care Establishment,2 - Commissioning - Older people Pool,Hunts O P  Team,Day and Domicillary Care Independent Sector
Cambridgeshire County Council,13-Nov-15,19532699-12365362,504.86,Cambridgeshire Homecare,Care Establishment,2 - Commissioning - Older people Pool,Older People - Fenland,Day and Domicillary Care Independent Sector
Cambridgeshire County Council,13-Nov-15,19532700-12365363,504.86,Cambridgeshire Homecare,Care Establishment,2 - Commissioning - Older people Pool,Older People - Fenland,Day and Domicillary Care Independent Sector
Cambridgeshire County Council,20-Nov-15,19560647-12396967,505.67,Hardwick Dene,Care Establishment,2 - Commissioning - Older people Pool,Hunts O P  Team,Residential Independent Sector
Cambridgeshire County Council,20-Nov-15,19560648-12396968,505.67,Hardwick Dene,Care Establishment,2 - Commissioning - Older people Pool,Hunts O P  Team,Residential Independent Sector
Cambridgeshire County Council,20-Nov-15,19560649-12396969,505.67,Hardwick Dene,Care Establishment,2 - Commissioning - Older people Pool,Hunts O P  Team,Residential Independent Sector
Cambridgeshire County Council,20-Nov-15,19560650-12396970,505.67,Hardwick Dene,Care Establishment,2 - Commissioning - Older people Pool,Hunts O P  Team,Residential Independent Sector
Cambridgeshire County Council,13-Nov-15,19522328-12354524,505.98,Caerus Care Ltd,Care Establishment,2 - Operations - Learning Disability,LDP Fenland Team,Supported Living
Cambridgeshire County Council,13-Nov-15,19522421-12354525,505.98,Caerus Care Ltd,Care Establishment,2 - Operations - Learning Disability,LDP Fenland Team,Supported Living
Cambridgeshire County Council,13-Nov-15,19522436-12354526,505.98,Caerus Care Ltd,Care Establishment,2 - Operations - Learning Disability,LDP Fenland Team,Supported Living
Cambridgeshire County Council,13-Nov-15,19531503-12354721,505.98,Caerus Care Ltd,Care Establishment,2 - Operations - Learning Disability,LDP Fenland Team,Supported Living
Cambridgeshire County Council,23-Nov-15,19504959-12407886,506.02,Imtech Traffic & Infra Uk Limited,Company,Traffic Management & Road Safety,Signals Capital,Capital WIP - roads  -  Expenditure / Payments
Cambridgeshire County Council,20-Nov-15,19558287-12396467,506.24,Redacted Personal Data,Individual,3 - Operations - Countywide Services,Countywide PD Service,Direct Payments - Social Services
Cambridgeshire County Council,20-Nov-15,19558288-12396468,506.24,Redacted Personal Data,Individual,3 - Operations - Countywide Services,Countywide PD Service,Direct Payments - Social Services
Cambridgeshire County Council,20-Nov-15,19558289-12396469,506.24,Redacted Personal Data,Individual,3 - Operations - Countywide Services,Countywide PD Service,Direct Payments - Social Services
Cambridgeshire County Council,20-Nov-15,19558290-12396470,506.24,Redacted Personal Data,Individual,3 - Operations - Countywide Services,Countywide PD Service,Direct Payments - Social Services
Cambridgeshire County Council,27-Nov-15,19583607-12432523,506.28,Redacted Personal Data,Individual,CSC,CSC Direct Payments,Direct Payments - Social Services
Cambridgeshire County Council,20-Nov-15,19561061-12404429,506.46,Redacted Personal Data,Individual,3 - Operations - Countywide Services,Countywide PD Service,Direct Payments - Social Services
Cambridgeshire County Council,20-Nov-15,19561062-12404430,506.46,Redacted Personal Data,Individual,3 - Operations - Countywide Services,Countywide PD Service,Direct Payments - Social Services
Cambridgeshire County Council,20-Nov-15,19561063-12404431,506.46,Redacted Personal Data,Individual,3 - Operations - Countywide Services,Countywide PD Service,Direct Payments - Social Services
Cambridgeshire County Council,20-Nov-15,19561064-12404432,506.46,Redacted Personal Data,Individual,3 - Operations - Countywide Services,Countywide PD Service,Direct Payments - Social Services
Cambridgeshire County Council,13-Nov-15,19521089-12369436,506.69,Abbott Healthcare Ltd,Care Establishment,3 - Operations - Countywide Services,Countywide PD Service,Day and Domicillary Care Independent Sector
Cambridgeshire County Council,13-Nov-15,19521096-12369439,506.69,Abbott Healthcare Ltd,Care Establishment,3 - Operations - Countywide Services,Countywide PD Service,Day and Domicillary Care Independent Sector
Cambridgeshire County Council,13-Nov-15,19521097-12369440,506.69,Abbott Healthcare Ltd,Care Establishment,3 - Operations - Countywide Services,Countywide PD Service,Day and Domicillary Care Independent Sector
Cambridgeshire County Council,13-Nov-15,19530140-12368981,506.69,Abbott Healthcare Ltd,Care Establishment,3 - Operations - Countywide Services,Countywide PD Service,Day and Domicillary Care Independent Sector
Cambridgeshire County Council,09-Nov-15,19154518-12243885,506.88,Premier Moves Ltd,Trade Supplier,Schools,Holme CofE Primary School; Peterborough ;(3070),Capital WIP - land and buildings  -  Construction cost
Cambridgeshire County Council,13-Nov-15,19515764-12366780,507.79,Conquest Care Homes Peterborough,Care Establishment,2 - Operations - Learning Disability,LDP Fenland Team,Supported Living
Cambridgeshire County Council,13-Nov-15,19515765-12366781,507.79,Conquest Care Homes Peterborough,Care Establishment,2 - Operations - Learning Disability,LDP Fenland Team,Supported Living
Cambridgeshire County Council,13-Nov-15,19515766-12366782,507.79,Conquest Care Homes Peterborough,Care Establishment,2 - Operations - Learning Disability,LDP Fenland Team,Supported Living
Cambridgeshire County Council,13-Nov-15,19515767-12366783,507.79,Conquest Care Homes Peterborough,Care Establishment,2 - Operations - Learning Disability,LDP Fenland Team,Supported Living
Cambridgeshire County Council,13-Nov-15,19520933-12366791,507.79,Conquest Care Homes Peterborough,Care Establishment,2 - Operations - Learning Disability,LDP Fenland Team,Supported Living
Cambridgeshire County Council,13-Nov-15,19520935-12366793,507.79,Conquest Care Homes Peterborough,Care Establishment,2 - Operations - Learning Disability,LDP Fenland Team,Supported Living
Cambridgeshire County Council,13-Nov-15,19529933-12366768,507.79,Conquest Care Homes Peterborough,Care Establishment,2 - Operations - Learning Disability,LDP Fenland Team,Supported Living
Cambridgeshire County Council,13-Nov-15,19529934-12366769,507.79,Conquest Care Homes Peterborough,Care Establishment,2 - Operations - Learning Disability,LDP Fenland Team,Supported Living
Cambridgeshire County Council,27-Nov-15,19583630-12430323,507.82,Redacted Personal Data,Individual,CSC,CSC Direct Payments,Direct Payments - Social Services
Cambridgeshire County Council,10-Nov-15,19480078-12246567,507.9,Xma Limited,Trade Supplier,LRNG,ICT Service Procurement,Materials for resale
Cambridgeshire County Council,20-Nov-15,19554854-12403468,508.04,Tony Stocks T/A Guyatt House,Care Establishment,2 - Operations - Learning Disability,LDP E Cambs Team,Residential Independent Sector
Cambridgeshire County Council,20-Nov-15,19554856-12403469,508.04,Tony Stocks T/A Guyatt House,Care Establishment,2 - Operations - Learning Disability,LDP E Cambs Team,Residential Independent Sector
Cambridgeshire County Council,20-Nov-15,19554861-12403471,508.04,Tony Stocks T/A Guyatt House,Care Establishment,2 - Operations - Learning Disability,LDP E Cambs Team,Residential Independent Sector
Cambridgeshire County Council,20-Nov-15,19554870-12403473,508.04,Tony Stocks T/A Guyatt House,Care Establishment,2 - Operations - Learning Disability,LDP E Cambs Team,Residential Independent Sector
Cambridgeshire County Council,17-Nov-15,19479557-12378092,509,Safer Business Associates Limited,Trade Supplier,LRNG,Early Years Workforce Development,Other Hired Contract Services
Cambridgeshire County Council,12-Nov-15,19507508-12252668,509.04,Redacted Personal Data,Individual,SMI's,Early Years - Funded 3s/4s,Care & Ed Childcare Settings
Cambridgeshire County Council,12-Nov-15,19507546-12252546,509.04,Ruth Wilson#1,Nursery,SMI's,Early Years - Funded 3s/4s,Care & Ed Childcare Settings
Cambridgeshire County Council,26-Nov-15,19576282-12423434,509.04,Rosanna Jane Mahmood,Nursery,SMI's,Early Years - Funded 3s/4s,Care & Ed Childcare Settings
Cambridgeshire County Council,05-Nov-15,19492016-12238903,509.4,Redacted Personal Data,Volunteer Services,2 - Commissioning - Older people Pool,Older People - City & South,Social Services Transport
Cambridgeshire County Council,03-Nov-15,19478902-12226706,510,Fen Drayton Primary School,Education,LRNG,Music Hub - Schools Workstream,Allocation of Sources of Funding
Cambridgeshire County Council,24-Nov-15,19504868-12412558,510,Tribal Education Ltd,Trade Supplier,LGSS Managed,Estates,Other Hired Contract Services
Cambridgeshire County Council,13-Nov-15,19526168-12366801,510,Conquest Care Homes Peterborough,Care Establishment,2 - Operations - Learning Disability,LDP Fenland Team,Supported Living
Cambridgeshire County Council,13-Nov-15,19526169-12366802,510,Conquest Care Homes Peterborough,Care Establishment,2 - Operations - Learning Disability,LDP Fenland Team,Supported Living
Cambridgeshire County Council,13-Nov-15,19526170-12366803,510,Conquest Care Homes Peterborough,Care Establishment,2 - Operations - Learning Disability,LDP Fenland Team,Supported Living
Cambridgeshire County Council,13-Nov-15,19526171-12366804,510,Conquest Care Homes Peterborough,Care Establishment,2 - Operations - Learning Disability,LDP Fenland Team,Supported Living
Cambridgeshire County Council,13-Nov-15,19527209-12360597,510,Craegmoor Supporting You In Cambridgeshire,Care Establishment,2 - Operations - Learning Disability,LDP Fenland Team,Supported Living
Cambridgeshire County Council,13-Nov-15,19527211-12360598,510,Craegmoor Supporting You In Cambridgeshire,Care Establishment,2 - Operations - Learning Disability,LDP Fenland Team,Supported Living
Cambridgeshire County Council,13-Nov-15,19527212-12360599,510,Craegmoor Supporting You In Cambridgeshire,Care Establishment,2 - Operations - Learning Disability,LDP Fenland Team,Supported Living
Cambridgeshire County Council,13-Nov-15,19527216-12360600,510,Craegmoor Supporting You In Cambridgeshire,Care Establishment,2 - Operations - Learning Disability,LDP Fenland Team,Supported Living
Cambridgeshire County Council,13-Nov-15,19528586-12361915,510,The Chestnuts Residential Home,Care Establishment,2 - Commissioning - Older people Pool,Older People - Fenland,Residential Independent Sector
Cambridgeshire County Council,13-Nov-15,19528599-12361916,510,The Chestnuts Residential Home,Care Establishment,2 - Commissioning - Older people Pool,Older People - Fenland,Residential Independent Sector
Cambridgeshire County Council,13-Nov-15,19528603-12361917,510,The Chestnuts Residential Home,Care Establishment,2 - Commissioning - Older people Pool,Older People - Fenland,Residential Independent Sector
Cambridgeshire County Council,13-Nov-15,19528605-12361918,510,The Chestnuts Residential Home,Care Establishment,2 - Commissioning - Older people Pool,Older People - Fenland,Residential Independent Sector
Cambridgeshire County Council,13-Nov-15,19531411-12360605,510,Craegmoor Supporting You In Cambridgeshire,Care Establishment,2 - Operations - Learning Disability,LDP Fenland Team,Supported Living
Cambridgeshire County Council,13-Nov-15,19531413-12360606,510,Craegmoor Supporting You In Cambridgeshire,Care Establishment,2 - Operations - Learning Disability,LDP Fenland Team,Supported Living
Cambridgeshire County Council,13-Nov-15,19531414-12360607,510,Craegmoor Supporting You In Cambridgeshire,Care Establishment,2 - Operations - Learning Disability,LDP Fenland Team,Supported Living
Cambridgeshire County Council,13-Nov-15,19531415-12360608,510,Craegmoor Supporting You In Cambridgeshire,Care Establishment,2 - Operations - Learning Disability,LDP Fenland Team,Supported Living
Cambridgeshire County Council,13-Nov-15,19532609-12360601,510,Craegmoor Supporting You In Cambridgeshire,Care Establishment,2 - Operations - Learning Disability,LDP Fenland Team,Supported Living
Cambridgeshire County Council,13-Nov-15,19532610-12360602,510,Craegmoor Supporting You In Cambridgeshire,Care Establishment,2 - Operations - Learning Disability,LDP Fenland Team,Supported Living
Cambridgeshire County Council,13-Nov-15,19532611-12360603,510,Craegmoor Supporting You In Cambridgeshire,Care Establishment,2 - Operations - Learning Disability,LDP Fenland Team,Supported Living
Cambridgeshire County Council,13-Nov-15,19532612-12360604,510,Craegmoor Supporting You In Cambridgeshire,Care Establishment,2 - Operations - Learning Disability,LDP Fenland Team,Supported Living
Cambridgeshire County Council,02-Nov-15,19475381-12222438,510.09,Anglian Water Services Limited,Company,LGSS Managed,6 St Lukes Close,Water charges
Cambridgeshire County Council,24-Nov-15,19479684-12412506,510.29,Little Acorns Fostering Ltd,Care Establishment,S&C,Placements - Social Care,Agency Placements - Out County
Cambridgeshire County Council,13-Nov-15,19522983-12369080,510.4,Abbott Healthcare Ltd,Care Establishment,2 - Commissioning - Older people Pool,Hunts O P  Team,Day and Domicillary Care Independent Sector
Cambridgeshire County Council,25-Nov-15,19568866-12416012,510.4,Social Care Solutions Ltd,Care Establishment,4 - Commissioning - Mental Health & Supporting People,Hunts Mental Health Team,Day and Domicillary Care Independent Sector
Cambridgeshire County Council,13-Nov-15,19522364-12359454,510.63,The Red House Residential & Nursing Home,Care Establishment,2 - Commissioning - Older people Pool,Hunts O P  Team,Nursing Independent Sector
Cambridgeshire County Council,13-Nov-15,19522446-12359456,510.63,The Red House Residential & Nursing Home,Care Establishment,2 - Commissioning - Older people Pool,Hunts O P  Team,Nursing Independent Sector
Cambridgeshire County Council,13-Nov-15,19522464-12359457,510.63,The Red House Residential & Nursing Home,Care Establishment,2 - Commissioning - Older people Pool,Hunts O P  Team,Nursing Independent Sector
Cambridgeshire County Council,13-Nov-15,19531511-12359550,510.63,The Red House Residential & Nursing Home,Care Establishment,2 - Commissioning - Older people Pool,Hunts O P  Team,Nursing Independent Sector
Cambridgeshire County Council,05-Nov-15,19486997-12237963,510.73,Redacted Personal Data,Individual,2 - Operations - Learning Disability,LDP City Team,SDS - Care and support Services
Cambridgeshire County Council,05-Nov-15,19487007-12237968,510.73,Redacted Personal Data,Individual,2 - Operations - Learning Disability,LDP City Team,SDS - Care and support Services
Cambridgeshire County Council,05-Nov-15,19487019-12237972,510.73,Redacted Personal Data,Individual,2 - Operations - Learning Disability,LDP City Team,SDS - Care and support Services
Cambridgeshire County Council,05-Nov-15,19487024-12237974,510.73,Redacted Personal Data,Individual,2 - Operations - Learning Disability,LDP City Team,SDS - Care and support Services
Cambridgeshire County Council,20-Nov-15,19509755-12399951,510.79,Gratte Brothers Catering Equipment Ltd,Company,S&C,"Catering - Property, Equipment & Maintenance",Repair of canteen equipment
Cambridgeshire County Council,05-Nov-15,19483512-12236758,511.56,Redacted Personal Data,Individual,2 - Commissioning - Older people Pool,Older People - Fenland,SDS - Care and support Services
Cambridgeshire County Council,05-Nov-15,19483514-12236759,511.56,Redacted Personal Data,Individual,2 - Commissioning - Older people Pool,Older People - Fenland,SDS - Care and support Services
Cambridgeshire County Council,05-Nov-15,19483519-12236760,511.56,Redacted Personal Data,Individual,2 - Commissioning - Older people Pool,Older People - Fenland,SDS - Care and support Services
Cambridgeshire County Council,05-Nov-15,19483523-12236761,511.56,Redacted Personal Data,Individual,2 - Commissioning - Older people Pool,Older People - Fenland,SDS - Care and support Services
Cambridgeshire County Council,20-Nov-15,19555888-12403293,511.63,Redacted Personal Data,Individual,2 - Operations - Learning Disability,LDP City Team,SDS - Care and support Services
Cambridgeshire County Council,20-Nov-15,19555893-12403298,511.63,Redacted Personal Data,Individual,2 - Operations - Learning Disability,LDP City Team,SDS - Care and support Services
Cambridgeshire County Council,20-Nov-15,19559463-12403299,511.63,Redacted Personal Data,Individual,2 - Operations - Learning Disability,LDP City Team,SDS - Care and support Services
Cambridgeshire County Council,20-Nov-15,19559465-12403301,511.63,Redacted Personal Data,Individual,2 - Operations - Learning Disability,LDP City Team,SDS - Care and support Services
Cambridgeshire County Council,05-Nov-15,19484299-12236858,511.73,Rose Lodge,Care Establishment,2 - Commissioning - Older people Pool,Older People - Fenland,Residential Independent Sector
Cambridgeshire County Council,05-Nov-15,19484630-12236854,511.73,Rose Lodge,Care Establishment,2 - Commissioning - Older people Pool,Older People Mental Health Fenland,Nursing Independent Sector
Cambridgeshire County Council,05-Nov-15,19484631-12236855,511.73,Rose Lodge,Care Establishment,2 - Commissioning - Older people Pool,Older People Mental Health Fenland,Nursing Independent Sector
Cambridgeshire County Council,05-Nov-15,19484645-12236856,511.73,Rose Lodge,Care Establishment,2 - Commissioning - Older people Pool,Older People Mental Health Fenland,Nursing Independent Sector
Cambridgeshire County Council,05-Nov-15,19484646-12236857,511.73,Rose Lodge,Care Establishment,2 - Commissioning - Older people Pool,Older People Mental Health Fenland,Nursing Independent Sector
Cambridgeshire County Council,05-Nov-15,19487602-12236847,511.73,Rose Lodge,Care Establishment,2 - Commissioning - Older people Pool,Older People - Fenland,Residential Independent Sector
Cambridgeshire County Council,05-Nov-15,19487603-12236848,511.73,Rose Lodge,Care Establishment,2 - Commissioning - Older people Pool,Older People - Fenland,Residential Independent Sector
Cambridgeshire County Council,05-Nov-15,19487604-12236849,511.73,Rose Lodge,Care Establishment,2 - Commissioning - Older people Pool,Older People - Fenland,Residential Independent Sector
Cambridgeshire County Council,13-Nov-15,19504725-12372608,511.92,Harfield Components Ltd,Trade Supplier,S&C,Catering - Manea Comm Primary School; Ma,Light Canteen equipment
Cambridgeshire County Council,20-Nov-15,19552945-12395852,512,Trefoil House,Care Establishment,2 - Commissioning - Older people Pool,East Cambs - O P Team,Residential Independent Sector
Cambridgeshire County Council,20-Nov-15,19552951-12395853,512,Trefoil House,Care Establishment,2 - Commissioning - Older people Pool,East Cambs - O P Team,Residential Independent Sector
Cambridgeshire County Council,20-Nov-15,19552953-12395854,512,Trefoil House,Care Establishment,2 - Commissioning - Older people Pool,East Cambs - O P Team,Residential Independent Sector
Cambridgeshire County Council,20-Nov-15,19552961-12395856,512,Trefoil House,Care Establishment,2 - Commissioning - Older people Pool,East Cambs - O P Team,Residential Independent Sector
Cambridgeshire County Council,20-Nov-15,19552962-12395857,512,Trefoil House,Care Establishment,2 - Commissioning - Older people Pool,East Cambs - O P Team,Residential Independent Sector
Cambridgeshire County Council,20-Nov-15,19552964-12395851,512,Trefoil House,Care Establishment,2 - Commissioning - Older people Pool,East Cambs - O P Team,Residential Independent Sector
Cambridgeshire County Council,20-Nov-15,19556928-12395849,512,Trefoil House,Care Establishment,2 - Commissioning - Older people Pool,East Cambs - O P Team,Residential Independent Sector
Cambridgeshire County Council,20-Nov-15,19556930-12395850,512,Trefoil House,Care Establishment,2 - Commissioning - Older people Pool,East Cambs - O P Team,Residential Independent Sector
Cambridgeshire County Council,11-Nov-15,19504954-12250408,513,Guys And St Thomas Nhs Foundation Trust,Care Establishment,PH,SH STI testing & treatment - Prescribed,Other Hired Contract Services
Cambridgeshire County Council,05-Nov-15,19485889-12233514,513.05,Ringshill Care Home,Care Establishment,2 - Commissioning - Older people Pool,Older People Mental Health Hunts,Nursing Independent Sector
Cambridgeshire County Council,05-Nov-15,19485891-12233516,513.05,Ringshill Care Home,Care Establishment,2 - Commissioning - Older people Pool,Older People Mental Health Hunts,Nursing Independent Sector
Cambridgeshire County Council,05-Nov-15,19485894-12233519,513.05,Ringshill Care Home,Care Establishment,2 - Commissioning - Older people Pool,Older People Mental Health Hunts,Nursing Independent Sector
Cambridgeshire County Council,05-Nov-15,19485896-12233521,513.05,Ringshill Care Home,Care Establishment,2 - Commissioning - Older people Pool,Older People Mental Health Hunts,Nursing Independent Sector
Cambridgeshire County Council,05-Nov-15,19485897-12233522,513.05,Ringshill Care Home,Care Establishment,2 - Commissioning - Older people Pool,Older People Mental Health Hunts,Nursing Independent Sector
Cambridgeshire County Council,13-Nov-15,19521490-12373273,513.05,Ringshill Care Home,Care Establishment,2 - Commissioning - Older people Pool,Older People Mental Health Hunts,Nursing Independent Sector
Cambridgeshire County Council,13-Nov-15,19521491-12373274,513.05,Ringshill Care Home,Care Establishment,2 - Commissioning - Older people Pool,Older People Mental Health Hunts,Nursing Independent Sector
Cambridgeshire County Council,13-Nov-15,19521492-12373275,513.05,Ringshill Care Home,Care Establishment,2 - Commissioning - Older people Pool,Older People Mental Health Hunts,Nursing Independent Sector
Cambridgeshire County Council,13-Nov-15,19521493-12373276,513.05,Ringshill Care Home,Care Establishment,2 - Commissioning - Older people Pool,Older People Mental Health Hunts,Nursing Independent Sector
Cambridgeshire County Council,13-Nov-15,19521494-12373277,513.05,Ringshill Care Home,Care Establishment,2 - Commissioning - Older people Pool,Older People Mental Health Hunts,Nursing Independent Sector
Cambridgeshire County Council,27-Nov-15,19555612-12432318,513.05,Ringshill Care Home,Care Establishment,2 - Commissioning - Older people Pool,Older People Mental Health Hunts,Nursing Independent Sector
Cambridgeshire County Council,27-Nov-15,19555615-12432321,513.05,Ringshill Care Home,Care Establishment,2 - Commissioning - Older people Pool,Older People Mental Health Hunts,Nursing Independent Sector
Cambridgeshire County Council,27-Nov-15,19555616-12432322,513.05,Ringshill Care Home,Care Establishment,2 - Commissioning - Older people Pool,Older People Mental Health Hunts,Nursing Independent Sector
Cambridgeshire County Council,27-Nov-15,19555617-12432323,513.05,Ringshill Care Home,Care Establishment,2 - Commissioning - Older people Pool,Older People Mental Health Hunts,Nursing Independent Sector
Cambridgeshire County Council,27-Nov-15,19555619-12432325,513.05,Ringshill Care Home,Care Establishment,2 - Commissioning - Older people Pool,Older People Mental Health Hunts,Nursing Independent Sector
Cambridgeshire County Council,27-Nov-15,19579866-12432306,513.05,Ringshill Care Home,Care Establishment,2 - Commissioning - Older people Pool,Older People Mental Health Hunts,Nursing Independent Sector
Cambridgeshire County Council,27-Nov-15,19579867-12432307,513.05,Ringshill Care Home,Care Establishment,2 - Commissioning - Older people Pool,Older People Mental Health Hunts,Nursing Independent Sector
Cambridgeshire County Council,27-Nov-15,19579869-12432309,513.05,Ringshill Care Home,Care Establishment,2 - Commissioning - Older people Pool,Older People Mental Health Hunts,Nursing Independent Sector
Cambridgeshire County Council,27-Nov-15,19579871-12432311,513.05,Ringshill Care Home,Care Establishment,2 - Commissioning - Older people Pool,Older People Mental Health Hunts,Nursing Independent Sector
Cambridgeshire County Council,27-Nov-15,19579876-12432316,513.05,Ringshill Care Home,Care Establishment,2 - Commissioning - Older people Pool,Older People Mental Health Hunts,Nursing Independent Sector
Cambridgeshire County Council,05-Nov-15,19488197-12237419,513.1,Heron House Care Home,Care Establishment,2 - Commissioning - Older people Pool,Older People Mental Health Hunts,Nursing Independent Sector
